Body Name,Service Label,Service Division Label,Organisational Unit,Expenditure Category,Date,Capital and Revenue,Supplier name,Total
West Sussex County Council,Planning & Development Services,Community Development,Other Charges,Electricity,05/10/2021,Revenue Expenditure ,Kent County Council,3469.61
West Sussex County Council,Adult Social Care,Property Maintenance,1 Sheepfold Avenue (Kerry Hill),M&E Callout (Eng),25/10/2021,Revenue Expenditure ,Sse Contracting Limited,284.5
West Sussex County Council,Adult Social Care,Property Maintenance,1 Sheepfold Avenue (Kerry Hill),M&E Servicing (Eng),25/10/2021,Revenue Expenditure ,Sse Contracting Limited,210.28
West Sussex County Council,Children Social Care,Property Maintenance,Wittering Youth Centre,Reactive Maintenance,18/10/2021,Revenue Expenditure ,Psm Surfacing & Line Marking Ltd,425
West Sussex County Council,Support Service And Management Costs,Property Maintenance,W&P,Office Equipment,01/10/2021,Revenue Expenditure ,P Card Royal Bank Of Scotland Plc,635.26
West Sussex County Council,Support Service And Management Costs,Property Maintenance,W&P,Office Equipment,01/10/2021,Revenue Expenditure ,P Card Royal Bank Of Scotland Plc,569.07
West Sussex County Council,Support Service And Management Costs,Property Maintenance,W&P,Consum Cleaning Mat,20/10/2021,Revenue Expenditure ,Churchill Contract Services Ltd,482.86
West Sussex County Council,Support Service And Management Costs,Property Maintenance,Annual Window Cleaning Contract,Cleaning Contracts,22/10/2021,Revenue Expenditure ,Churchill Contract Services Ltd,3192.18
West Sussex County Council,Support Service And Management Costs,Property Maintenance,Annual Window Cleaning Contract,Cleaning Contracts,20/10/2021,Revenue Expenditure ,Churchill Contract Services Ltd,3167.7
West Sussex County Council,Support Service And Management Costs,Property Maintenance,Annual Building Clean Contract,Cleaning Contracts,20/10/2021,Revenue Expenditure ,Churchill Contract Services Ltd,-46724.73
West Sussex County Council,Support Service And Management Costs,Property Maintenance,Annual Building Clean Contract,Cleaning Contracts,20/10/2021,Revenue Expenditure ,Churchill Contract Services Ltd,117740.52
West Sussex County Council,Support Service And Management Costs,Property Maintenance,Annual Building Clean Contract,Cleaning Contracts,22/10/2021,Revenue Expenditure ,Churchill Contract Services Ltd,118528.53
West Sussex County Council,Support Service And Management Costs,Property Maintenance,Durban,Professional Service,22/10/2021,Revenue Expenditure ,Churchill Contract Services Ltd,3003
West Sussex County Council,Support Service And Management Costs,Property Maintenance,Durban,Professional Service,22/10/2021,Revenue Expenditure ,Churchill Contract Services Ltd,3003
West Sussex County Council,Support Service And Management Costs,Property Maintenance,Durban,Professional Service,20/10/2021,Revenue Expenditure ,Churchill Contract Services Ltd,2866.5
West Sussex County Council,Cultural & Related Services,Library Service,Crawley Library,Professional Service,22/10/2021,Revenue Expenditure ,Churchill Contract Services Ltd,5056.3
West Sussex County Council,Cultural & Related Services,Library Service,Crawley Library,Professional Service,22/10/2021,Revenue Expenditure ,Churchill Contract Services Ltd,4930.14
West Sussex County Council,Cultural & Related Services,Library Service,Crawley Library,Professional Service,20/10/2021,Revenue Expenditure ,Churchill Contract Services Ltd,4729.57
West Sussex County Council,Support Service And Management Costs,Property Maintenance,Parkside,Professional Service,20/10/2021,Revenue Expenditure ,Churchill Contract Services Ltd,6012.6
West Sussex County Council,Support Service And Management Costs,Property Maintenance,Centenary House,Professional Service,20/10/2021,Revenue Expenditure ,Churchill Contract Services Ltd,2866.5
West Sussex County Council,Support Service And Management Costs,Property Maintenance,Contract Management 21/22,Professional Service,29/10/2021,Revenue Expenditure ,Sse Contracting Limited,33225.96
West Sussex County Council,Support Service And Management Costs,Property Maintenance,Buchan Information Centre Uprn 882001,M&E Callout (Eng),25/10/2021,Revenue Expenditure ,Sse Contracting Limited,125.18
West Sussex County Council,Support Service And Management Costs,Property Maintenance,Brick Kiln Farm-Deta Uprn 893001,M&E Callout (Eng),25/10/2021,Revenue Expenditure ,Sse Contracting Limited,125.91
West Sussex County Council,Children Social Care,Property Maintenance,Penhill Art Centre Uprn 1048001,Reactive Maintenance,05/10/2021,Revenue Expenditure ,Sse Contracting Limited,3687.12
West Sussex County Council,Children Social Care,Property Maintenance,Midhurst Youth C_New Build Uprn 1203001,M&E Servicing (Eng),25/10/2021,Revenue Expenditure ,Sse Contracting Limited,119.49
West Sussex County Council,Children Social Care,Property Maintenance,Orchard House Uprn 26001,M&E Callout (Eng),25/10/2021,Revenue Expenditure ,Sse Contracting Limited,125.18
West Sussex County Council,Children Social Care,Property Maintenance,Orchard House Uprn 26001,M&E Callout (Eng),25/10/2021,Revenue Expenditure ,Sse Contracting Limited,125.18
West Sussex County Council,Children Social Care,Property Maintenance,Orchard House Uprn 26001,M&E Servicing (Eng),25/10/2021,Revenue Expenditure ,Sse Contracting Limited,125.18
West Sussex County Council,Children Social Care,Property Maintenance,Orchard House Uprn 26001,M&E Servicing (Eng),25/10/2021,Revenue Expenditure ,Sse Contracting Limited,253.21
West Sussex County Council,Children Social Care,Property Maintenance,Orchard House Uprn 26001,M&E Callout (Eng),25/10/2021,Revenue Expenditure ,Sse Contracting Limited,472.3
West Sussex County Council,Children Social Care,Property Maintenance,Orchard House Uprn 26001,M&E Callout (Eng),25/10/2021,Revenue Expenditure ,Sse Contracting Limited,125.18
West Sussex County Council,Children Social Care,Property Maintenance,Orchard House Uprn 26001,M&E Callout (Eng),25/10/2021,Revenue Expenditure ,Sse Contracting Limited,125.18
West Sussex County Council,Children Social Care,Property Maintenance,May House Uprn 1117001,M&E Servicing (Eng),25/10/2021,Revenue Expenditure ,Sse Contracting Limited,265.13
West Sussex County Council,Children Social Care,Property Maintenance,High Trees Uprn 142001,M&E Servicing (Eng),25/10/2021,Revenue Expenditure ,Sse Contracting Limited,304.63
West Sussex County Council,Adult Social Care,Property Maintenance,Hammonds Uprn 396001,M&E Callout (Eng),25/10/2021,Revenue Expenditure ,Sse Contracting Limited,165.2
West Sussex County Council,Support Service And Management Costs,Property Maintenance,C/T House - St Andrew Uprn 1237001,M&E Callout (Eng),25/10/2021,Revenue Expenditure ,Sse Contracting Limited,291.81
West Sussex County Council,Support Service And Management Costs,Property Maintenance,C/T House - St Andrew Uprn 1237001,M&E Callout (Eng),25/10/2021,Revenue Expenditure ,Sse Contracting Limited,1365.6
West Sussex County Council,Support Service And Management Costs,Property Maintenance,C/T 43 Windmill Avenue Uprn 437001,M&E Servicing (Eng),25/10/2021,Revenue Expenditure ,Sse Contracting Limited,175.52
West Sussex County Council,Support Service And Management Costs,Property Maintenance,Bishop Luffa Caretak Uprn 579001,M&E Servicing (Eng),25/10/2021,Revenue Expenditure ,Sse Contracting Limited,109.71
West Sussex County Council,Adult Social Care,Property Maintenance,Chestnut Day Care Centre Uprn 389001,M&E Servicing (Eng),25/10/2021,Revenue Expenditure ,Sse Contracting Limited,280.44
West Sussex County Council,Adult Social Care,Property Maintenance,Tozer House Uprn 483001,M&E Callout (Eng),25/10/2021,Revenue Expenditure ,Sse Contracting Limited,1079.23
West Sussex County Council,Adult Social Care,Property Maintenance,Stanhope Lodge Uprn 152001,M&E Callout (Eng),25/10/2021,Revenue Expenditure ,Sse Contracting Limited,156.02
West Sussex County Council,Adult Social Care,Property Maintenance,Stanhope Lodge Uprn 152001,M&E Callout (Eng),25/10/2021,Revenue Expenditure ,Sse Contracting Limited,125.18
West Sussex County Council,Adult Social Care,Property Maintenance,Stanhope Lodge Uprn 152001,M&E Callout (Eng),25/10/2021,Revenue Expenditure ,Sse Contracting Limited,149.65
West Sussex County Council,Adult Social Care,Property Maintenance,Stanhope Lodge Uprn 152001,M&E Callout (Eng),25/10/2021,Revenue Expenditure ,Sse Contracting Limited,170.7
West Sussex County Council,Adult Social Care,Property Maintenance,New Tyne Resource Ce Uprn 171001,M&E Callout (Eng),25/10/2021,Revenue Expenditure ,Sse Contracting Limited,398.3
West Sussex County Council,Adult Social Care,Property Maintenance,New Tyne Resource Ce Uprn 171001,M&E Callout (Eng),25/10/2021,Revenue Expenditure ,Sse Contracting Limited,237.2
West Sussex County Council,Adult Social Care,Property Maintenance,New Tyne Resource Ce Uprn 171001,M&E Callout (Eng),25/10/2021,Revenue Expenditure ,Sse Contracting Limited,119.31
West Sussex County Council,Adult Social Care,Property Maintenance,Marjorie Cobby House Uprn 29002,M&E Callout (Eng),25/10/2021,Revenue Expenditure ,Sse Contracting Limited,233.14
West Sussex County Council,Adult Social Care,Property Maintenance,Lease_Judith Adams Dcc Uprn 800001,M&E Servicing (Eng),25/10/2021,Revenue Expenditure ,Sse Contracting Limited,743.59
West Sussex County Council,Adult Social Care,Property Maintenance,Laurels Uprn 230001,M&E Servicing (Eng),25/10/2021,Revenue Expenditure ,Sse Contracting Limited,247.67
West Sussex County Council,Adult Social Care,Property Maintenance,Hobbsfield Uprn 124001,M&E Callout (Eng),25/10/2021,Revenue Expenditure ,Sse Contracting Limited,125.18
West Sussex County Council,Adult Social Care,Property Maintenance,Coastal Enterprises Uprn 187001,M&E Servicing (Eng),25/10/2021,Revenue Expenditure ,Sse Contracting Limited,256.05
West Sussex County Council,Adult Social Care,Property Maintenance,Bluebell Lodge Uprn 90633001,M&E Callout (Eng),25/10/2021,Revenue Expenditure ,Sse Contracting Limited,1064.03
West Sussex County Council,Adult Social Care,Property Maintenance,Ball Tree Croft Uprn 185001,M&E Callout (Eng),25/10/2021,Revenue Expenditure ,Sse Contracting Limited,125.18
West Sussex County Council,Adult Social Care,Property Maintenance,Ball Tree Croft Uprn 185001,M&E Servicing (Eng),25/10/2021,Revenue Expenditure ,Sse Contracting Limited,822.83
West Sussex County Council,Adult Social Care,Property Maintenance,Ball Tree Croft Uprn 185001,M&E Servicing (Eng),25/10/2021,Revenue Expenditure ,Sse Contracting Limited,169.28
West Sussex County Council,Support Service And Management Costs,Property Maintenance,County Hall North Uprn 1123001,Reactive Maintenance,08/10/2021,Revenue Expenditure ,G Griffiths Building Contractor,4995
West Sussex County Council,Support Service And Management Costs,Property Maintenance,Willow Park-4B Terminus Uprn 1033001,M&E Servicing (Eng),25/10/2021,Revenue Expenditure ,Sse Contracting Limited,147.94
West Sussex County Council,Support Service And Management Costs,Property Maintenance,Power Place_23 Terminus Rd Uprn 1081001,M&E Callout (Eng),25/10/2021,Revenue Expenditure ,Sse Contracting Limited,496.3
West Sussex County Council,Support Service And Management Costs,Property Maintenance,Power Place_23 Terminus Rd Uprn 1081001,M&E Callout (Eng),25/10/2021,Revenue Expenditure ,Sse Contracting Limited,396.99
West Sussex County Council,Support Service And Management Costs,Property Maintenance,Power Place_23 Terminus Rd Uprn 1081001,M&E Servicing (Eng),25/10/2021,Revenue Expenditure ,Sse Contracting Limited,106.24
West Sussex County Council,Support Service And Management Costs,Property Maintenance,Power Place_23 Terminus Rd Uprn 1081001,M&E Servicing (Eng),25/10/2021,Revenue Expenditure ,Sse Contracting Limited,360.52
West Sussex County Council,Support Service And Management Costs,Property Maintenance,Power Place_23 Terminus Rd Uprn 1081001,M&E Callout (Eng),25/10/2021,Revenue Expenditure ,Sse Contracting Limited,199.15
West Sussex County Council,Central Services To The Public,Property Maintenance,Edes House Uprn 46001,M&E Callout (Eng),25/10/2021,Revenue Expenditure ,Sse Contracting Limited,117.21
West Sussex County Council,Support Service And Management Costs,Property Maintenance,Durban House Uprn 1054001,M&E Callout (Eng),25/10/2021,Revenue Expenditure ,Sse Contracting Limited,301.57
West Sussex County Council,Support Service And Management Costs,Property Maintenance,Durban House Uprn 1054001,M&E Callout (Eng),25/10/2021,Revenue Expenditure ,Sse Contracting Limited,581
West Sussex County Council,Support Service And Management Costs,Property Maintenance,Durban House Uprn 1054001,M&E Servicing (Eng),25/10/2021,Revenue Expenditure ,Sse Contracting Limited,291.43
West Sussex County Council,Support Service And Management Costs,Property Maintenance,Crawley County Building Uprn 580002,M&E Callout (Eng),25/10/2021,Revenue Expenditure ,Sse Contracting Limited,1614.41
West Sussex County Council,Support Service And Management Costs,Property Maintenance,County Hall North Uprn 1123001,M&E Callout (Eng),25/10/2021,Revenue Expenditure ,Sse Contracting Limited,142.25
West Sussex County Council,Support Service And Management Costs,Property Maintenance,County Hall North Uprn 1123001,M&E Callout (Eng),25/10/2021,Revenue Expenditure ,Sse Contracting Limited,191.18
West Sussex County Council,Support Service And Management Costs,Property Maintenance,County Hall North Uprn 1123001,M&E Callout (Eng),25/10/2021,Revenue Expenditure ,Sse Contracting Limited,381
West Sussex County Council,Support Service And Management Costs,Property Maintenance,County Hall North Uprn 1123001,M&E Servicing (Eng),25/10/2021,Revenue Expenditure ,Sse Contracting Limited,1965.99
West Sussex County Council,Support Service And Management Costs,Property Maintenance,County Hall North Uprn 1123001,M&E Servicing (Eng),25/10/2021,Revenue Expenditure ,Sse Contracting Limited,257.87
West Sussex County Council,Support Service And Management Costs,Property Maintenance,County Hall Chichester Uprn 716002,M&E Callout (Eng),25/10/2021,Revenue Expenditure ,Sse Contracting Limited,250.36
West Sussex County Council,Support Service And Management Costs,Property Maintenance,County Hall Chichester Uprn 716002,M&E Callout (Eng),25/10/2021,Revenue Expenditure ,Sse Contracting Limited,337.35
West Sussex County Council,Support Service And Management Costs,Property Maintenance,County Hall Chichester Uprn 716002,M&E Callout (Eng),25/10/2021,Revenue Expenditure ,Sse Contracting Limited,289.07
West Sussex County Council,Support Service And Management Costs,Property Maintenance,County Hall Chichester Uprn 716002,M&E Callout (Eng),25/10/2021,Revenue Expenditure ,Sse Contracting Limited,518.5
West Sussex County Council,Support Service And Management Costs,Property Maintenance,County Hall Chichester Uprn 716002,M&E Callout (Eng),25/10/2021,Revenue Expenditure ,Sse Contracting Limited,132.05
West Sussex County Council,Support Service And Management Costs,Property Maintenance,County Hall Chichester Uprn 716002,M&E Servicing (Eng),25/10/2021,Revenue Expenditure ,Sse Contracting Limited,227.34
West Sussex County Council,Support Service And Management Costs,Property Maintenance,County Hall Chichester Uprn 716002,M&E Callout (Eng),25/10/2021,Revenue Expenditure ,Sse Contracting Limited,156.02
West Sussex County Council,Support Service And Management Costs,Property Maintenance,County Hall Chichester Uprn 716002,M&E Callout (Eng),25/10/2021,Revenue Expenditure ,Sse Contracting Limited,242.91
West Sussex County Council,Support Service And Management Costs,Property Maintenance,County Hall Chichester Uprn 716002,M&E Callout (Eng),25/10/2021,Revenue Expenditure ,Sse Contracting Limited,488.76
West Sussex County Council,Support Service And Management Costs,Property Maintenance,County Hall Chichester Uprn 716002,M&E Servicing (Eng),25/10/2021,Revenue Expenditure ,Sse Contracting Limited,159.61
West Sussex County Council,Support Service And Management Costs,Property Maintenance,Centenary House Uprn 1017001,M&E Callout (Eng),25/10/2021,Revenue Expenditure ,Sse Contracting Limited,119.49
West Sussex County Council,Support Service And Management Costs,Property Maintenance,Centenary House Uprn 1017001,M&E Callout (Eng),25/10/2021,Revenue Expenditure ,Sse Contracting Limited,668.01
West Sussex County Council,Support Service And Management Costs,Property Maintenance,Centenary House Uprn 1017001,M&E Servicing (Eng),25/10/2021,Revenue Expenditure ,Sse Contracting Limited,199.15
West Sussex County Council,Support Service And Management Costs,Property Maintenance,Centenary House Uprn 1017001,M&E Servicing (Eng),25/10/2021,Revenue Expenditure ,Sse Contracting Limited,113.8
West Sussex County Council,Support Service And Management Costs,Property Maintenance,Centenary House Uprn 1017001,M&E Callout (Eng),25/10/2021,Revenue Expenditure ,Sse Contracting Limited,463.74
West Sussex County Council,Housing Services,Property Maintenance,Westbourne Caravan Park Uprn 857001,Reactive Maintenance,15/10/2021,Revenue Expenditure ,Grubb And Banks Building Services L,156
West Sussex County Council,Housing Services,Property Maintenance,Westbourne Caravan Park Uprn 857001,Reactive Maintenance,15/10/2021,Revenue Expenditure ,Grubb And Banks Building Services L,344.5
West Sussex County Council,Housing Services,Property Maintenance,Westbourne Caravan Park Uprn 857001,Reactive Maintenance,15/10/2021,Revenue Expenditure ,Grubb And Banks Building Services L,295
West Sussex County Council,Housing Services,Property Maintenance,Walstead Caravan Park Uprn 856001,Reactive Maintenance,25/10/2021,Revenue Expenditure ,Sse Contracting Limited,330.02
West Sussex County Council,Housing Services,Property Maintenance,Ryebank Gypsy Site Uprn 841001,Reactive Maintenance,25/10/2021,Revenue Expenditure ,Sse Contracting Limited,961.61
West Sussex County Council,Housing Services,Property Maintenance,New Fairplace Hill Caravan Park Uprn 123,Reactive Maintenance,25/10/2021,Revenue Expenditure ,Sse Contracting Limited,105.83
West Sussex County Council,Housing Services,Property Maintenance,New Fairplace Hill Caravan Park Uprn 123,Reactive Maintenance,25/10/2021,Revenue Expenditure ,Sse Contracting Limited,238.98
West Sussex County Council,Housing Services,Property Maintenance,Adversane Caravan Park Uprn 946001,Reactive Maintenance,25/10/2021,Revenue Expenditure ,Sse Contracting Limited,221.91
West Sussex County Council,Housing Services,Property Maintenance,New Withy Park Caravan Uprn 01387,M&E Callout (Eng),25/10/2021,Revenue Expenditure ,Sse Contracting Limited,376.25
West Sussex County Council,Housing Services,Property Maintenance,New Withy Park Caravan Uprn 01387,M&E Callout (Eng),25/10/2021,Revenue Expenditure ,Sse Contracting Limited,125.18
West Sussex County Council,Housing Services,Property Maintenance,New Withy Park Caravan Uprn 01387,M&E Callout (Eng),25/10/2021,Revenue Expenditure ,Sse Contracting Limited,210.53
West Sussex County Council,Housing Services,Property Maintenance,West Sussex Transit Site Uprn 1232001,M&E Callout (Eng),25/10/2021,Revenue Expenditure ,Sse Contracting Limited,145.25
West Sussex County Council,Housing Services,Property Maintenance,West Sussex Transit Site Uprn 1232001,M&E Callout (Eng),25/10/2021,Revenue Expenditure ,Sse Contracting Limited,115.42
West Sussex County Council,Housing Services,Property Maintenance,Westbourne Caravan Park Uprn 857001,M&E Callout (Eng),25/10/2021,Revenue Expenditure ,Sse Contracting Limited,253.8
West Sussex County Council,Housing Services,Property Maintenance,Ryebank Gypsy Site Uprn 841001,M&E Callout (Eng),25/10/2021,Revenue Expenditure ,Sse Contracting Limited,361.17
West Sussex County Council,Housing Services,Property Maintenance,Ryebank Gypsy Site Uprn 841001,M&E Callout (Eng),25/10/2021,Revenue Expenditure ,Sse Contracting Limited,167.86
West Sussex County Council,Housing Services,Property Maintenance,Ryebank Gypsy Site Uprn 841001,M&E Callout (Eng),25/10/2021,Revenue Expenditure ,Sse Contracting Limited,247.79
West Sussex County Council,Housing Services,Property Maintenance,Ryebank Gypsy Site Uprn 841001,M&E Callout (Eng),25/10/2021,Revenue Expenditure ,Sse Contracting Limited,688.49
West Sussex County Council,Housing Services,Property Maintenance,New Fairplace Hill Caravan Park Uprn 123,M&E Callout (Eng),25/10/2021,Revenue Expenditure ,Sse Contracting Limited,125.18
West Sussex County Council,Housing Services,Property Maintenance,New Fairplace Hill Caravan Park Uprn 123,M&E Callout (Eng),25/10/2021,Revenue Expenditure ,Sse Contracting Limited,125.18
West Sussex County Council,Housing Services,Property Maintenance,New Fairplace Hill Caravan Park Uprn 123,M&E Callout (Eng),25/10/2021,Revenue Expenditure ,Sse Contracting Limited,176.39
West Sussex County Council,Housing Services,Property Maintenance,New Fairplace Hill Caravan Park Uprn 123,M&E Callout (Eng),25/10/2021,Revenue Expenditure ,Sse Contracting Limited,176.39
West Sussex County Council,Housing Services,Property Maintenance,New Fairplace Hill Caravan Park Uprn 123,M&E Servicing (Eng),25/10/2021,Revenue Expenditure ,Sse Contracting Limited,255.99
West Sussex County Council,Housing Services,Property Maintenance,Cousins Copse Caravan Park Uprn 853001,M&E Callout (Eng),25/10/2021,Revenue Expenditure ,Sse Contracting Limited,167.86
West Sussex County Council,Highways & Transport Services,Property Maintenance,Pookbourne Lane Depot Uprn 948001,M&E Callout (Eng),25/10/2021,Revenue Expenditure ,Sse Contracting Limited,302.58
West Sussex County Council,Highways & Transport Services,Property Maintenance,Broadbridge Heath Wrks Depot Uprn 751001,M&E Callout (Eng),25/10/2021,Revenue Expenditure ,Sse Contracting Limited,113.8
West Sussex County Council,Children Social Care,Property Maintenance,Broadfield Cfc Uprn 1082001,Reactive Maintenance,21/10/2021,Revenue Expenditure ,Wessex Window Systems Plc,6601.38
West Sussex County Council,Children Social Care,Property Maintenance,Tree House Cfc - Uprn 1131001,M&E Servicing (Eng),25/10/2021,Revenue Expenditure ,Sse Contracting Limited,215.15
West Sussex County Council,Children Social Care,Property Maintenance,Selsey Cfc - Uprn 1135001,M&E Servicing (Eng),25/10/2021,Revenue Expenditure ,Sse Contracting Limited,147.94
West Sussex County Council,Children Social Care,Property Maintenance,Northgate Cfc - Uprn 1163001,M&E Callout (Eng),25/10/2021,Revenue Expenditure ,Sse Contracting Limited,142.94
West Sussex County Council,Children Social Care,Property Maintenance,Langley Green Cfc - Uprn 1170001,M&E Servicing (Eng),25/10/2021,Revenue Expenditure ,Sse Contracting Limited,731.4
West Sussex County Council,Children Social Care,Property Maintenance,Kingston Buci Cfc- Uprn 354002,M&E Callout (Eng),25/10/2021,Revenue Expenditure ,Sse Contracting Limited,153.63
West Sussex County Council,Children Social Care,Property Maintenance,Footprintscfc Crescent Rd - Uprn 1066001,M&E Callout (Eng),25/10/2021,Revenue Expenditure ,Sse Contracting Limited,306.96
West Sussex County Council,Children Social Care,Property Maintenance,East Preston Cfc - Uprn 1177001,M&E Callout (Eng),25/10/2021,Revenue Expenditure ,Sse Contracting Limited,950.23
West Sussex County Council,Children Social Care,Property Maintenance,Broadfield Cfc Uprn 1082001,M&E Servicing (Eng),25/10/2021,Revenue Expenditure ,Sse Contracting Limited,218.5
West Sussex County Council,Children Social Care,Property Maintenance,Broadfield Cfc Uprn 1082001,M&E Callout (Eng),25/10/2021,Revenue Expenditure ,Sse Contracting Limited,323.47
West Sussex County Council,Cultural & Related Services,Library Service,Chichester Library Uprn 969001,Reactive Maintenance,01/10/2021,Revenue Expenditure ,Falcon Homes (Sussex) Ltd,2495
West Sussex County Council,Cultural & Related Services,Library Service,Worthing Library Uprn 44001,M&E Callout (Eng),25/10/2021,Revenue Expenditure ,Sse Contracting Limited,210.53
West Sussex County Council,Cultural & Related Services,Library Service,Worthing Library Uprn 44001,M&E Callout (Eng),25/10/2021,Revenue Expenditure ,Sse Contracting Limited,398.3
West Sussex County Council,Cultural & Related Services,Library Service,Worthing Library Uprn 44001,M&E Callout (Eng),25/10/2021,Revenue Expenditure ,Sse Contracting Limited,612.68
West Sussex County Council,Cultural & Related Services,Library Service,Southwater Library Uprn 1099001,M&E Callout (Eng),25/10/2021,Revenue Expenditure ,Sse Contracting Limited,398.3
West Sussex County Council,Cultural & Related Services,Library Service,Selsey Library Uprn 42001,M&E Servicing (Eng),25/10/2021,Revenue Expenditure ,Sse Contracting Limited,147.94
West Sussex County Council,Cultural & Related Services,Library Service,(New) Burgess Hill Library Uprn 1373001,M&E Callout (Eng),25/10/2021,Revenue Expenditure ,Sse Contracting Limited,401.31
West Sussex County Council,Cultural & Related Services,Library Service,Hurstpierpoint Library Uprn 69001,M&E Servicing (Eng),25/10/2021,Revenue Expenditure ,Sse Contracting Limited,113.8
West Sussex County Council,Cultural & Related Services,Library Service,Horsham Library Uprn 144001,M&E Callout (Eng),25/10/2021,Revenue Expenditure ,Sse Contracting Limited,137.66
West Sussex County Council,Cultural & Related Services,Library Service,Horsham Library Uprn 144001,M&E Callout (Eng),25/10/2021,Revenue Expenditure ,Sse Contracting Limited,1612.08
West Sussex County Council,Cultural & Related Services,Library Service,Horsham Library Uprn 144001,M&E Callout (Eng),25/10/2021,Revenue Expenditure ,Sse Contracting Limited,1436.36
West Sussex County Council,Cultural & Related Services,Library Service,Haywards Heath Library Uprn 66001,M&E Servicing (Eng),25/10/2021,Revenue Expenditure ,Sse Contracting Limited,113.72
West Sussex County Council,Cultural & Related Services,Library Service,East Grinstead Library Uprn 49001,M&E Servicing (Eng),25/10/2021,Revenue Expenditure ,Sse Contracting Limited,161.52
West Sussex County Council,Cultural & Related Services,Library Service,Durrington Library Uprn 68001,M&E Servicing (Eng),25/10/2021,Revenue Expenditure ,Sse Contracting Limited,294.39
West Sussex County Council,Cultural & Related Services,Library Service,Durrington Library Uprn 68001,M&E Servicing (Eng),25/10/2021,Revenue Expenditure ,Sse Contracting Limited,308.29
West Sussex County Council,Cultural & Related Services,Library Service,Crawley Library Uprn 1130001,M&E Callout (Eng),25/10/2021,Revenue Expenditure ,Sse Contracting Limited,710.99
West Sussex County Council,Cultural & Related Services,Library Service,Chichester Library Uprn 969001,M&E Servicing (Eng),25/10/2021,Revenue Expenditure ,Sse Contracting Limited,210.28
West Sussex County Council,Cultural & Related Services,Library Service,Chichester Library Uprn 969001,M&E Servicing (Eng),25/10/2021,Revenue Expenditure ,Sse Contracting Limited,250.36
West Sussex County Council,Cultural & Related Services,Library Service,Broadfield Library Uprn 70001,M&E Callout (Eng),25/10/2021,Revenue Expenditure ,Sse Contracting Limited,119.31
West Sussex County Council,Cultural & Related Services,Library Service,Arundel Library Uprn 609001,M&E Callout (Eng),25/10/2021,Revenue Expenditure ,Sse Contracting Limited,375.74
West Sussex County Council,Cultural & Related Services,Library Service,Angmering Library Uprn47001,M&E Callout (Eng),25/10/2021,Revenue Expenditure ,Sse Contracting Limited,307.12
West Sussex County Council,Fire & Rescue Services,Property Maintenance,Worthing Fire Station Uprn 235001,M&E Callout (Eng),25/10/2021,Revenue Expenditure ,Sse Contracting Limited,125.18
West Sussex County Council,Fire & Rescue Services,Property Maintenance,Worthing Fire Station Uprn 235001,M&E Callout (Eng),25/10/2021,Revenue Expenditure ,Sse Contracting Limited,1230.49
West Sussex County Council,Fire & Rescue Services,Property Maintenance,Worthing Fire Station Uprn 235001,M&E Servicing (Eng),25/10/2021,Revenue Expenditure ,Sse Contracting Limited,345.72
West Sussex County Council,Fire & Rescue Services,Property Maintenance,Storrington Fire Station Uprn 192001,M&E Callout (Eng),25/10/2021,Revenue Expenditure ,Sse Contracting Limited,199.15
West Sussex County Council,Fire & Rescue Services,Property Maintenance,Littlehampton Fire Station Uprn 51001,M&E Callout (Eng),25/10/2021,Revenue Expenditure ,Sse Contracting Limited,199.15
West Sussex County Council,Fire & Rescue Services,Property Maintenance,Littlehampton Fire Station Uprn 51001,M&E Servicing (Eng),25/10/2021,Revenue Expenditure ,Sse Contracting Limited,149.87
West Sussex County Council,Fire & Rescue Services,Property Maintenance,Hurstpierpoint Fire Station Uprn 10001,M&E Callout (Eng),25/10/2021,Revenue Expenditure ,Sse Contracting Limited,1490.01
West Sussex County Council,Fire & Rescue Services,Property Maintenance,Horsham Fire Station Uprn 161001,M&E Servicing (Eng),25/10/2021,Revenue Expenditure ,Sse Contracting Limited,113.09
West Sussex County Council,Fire & Rescue Services,Property Maintenance,Horsham Fire Station Uprn 161001,M&E Callout (Eng),25/10/2021,Revenue Expenditure ,Sse Contracting Limited,386.92
West Sussex County Council,Fire & Rescue Services,Property Maintenance,Horsham Fire Station Uprn 161001,M&E Callout (Eng),25/10/2021,Revenue Expenditure ,Sse Contracting Limited,199.15
West Sussex County Council,Fire & Rescue Services,Property Maintenance,Horley Fire Station Uprn 138001,M&E Servicing (Eng),25/10/2021,Revenue Expenditure ,Sse Contracting Limited,1630.93
West Sussex County Council,Fire & Rescue Services,Property Maintenance,Haywards Heath Fire Station Uprn 54001,M&E Callout (Eng),25/10/2021,Revenue Expenditure ,Sse Contracting Limited,245.99
West Sussex County Council,Fire & Rescue Services,Property Maintenance,East Preston Fire Station Uprn 53001,M&E Callout (Eng),25/10/2021,Revenue Expenditure ,Sse Contracting Limited,211.1
West Sussex County Council,Fire & Rescue Services,Property Maintenance,East Preston Fire Station Uprn 53001,M&E Servicing (Eng),25/10/2021,Revenue Expenditure ,Sse Contracting Limited,449.51
West Sussex County Council,Fire & Rescue Services,Property Maintenance,East Grinstead Fire Station Uprn 19001,M&E Callout (Eng),25/10/2021,Revenue Expenditure ,Sse Contracting Limited,473.41
West Sussex County Council,Fire & Rescue Services,Property Maintenance,Crawley Fire Station Uprn 99001,M&E Callout (Eng),25/10/2021,Revenue Expenditure ,Sse Contracting Limited,275.48
West Sussex County Council,Fire & Rescue Services,Property Maintenance,Crawley Fire Station Uprn 99001,M&E Callout (Eng),25/10/2021,Revenue Expenditure ,Sse Contracting Limited,250.99
West Sussex County Council,Fire & Rescue Services,Property Maintenance,Crawley Fire Station Uprn 99001,M&E Callout (Eng),25/10/2021,Revenue Expenditure ,Sse Contracting Limited,125.18
West Sussex County Council,Fire & Rescue Services,Property Maintenance,Chichester Fire Station Uprn 552001,M&E Servicing (Eng),25/10/2021,Revenue Expenditure ,Sse Contracting Limited,209.96
West Sussex County Council,Fire & Rescue Services,Property Maintenance,Chichester Fire Station Uprn 552001,M&E Callout (Eng),25/10/2021,Revenue Expenditure ,Sse Contracting Limited,156.02
West Sussex County Council,Fire & Rescue Services,Property Maintenance,Chichester Fire Station Uprn 552001,M&E Servicing (Eng),25/10/2021,Revenue Expenditure ,Sse Contracting Limited,199.15
West Sussex County Council,Fire & Rescue Services,Property Maintenance,Burgess Hill Fire Station Uprn 55001,M&E Callout (Eng),25/10/2021,Revenue Expenditure ,Sse Contracting Limited,546.49
West Sussex County Council,Support Service And Management Costs,Property Maintenance,Worthing Hub_Various Afm Works,Furniture & Fittings,01/10/2021,Revenue Expenditure ,P Card Royal Bank Of Scotland Plc,430.31
West Sussex County Council,Support Service And Management Costs,Property Maintenance,Chichester Hub_Various Afm Works,Building Maintenance,01/10/2021,Revenue Expenditure ,P Card Royal Bank Of Scotland Plc,736.2
West Sussex County Council,Support Service And Management Costs,Property Maintenance,Horsham_Various Hub_Afm Works,Gen Client Expenses,01/10/2021,Revenue Expenditure ,P Card Royal Bank Of Scotland Plc,588
West Sussex County Council,Support Service And Management Costs,Property Maintenance,Allstar Fuel Cards,Vehicle Acquisition,20/10/2021,Revenue Expenditure ,Allstar Business Solutions Ltd,770.84
West Sussex County Council,Support Service And Management Costs,Property Maintenance,Asbestos - Corporate Remedials,Serv Funded Impmt's,26/10/2021,Revenue Expenditure ,R H Insulation Services Ltd,1162
West Sussex County Council,Support Service And Management Costs,Property Maintenance,Asbestos - Corporate Remedials,Serv Funded Impmt's,29/10/2021,Revenue Expenditure ,Economic Insulations (Portsmouth) L,1120
West Sussex County Council,Support Service And Management Costs,Property Maintenance,Asbestos H&S Works Only,Serv Funded Impmt's,29/10/2021,Revenue Expenditure ,Perry Analytical Ltd,2285
West Sussex County Council,Support Service And Management Costs,Property Maintenance,Asbestos H&S Works Only,Serv Funded Impmt's,01/10/2021,Revenue Expenditure ,Economic Insulations (Portsmouth) L,2260
West Sussex County Council,Support Service And Management Costs,Property Maintenance,Asbestos H&S Works Only,Serv Funded Impmt's,12/10/2021,Revenue Expenditure ,Env Surveys Ltd,625
West Sussex County Council,Support Service And Management Costs,Property Maintenance,Asbestos H&S Works Only,Serv Funded Impmt's,12/10/2021,Revenue Expenditure ,Fibre Management Ltd,640
West Sussex County Council,Support Service And Management Costs,Property Maintenance,Asbestos H&S Works Only,Serv Funded Impmt's,07/10/2021,Revenue Expenditure ,Economic Insulations (Portsmouth) L,1255
West Sussex County Council,Support Service And Management Costs,Property Maintenance,Asbestos H&S Works Only,Serv Funded Impmt's,18/10/2021,Revenue Expenditure ,Fibre Management Ltd,450
West Sussex County Council,Support Service And Management Costs,Property Maintenance,Asbestos H&S Works Only,Serv Funded Impmt's,12/10/2021,Revenue Expenditure ,R H Insulation Services Ltd,747
West Sussex County Council,Support Service And Management Costs,Property Maintenance,Asbestos H&S Works Only,Serv Funded Impmt's,29/10/2021,Revenue Expenditure ,Env Surveys Ltd,850
West Sussex County Council,Support Service And Management Costs,Property Maintenance,Asbestos H&S Works Only,Serv Funded Impmt's,20/10/2021,Revenue Expenditure ,R H Insulation Services Ltd,995
West Sussex County Council,Additional Costs Arising From Covid 19,Covid 19 Costs,Facilities Management,Cleaning Contracts,20/10/2021,Revenue Expenditure ,Churchill Contract Services Ltd,1006.46
West Sussex County Council,Additional Costs Arising From Covid 19,Covid 19 Costs,Facilities Management,Cleaning Contracts,20/10/2021,Revenue Expenditure ,Churchill Contract Services Ltd,559.83
West Sussex County Council,Additional Costs Arising From Covid 19,Covid 19 Costs,Facilities Management,Cleaning Contracts,20/10/2021,Revenue Expenditure ,Churchill Contract Services Ltd,421.07
West Sussex County Council,Additional Costs Arising From Covid 19,Covid 19 Costs,Facilities Management,Cleaning Contracts,20/10/2021,Revenue Expenditure ,Churchill Contract Services Ltd,492.06
West Sussex County Council,Additional Costs Arising From Covid 19,Covid 19 Costs,Facilities Management,Cleaning Contracts,20/10/2021,Revenue Expenditure ,Churchill Contract Services Ltd,421.07
West Sussex County Council,Additional Costs Arising From Covid 19,Covid 19 Costs,Facilities Management,Cleaning Contracts,20/10/2021,Revenue Expenditure ,Churchill Contract Services Ltd,1006.46
West Sussex County Council,Additional Costs Arising From Covid 19,Covid 19 Costs,Facilities Management,Cleaning Contracts,20/10/2021,Revenue Expenditure ,Churchill Contract Services Ltd,742.2
West Sussex County Council,Additional Costs Arising From Covid 19,Covid 19 Costs,Facilities Management,Cleaning Contracts,20/10/2021,Revenue Expenditure ,Churchill Contract Services Ltd,1187.52
West Sussex County Council,Additional Costs Arising From Covid 19,Covid 19 Costs,Facilities Management,Cleaning Contracts,20/10/2021,Revenue Expenditure ,Churchill Contract Services Ltd,667.84
West Sussex County Council,Additional Costs Arising From Covid 19,Covid 19 Costs,Facilities Management,Cleaning Contracts,20/10/2021,Revenue Expenditure ,Churchill Contract Services Ltd,1187.52
West Sussex County Council,Additional Costs Arising From Covid 19,Covid 19 Costs,Facilities Management,Cleaning Contracts,20/10/2021,Revenue Expenditure ,Churchill Contract Services Ltd,492.06
West Sussex County Council,Additional Costs Arising From Covid 19,Covid 19 Costs,Facilities Management,Cleaning Contracts,20/10/2021,Revenue Expenditure ,Churchill Contract Services Ltd,559.83
West Sussex County Council,Additional Costs Arising From Covid 19,Covid 19 Costs,Facilities Management,Cleaning Contracts,20/10/2021,Revenue Expenditure ,Churchill Contract Services Ltd,633.86
West Sussex County Council,Additional Costs Arising From Covid 19,Covid 19 Costs,Facilities Management,Cleaning Contracts,20/10/2021,Revenue Expenditure ,Churchill Contract Services Ltd,792.33
West Sussex County Council,Additional Costs Arising From Covid 19,Covid 19 Costs,Ppe Storage,Delegated Maintenanc,04/10/2021,Revenue Expenditure ,Howell Transport & Haulage Ltd,550
West Sussex County Council,Additional Costs Arising From Covid 19,Covid 19 Costs,Facilities Management,Cleaning Contracts,22/10/2021,Revenue Expenditure ,Churchill Contract Services Ltd,492.06
West Sussex County Council,Additional Costs Arising From Covid 19,Covid 19 Costs,Facilities Management,Cleaning Contracts,22/10/2021,Revenue Expenditure ,Churchill Contract Services Ltd,421.07
West Sussex County Council,Additional Costs Arising From Covid 19,Covid 19 Costs,Facilities Management,Cleaning Contracts,22/10/2021,Revenue Expenditure ,Churchill Contract Services Ltd,1006.46
West Sussex County Council,Additional Costs Arising From Covid 19,Covid 19 Costs,Facilities Management,Cleaning Contracts,22/10/2021,Revenue Expenditure ,Churchill Contract Services Ltd,559.83
West Sussex County Council,Additional Costs Arising From Covid 19,Covid 19 Costs,Facilities Management,Cleaning Contracts,22/10/2021,Revenue Expenditure ,Churchill Contract Services Ltd,492.06
West Sussex County Council,Additional Costs Arising From Covid 19,Covid 19 Costs,Facilities Management,Cleaning Contracts,22/10/2021,Revenue Expenditure ,Churchill Contract Services Ltd,559.83
West Sussex County Council,Additional Costs Arising From Covid 19,Covid 19 Costs,Facilities Management,Cleaning Contracts,22/10/2021,Revenue Expenditure ,Churchill Contract Services Ltd,421.07
West Sussex County Council,Additional Costs Arising From Covid 19,Covid 19 Costs,Inf Cont 21/22- Admin Costs,Pay - Agency Staff,08/10/2021,Revenue Expenditure ,Matrix Scm Limited,504
West Sussex County Council,Additional Costs Arising From Covid 19,Covid 19 Costs,Travel Demand Management,Coach: Contract Hire,14/10/2021,Revenue Expenditure ,Wsp Uk Ltd,13750.88
West Sussex County Council,Additional Costs Arising From Covid 19,Covid 19 Costs,Highways - Local Operations,Pyt Main Contractor,13/10/2021,Revenue Expenditure ,Balfour Beatty Living Places Ltd,18938.04
West Sussex County Council,Additional Costs Arising From Covid 19,Covid 19 Costs,Travel Demand Management,Coach: Contract Hire,22/10/2021,Revenue Expenditure ,Wsp Uk Ltd,8196.13
West Sussex County Council,Additional Costs Arising From Covid 19,Covid 19 Costs,"Atf � River Road, Littlehampton",Consultants Fees,22/10/2021,Revenue Expenditure ,Wsp Uk Ltd,568.87
West Sussex County Council,Additional Costs Arising From Covid 19,Covid 19 Costs,"�	Promotion Monitoring And Evaluation",Professional Service,28/10/2021,Revenue Expenditure ,Vivacity Labs Limited,12480
West Sussex County Council,Additional Costs Arising From Covid 19,Covid 19 Costs,Covid Winter Grant Scheme,General Provisions,22/10/2021,Revenue Expenditure ,Edenred Uk Group Ltd,18025
West Sussex County Council,Additional Costs Arising From Covid 19,Covid 19 Costs,Adult Social Care - Additional Demand,Furniture & Fittings,19/10/2021,Revenue Expenditure ,Kardinal Healthcare Ltd,550
West Sussex County Council,Additional Costs Arising From Covid 19,Covid 19 Costs,Extra Care D2A,Rates,25/10/2021,Revenue Expenditure ,Crawley Borough Council,1618.58
West Sussex County Council,Additional Costs Arising From Covid 19,Covid 19 Costs,Extra Care D2A,Rates,25/10/2021,Revenue Expenditure ,Crawley Borough Council,1630.39
West Sussex County Council,Additional Costs Arising From Covid 19,Covid 19 Costs,Extra Care D2A,Rates,25/10/2021,Revenue Expenditure ,Crawley Borough Council,1630.39
West Sussex County Council,Additional Costs Arising From Covid 19,Covid 19 Costs,Extra Care D2A,Rates,25/10/2021,Revenue Expenditure ,Crawley Borough Council,1646.14
West Sussex County Council,Additional Costs Arising From Covid 19,Covid 19 Costs,Extra Care D2A,Rates,25/10/2021,Revenue Expenditure ,Crawley Borough Council,1760.31
West Sussex County Council,Additional Costs Arising From Covid 19,Covid 19 Costs,Seven Day Working - Agency Costs,Pay - AgcyStff-Care,01/10/2021,Revenue Expenditure ,Matrix Scm Limited,1292.04
West Sussex County Council,Additional Costs Arising From Covid 19,Covid 19 Costs,Seven Day Working - Agency Costs,Pay - AgcyStff-Care,01/10/2021,Revenue Expenditure ,Matrix Scm Limited,1236.82
West Sussex County Council,Additional Costs Arising From Covid 19,Covid 19 Costs,Seven Day Working - Agency Costs,Pay - AgcyStff-Care,01/10/2021,Revenue Expenditure ,Matrix Scm Limited,977.09
West Sussex County Council,Additional Costs Arising From Covid 19,Covid 19 Costs,Seven Day Working - Agency Costs,Pay - AgcyStff-Care,01/10/2021,Revenue Expenditure ,Matrix Scm Limited,1292.11
West Sussex County Council,Additional Costs Arising From Covid 19,Covid 19 Costs,Seven Day Working - Agency Costs,Pay - AgcyStff-Care,01/10/2021,Revenue Expenditure ,Matrix Scm Limited,1375.94
West Sussex County Council,Additional Costs Arising From Covid 19,Covid 19 Costs,Seven Day Working - Agency Costs,Pay - AgcyStff-Care,01/10/2021,Revenue Expenditure ,Matrix Scm Limited,1447.78
West Sussex County Council,Additional Costs Arising From Covid 19,Covid 19 Costs,Seven Day Working - Agency Costs,Pay - AgcyStff-Care,08/10/2021,Revenue Expenditure ,Matrix Scm Limited,1292.04
West Sussex County Council,Additional Costs Arising From Covid 19,Covid 19 Costs,Seven Day Working - Agency Costs,Pay - AgcyStff-Care,08/10/2021,Revenue Expenditure ,Matrix Scm Limited,1366.04
West Sussex County Council,Additional Costs Arising From Covid 19,Covid 19 Costs,Seven Day Working - Agency Costs,Pay - AgcyStff-Care,08/10/2021,Revenue Expenditure ,Matrix Scm Limited,1052.22
West Sussex County Council,Additional Costs Arising From Covid 19,Covid 19 Costs,Seven Day Working - Agency Costs,Pay - AgcyStff-Care,08/10/2021,Revenue Expenditure ,Matrix Scm Limited,1471.66
West Sussex County Council,Additional Costs Arising From Covid 19,Covid 19 Costs,Seven Day Working - Agency Costs,Pay - AgcyStff-Care,08/10/2021,Revenue Expenditure ,Matrix Scm Limited,1375.94
West Sussex County Council,Additional Costs Arising From Covid 19,Covid 19 Costs,Seven Day Working - Agency Costs,Pay - AgcyStff-Care,08/10/2021,Revenue Expenditure ,Matrix Scm Limited,1213.44
West Sussex County Council,Additional Costs Arising From Covid 19,Covid 19 Costs,Seven Day Working - Agency Costs,Pay - AgcyStff-Care,08/10/2021,Revenue Expenditure ,Matrix Scm Limited,1159.5
West Sussex County Council,Additional Costs Arising From Covid 19,Covid 19 Costs,Hospital Discharge Contracts,Homecare: Block Cont,01/10/2021,Revenue Expenditure ,Assist Care Group Ltd,9248
West Sussex County Council,Additional Costs Arising From Covid 19,Covid 19 Costs,Hospital Discharge Contracts,Homecare: Block Cont,01/10/2021,Revenue Expenditure ,Assist Care Group Ltd,6936
West Sussex County Council,Additional Costs Arising From Covid 19,Covid 19 Costs,Seven Day Working - Agency Costs,Pay - AgcyStff-Care,15/10/2021,Revenue Expenditure ,Matrix Scm Limited,1292.04
West Sussex County Council,Additional Costs Arising From Covid 19,Covid 19 Costs,Seven Day Working - Agency Costs,Pay - AgcyStff-Care,15/10/2021,Revenue Expenditure ,Matrix Scm Limited,1366.04
West Sussex County Council,Additional Costs Arising From Covid 19,Covid 19 Costs,Seven Day Working - Agency Costs,Pay - AgcyStff-Care,15/10/2021,Revenue Expenditure ,Matrix Scm Limited,526.72
West Sussex County Council,Additional Costs Arising From Covid 19,Covid 19 Costs,Seven Day Working - Agency Costs,Pay - AgcyStff-Care,15/10/2021,Revenue Expenditure ,Matrix Scm Limited,518.49
West Sussex County Council,Additional Costs Arising From Covid 19,Covid 19 Costs,Seven Day Working - Agency Costs,Pay - AgcyStff-Care,15/10/2021,Revenue Expenditure ,Matrix Scm Limited,1181.44
West Sussex County Council,Additional Costs Arising From Covid 19,Covid 19 Costs,Seven Day Working - Agency Costs,Pay - AgcyStff-Care,15/10/2021,Revenue Expenditure ,Matrix Scm Limited,1511.33
West Sussex County Council,Additional Costs Arising From Covid 19,Covid 19 Costs,Seven Day Working - Agency Costs,Pay - AgcyStff-Care,15/10/2021,Revenue Expenditure ,Matrix Scm Limited,1375.94
West Sussex County Council,Additional Costs Arising From Covid 19,Covid 19 Costs,Seven Day Working - Agency Costs,Pay - AgcyStff-Care,15/10/2021,Revenue Expenditure ,Matrix Scm Limited,1516.8
West Sussex County Council,Additional Costs Arising From Covid 19,Covid 19 Costs,Seven Day Working - Agency Costs,Pay - AgcyStff-Care,15/10/2021,Revenue Expenditure ,Matrix Scm Limited,1159.5
West Sussex County Council,Additional Costs Arising From Covid 19,Covid 19 Costs,Hospital Discharge Contracts,Homecare: Block Cont,12/10/2021,Revenue Expenditure ,Horsham & Crawley Care Ltd,1297.8
West Sussex County Council,Additional Costs Arising From Covid 19,Covid 19 Costs,Hospital Discharge Contracts,Homecare: Block Cont,12/10/2021,Revenue Expenditure ,Classic Care Services Ltd,5985
West Sussex County Council,Additional Costs Arising From Covid 19,Covid 19 Costs,Hospital Discharge Contracts,Homecare: Block Cont,15/10/2021,Revenue Expenditure ,Horsham & Crawley Care Ltd,2163
West Sussex County Council,Additional Costs Arising From Covid 19,Covid 19 Costs,Seven Day Working - Agency Costs,Pay - AgcyStff-Care,22/10/2021,Revenue Expenditure ,Matrix Scm Limited,1375.61
West Sussex County Council,Additional Costs Arising From Covid 19,Covid 19 Costs,Seven Day Working - Agency Costs,Pay - AgcyStff-Care,22/10/2021,Revenue Expenditure ,Matrix Scm Limited,991.8
West Sussex County Council,Additional Costs Arising From Covid 19,Covid 19 Costs,Seven Day Working - Agency Costs,Pay - AgcyStff-Care,22/10/2021,Revenue Expenditure ,Matrix Scm Limited,1443.43
West Sussex County Council,Additional Costs Arising From Covid 19,Covid 19 Costs,Seven Day Working - Agency Costs,Pay - AgcyStff-Care,22/10/2021,Revenue Expenditure ,Matrix Scm Limited,966.96
West Sussex County Council,Additional Costs Arising From Covid 19,Covid 19 Costs,Seven Day Working - Agency Costs,Pay - AgcyStff-Care,22/10/2021,Revenue Expenditure ,Matrix Scm Limited,1254.13
West Sussex County Council,Additional Costs Arising From Covid 19,Covid 19 Costs,Seven Day Working - Agency Costs,Pay - AgcyStff-Care,29/10/2021,Revenue Expenditure ,Matrix Scm Limited,1390.46
West Sussex County Council,Additional Costs Arising From Covid 19,Covid 19 Costs,Seven Day Working - Agency Costs,Pay - AgcyStff-Care,29/10/2021,Revenue Expenditure ,Matrix Scm Limited,1004.4
West Sussex County Council,Additional Costs Arising From Covid 19,Covid 19 Costs,Seven Day Working - Agency Costs,Pay - AgcyStff-Care,29/10/2021,Revenue Expenditure ,Matrix Scm Limited,1379.97
West Sussex County Council,Additional Costs Arising From Covid 19,Covid 19 Costs,Seven Day Working - Agency Costs,Pay - AgcyStff-Care,29/10/2021,Revenue Expenditure ,Matrix Scm Limited,1386.18
West Sussex County Council,Additional Costs Arising From Covid 19,Covid 19 Costs,Seven Day Working - Agency Costs,Pay - AgcyStff-Care,29/10/2021,Revenue Expenditure ,Matrix Scm Limited,1175.52
West Sussex County Council,Additional Costs Arising From Covid 19,Covid 19 Costs,Seven Day Working - Agency Costs,Pay - AgcyStff-Care,29/10/2021,Revenue Expenditure ,Matrix Scm Limited,1179.4
West Sussex County Council,Additional Costs Arising From Covid 19,Covid 19 Costs,Hospital Discharge Contracts,Homecare: Block Cont,27/10/2021,Revenue Expenditure ,Care Outlook Ltd,4868.68
West Sussex County Council,Additional Costs Arising From Covid 19,Covid 19 Costs,Hospital Discharge Contracts,Homecare: Block Cont,27/10/2021,Revenue Expenditure ,Care Outlook Ltd,6488.14
West Sussex County Council,Additional Costs Arising From Covid 19,Covid 19 Costs,Household Support Fund Fsm,General Provisions,27/10/2021,Revenue Expenditure ,Edenred Uk Group Ltd,66000
West Sussex County Council,Additional Costs Arising From Covid 19,Covid 19 Costs,Household Support Fund Fsm,General Provisions,27/10/2021,Revenue Expenditure ,Wonde Ltd,244000
West Sussex County Council,Additional Costs Arising From Covid 19,Covid 19 Costs,Communities,Pay - Agency Staff,01/10/2021,Revenue Expenditure ,Matrix Scm Limited,1454.48
West Sussex County Council,Additional Costs Arising From Covid 19,Covid 19 Costs,Extremely Clinically Vulnerable,Computer Maintenance,22/10/2021,Revenue Expenditure ,Capita Business Services Ltd,998.48
West Sussex County Council,Additional Costs Arising From Covid 19,Covid 19 Costs,Communities,Pay - Agency Staff,08/10/2021,Revenue Expenditure ,Matrix Scm Limited,1584.21
West Sussex County Council,Additional Costs Arising From Covid 19,Covid 19 Costs,Communities,Pay - Agency Staff,15/10/2021,Revenue Expenditure ,Matrix Scm Limited,1454.47
West Sussex County Council,Additional Costs Arising From Covid 19,Covid 19 Costs,Communities,Pay - Agency Staff,22/10/2021,Revenue Expenditure ,Matrix Scm Limited,1159.66
West Sussex County Council,Additional Costs Arising From Covid 19,Covid 19 Costs,Communities,Pay - Agency Staff,29/10/2021,Revenue Expenditure ,Matrix Scm Limited,1454.49
West Sussex County Council,Additional Costs Arising From Covid 19,Covid 19 Costs,Chief Fire And Rescue Services,Pay - Agency Staff,01/10/2021,Revenue Expenditure ,Matrix Scm Limited,512.47
West Sussex County Council,Additional Costs Arising From Covid 19,Covid 19 Costs,Chief Fire And Rescue Services,Pay - Agency Staff,01/10/2021,Revenue Expenditure ,Matrix Scm Limited,506.55
West Sussex County Council,Additional Costs Arising From Covid 19,Covid 19 Costs,Chief Fire And Rescue Services,Pay - Agency Staff,08/10/2021,Revenue Expenditure ,Matrix Scm Limited,506.55
West Sussex County Council,Additional Costs Arising From Covid 19,Covid 19 Costs,Chief Fire And Rescue Services,Pay - Agency Staff,08/10/2021,Revenue Expenditure ,Matrix Scm Limited,311.64
West Sussex County Council,Additional Costs Arising From Covid 19,Covid 19 Costs,Chief Fire And Rescue Services,Pay - Agency Staff,15/10/2021,Revenue Expenditure ,Matrix Scm Limited,506.55
West Sussex County Council,Additional Costs Arising From Covid 19,Covid 19 Costs,Chief Fire And Rescue Services,Pay - Agency Staff,15/10/2021,Revenue Expenditure ,Matrix Scm Limited,408.59
West Sussex County Council,Additional Costs Arising From Covid 19,Covid 19 Costs,Chief Fire And Rescue Services,Pay - Agency Staff,22/10/2021,Revenue Expenditure ,Matrix Scm Limited,520.24
West Sussex County Council,Additional Costs Arising From Covid 19,Covid 19 Costs,Chief Fire And Rescue Services,Pay - Agency Staff,22/10/2021,Revenue Expenditure ,Matrix Scm Limited,512.47
West Sussex County Council,Additional Costs Arising From Covid 19,Covid 19 Costs,Chief Fire And Rescue Services,Ctrct Hire Plnt/Mach,18/10/2021,Revenue Expenditure ,Enterprise Flex E Rent,651
West Sussex County Council,Additional Costs Arising From Covid 19,Covid 19 Costs,Chief Fire And Rescue Services,Ctrct Hire Plnt/Mach,18/10/2021,Revenue Expenditure ,Enterprise Flex E Rent,540.29
West Sussex County Council,Additional Costs Arising From Covid 19,Covid 19 Costs,Chief Fire And Rescue Services,Ctrct Hire Plnt/Mach,20/10/2021,Revenue Expenditure ,Enterprise Flex E Rent,630
West Sussex County Council,Additional Costs Arising From Covid 19,Covid 19 Costs,Chief Fire And Rescue Services,Pay - Agency Staff,29/10/2021,Revenue Expenditure ,Matrix Scm Limited,506.55
West Sussex County Council,Additional Costs Arising From Covid 19,Covid 19 Costs,Chief Fire And Rescue Services,Pay - Agency Staff,29/10/2021,Revenue Expenditure ,Matrix Scm Limited,512.47
West Sussex County Council,Additional Costs Arising From Covid 19,Covid 19 Costs,Test And Trace Service,Staff Recruitment,06/10/2021,Revenue Expenditure ,Baltimore Consulting Ltd,1053
West Sussex County Council,Additional Costs Arising From Covid 19,Covid 19 Costs,Public Health,Pay - Agency Staff,01/10/2021,Revenue Expenditure ,Matrix Scm Limited,910
West Sussex County Council,Additional Costs Arising From Covid 19,Covid 19 Costs,Additional Social Care Staff - Add Wload,Pay - AgcyStff-Care,01/10/2021,Revenue Expenditure ,Matrix Scm Limited,2022.28
West Sussex County Council,Additional Costs Arising From Covid 19,Covid 19 Costs,Additional Social Care Staff - Add Wload,Pay - AgcyStff-Care,01/10/2021,Revenue Expenditure ,Matrix Scm Limited,1287.6
West Sussex County Council,Additional Costs Arising From Covid 19,Covid 19 Costs,Public Health,Pay - Agency Staff,01/10/2021,Revenue Expenditure ,Matrix Scm Limited,2505.2
West Sussex County Council,Additional Costs Arising From Covid 19,Covid 19 Costs,Additional Social Care Staff - Add Wload,Pay - AgcyStff-Care,01/10/2021,Revenue Expenditure ,Matrix Scm Limited,1654.78
West Sussex County Council,Additional Costs Arising From Covid 19,Covid 19 Costs,Public Health,Pay - Agency Staff,01/10/2021,Revenue Expenditure ,Matrix Scm Limited,3992.7
West Sussex County Council,Additional Costs Arising From Covid 19,Covid 19 Costs,Public Health,Pay - Agency Staff,01/10/2021,Revenue Expenditure ,Matrix Scm Limited,2643.12
West Sussex County Council,Additional Costs Arising From Covid 19,Covid 19 Costs,Additional Social Care Staff - Add Wload,Pay - AgcyStff-Care,01/10/2021,Revenue Expenditure ,Matrix Scm Limited,1804.86
West Sussex County Council,Additional Costs Arising From Covid 19,Covid 19 Costs,Additional Social Care Staff - Add Wload,Pay - AgcyStff-Care,01/10/2021,Revenue Expenditure ,Matrix Scm Limited,1773.04
West Sussex County Council,Additional Costs Arising From Covid 19,Covid 19 Costs,Public Health,Pay - Agency Staff,01/10/2021,Revenue Expenditure ,Matrix Scm Limited,2148.12
West Sussex County Council,Additional Costs Arising From Covid 19,Covid 19 Costs,Yes Service Support,Pay - Agency Staff,08/10/2021,Revenue Expenditure ,Matrix Scm Limited,647.17
West Sussex County Council,Additional Costs Arising From Covid 19,Covid 19 Costs,Yes Service Support,Pay - Agency Staff,08/10/2021,Revenue Expenditure ,Matrix Scm Limited,627.07
West Sussex County Council,Additional Costs Arising From Covid 19,Covid 19 Costs,Public Health,Pay - Agency Staff,08/10/2021,Revenue Expenditure ,Matrix Scm Limited,2148.12
West Sussex County Council,Additional Costs Arising From Covid 19,Covid 19 Costs,Public Health,Pay - Agency Staff,08/10/2021,Revenue Expenditure ,Matrix Scm Limited,2643.12
West Sussex County Council,Additional Costs Arising From Covid 19,Covid 19 Costs,Public Health,Pay - Agency Staff,08/10/2021,Revenue Expenditure ,Matrix Scm Limited,4053
West Sussex County Council,Additional Costs Arising From Covid 19,Covid 19 Costs,Public Health,Pay - Agency Staff,08/10/2021,Revenue Expenditure ,Matrix Scm Limited,910
West Sussex County Council,Additional Costs Arising From Covid 19,Covid 19 Costs,Additional Social Care Staff - Add Wload,Pay - AgcyStff-Care,08/10/2021,Revenue Expenditure ,Matrix Scm Limited,1773.04
West Sussex County Council,Additional Costs Arising From Covid 19,Covid 19 Costs,Additional Social Care Staff - Add Wload,Pay - AgcyStff-Care,08/10/2021,Revenue Expenditure ,Matrix Scm Limited,2203.23
West Sussex County Council,Additional Costs Arising From Covid 19,Covid 19 Costs,Additional Social Care Staff - Add Wload,Pay - AgcyStff-Care,08/10/2021,Revenue Expenditure ,Matrix Scm Limited,1682.04
West Sussex County Council,Additional Costs Arising From Covid 19,Covid 19 Costs,Additional Social Care Staff - Add Wload,Pay - AgcyStff-Care,15/10/2021,Revenue Expenditure ,Matrix Scm Limited,1514.04
West Sussex County Council,Additional Costs Arising From Covid 19,Covid 19 Costs,Additional Social Care Staff - Add Wload,Pay - AgcyStff-Care,15/10/2021,Revenue Expenditure ,Matrix Scm Limited,1773.04
West Sussex County Council,Additional Costs Arising From Covid 19,Covid 19 Costs,Additional Social Care Staff - Add Wload,Pay - AgcyStff-Care,15/10/2021,Revenue Expenditure ,Matrix Scm Limited,2203.23
West Sussex County Council,Additional Costs Arising From Covid 19,Covid 19 Costs,Yes Service Support,Pay - Agency Staff,15/10/2021,Revenue Expenditure ,Matrix Scm Limited,652.84
West Sussex County Council,Additional Costs Arising From Covid 19,Covid 19 Costs,Yes Service Support,Pay - Agency Staff,15/10/2021,Revenue Expenditure ,Matrix Scm Limited,540.78
West Sussex County Council,Additional Costs Arising From Covid 19,Covid 19 Costs,Public Health,Advertis'g/Publicity,11/10/2021,Revenue Expenditure ,Clear Channel Uk Ltd,540.4
West Sussex County Council,Additional Costs Arising From Covid 19,Covid 19 Costs,Public Health,Pay - Agency Staff,22/10/2021,Revenue Expenditure ,Matrix Scm Limited,2505.2
West Sussex County Council,Additional Costs Arising From Covid 19,Covid 19 Costs,Public Health,Pay - Agency Staff,22/10/2021,Revenue Expenditure ,Matrix Scm Limited,2505.2
West Sussex County Council,Additional Costs Arising From Covid 19,Covid 19 Costs,Public Health,Pay - Agency Staff,22/10/2021,Revenue Expenditure ,Matrix Scm Limited,2643.12
West Sussex County Council,Additional Costs Arising From Covid 19,Covid 19 Costs,Public Health,Pay - Agency Staff,22/10/2021,Revenue Expenditure ,Matrix Scm Limited,2643.12
West Sussex County Council,Additional Costs Arising From Covid 19,Covid 19 Costs,Public Health,Pay - Agency Staff,22/10/2021,Revenue Expenditure ,Matrix Scm Limited,3992.7
West Sussex County Council,Additional Costs Arising From Covid 19,Covid 19 Costs,Public Health,Pay - Agency Staff,22/10/2021,Revenue Expenditure ,Matrix Scm Limited,4020.54
West Sussex County Council,Additional Costs Arising From Covid 19,Covid 19 Costs,Additional Social Care Staff - Add Wload,Pay - AgcyStff-Care,22/10/2021,Revenue Expenditure ,Matrix Scm Limited,818.4
West Sussex County Council,Additional Costs Arising From Covid 19,Covid 19 Costs,Additional Social Care Staff - Add Wload,Pay - AgcyStff-Care,22/10/2021,Revenue Expenditure ,Matrix Scm Limited,1770.58
West Sussex County Council,Additional Costs Arising From Covid 19,Covid 19 Costs,Additional Social Care Staff - Add Wload,Pay - AgcyStff-Care,22/10/2021,Revenue Expenditure ,Matrix Scm Limited,1991.73
West Sussex County Council,Additional Costs Arising From Covid 19,Covid 19 Costs,Additional Social Care Staff - Add Wload,Pay - AgcyStff-Care,22/10/2021,Revenue Expenditure ,Matrix Scm Limited,643.8
West Sussex County Council,Additional Costs Arising From Covid 19,Covid 19 Costs,Additional Social Care Staff - Add Wload,Pay - AgcyStff-Care,22/10/2021,Revenue Expenditure ,Matrix Scm Limited,1362.33
West Sussex County Council,Additional Costs Arising From Covid 19,Covid 19 Costs,Public Health,Pay - Agency Staff,29/10/2021,Revenue Expenditure ,Matrix Scm Limited,3580.2
West Sussex County Council,Additional Costs Arising From Covid 19,Covid 19 Costs,Public Health,Pay - Agency Staff,29/10/2021,Revenue Expenditure ,Matrix Scm Limited,2148.12
West Sussex County Council,Additional Costs Arising From Covid 19,Covid 19 Costs,Public Health,Pay - Agency Staff,29/10/2021,Revenue Expenditure ,Matrix Scm Limited,2505.2
West Sussex County Council,Additional Costs Arising From Covid 19,Covid 19 Costs,Public Health,Pay - Agency Staff,29/10/2021,Revenue Expenditure ,Matrix Scm Limited,3317.79
West Sussex County Council,Additional Costs Arising From Covid 19,Covid 19 Costs,Additional Social Care Staff - Add Wload,Pay - AgcyStff-Care,29/10/2021,Revenue Expenditure ,Matrix Scm Limited,1227.6
West Sussex County Council,Additional Costs Arising From Covid 19,Covid 19 Costs,Additional Social Care Staff - Add Wload,Pay - AgcyStff-Care,29/10/2021,Revenue Expenditure ,Matrix Scm Limited,1766.77
West Sussex County Council,Additional Costs Arising From Covid 19,Covid 19 Costs,Additional Social Care Staff - Add Wload,Pay - AgcyStff-Care,29/10/2021,Revenue Expenditure ,Matrix Scm Limited,2073.71
West Sussex County Council,Additional Costs Arising From Covid 19,Covid 19 Costs,Additional Social Care Staff - Add Wload,Pay - AgcyStff-Care,29/10/2021,Revenue Expenditure ,Matrix Scm Limited,1612.65
West Sussex County Council,Additional Costs Arising From Covid 19,Covid 19 Costs,Yes Service Support,Pay - Agency Staff,29/10/2021,Revenue Expenditure ,Matrix Scm Limited,687.2
West Sussex County Council,Additional Costs Arising From Covid 19,Covid 19 Costs,Yes Service Support,Pay - Agency Staff,29/10/2021,Revenue Expenditure ,Matrix Scm Limited,644.25
West Sussex County Council,Additional Costs Arising From Covid 19,Covid 19 Costs,Yes Service Support,Pay - Agency Staff,29/10/2021,Revenue Expenditure ,Matrix Scm Limited,3027.7
West Sussex County Council,Additional Costs Arising From Covid 19,Covid 19 Costs,Yes Service Support,Pay - Agency Staff,29/10/2021,Revenue Expenditure ,Matrix Scm Limited,700.36
West Sussex County Council,Additional Costs Arising From Covid 19,Covid 19 Costs,Yes Service Support,Pay - Agency Staff,29/10/2021,Revenue Expenditure ,Matrix Scm Limited,664.9
West Sussex County Council,Planning & Development Services,Community Development,Community Ops Budget Dr,Delegated Maintenanc,01/10/2021,Revenue Expenditure ,P Card Royal Bank Of Scotland Plc,447.73
West Sussex County Council,Education Services,School Capital Works,Order_Southbourne Infant School,Pymnts-main contr.,05/10/2021,Capital Expenditure,Economic Insulations (Portsmouth) L,620
West Sussex County Council,Education Services,School Capital Works,Order_Downlands School,Pymnts-main contr.,27/10/2021,Capital Expenditure,Sse Contracting Limited,51797.98
West Sussex County Council,Education Services,School Capital Works,Order_Sompting Village Cchool,Pymnts-main contr.,27/10/2021,Capital Expenditure,European Asbestos Services Ltd,2929.5
West Sussex County Council,Support Service And Management Costs,Capital Works,Order_Jessie Young Husband Ps,Pymnts-main contr.,29/10/2021,Capital Expenditure,Sse Contracting Limited,7382.04
West Sussex County Council,Education Services,School Capital Works,Order_Field Place Infant School,Pymnts-main contr.,21/10/2021,Capital Expenditure,Fibre Management Ltd,1340
West Sussex County Council,Education Services,School Capital Works,Order_Littlehaven Infant School,Pymnts-main contr.,15/10/2021,Capital Expenditure,European Asbestos Services Ltd,4125.5
West Sussex County Council,Education Services,School Capital Works,Order_Warnham Primary School,Pymnts-main contr.,08/10/2021,Capital Expenditure,Economic Insulations (Portsmouth) L,635
West Sussex County Council,Support Service And Management Costs,Capital Works,M&E,Pymnts-main contr.,19/10/2021,Capital Expenditure,Sse Contracting Limited,10335.96
West Sussex County Council,Support Service And Management Costs,Capital Works,M&E,Pymnts-main contr.,29/10/2021,Capital Expenditure,Sse Contracting Limited,3510.73
West Sussex County Council,Support Service And Management Costs,Capital Works,Asbestos Analyst,Pymnts-main contr.,29/10/2021,Capital Expenditure,Fibre Management Ltd,1455
West Sussex County Council,Support Service And Management Costs,Capital Works,Building,Pymnts-main contr.,22/10/2021,Capital Expenditure,Blue Building Contractors Ltd,3742
West Sussex County Council,Support Service And Management Costs,Capital Works,Asbestos Works,Pymnts-main contr.,29/10/2021,Capital Expenditure,Economic Insulations (Portsmouth) L,3435
West Sussex County Council,Support Service And Management Costs,Capital Works,M&E,Pymnts-main contr.,22/10/2021,Capital Expenditure,Sse Contracting Limited,12323
West Sussex County Council,Support Service And Management Costs,Capital Works,M&E,Pymnts-main contr.,22/10/2021,Capital Expenditure,Sse Contracting Limited,121989
West Sussex County Council,Support Service And Management Costs,Capital Works,M&E,Pymnts-main contr.,15/10/2021,Capital Expenditure,Sse Contracting Limited,20113.04
West Sussex County Council,Support Service And Management Costs,Capital Works,M&E,Pymnts-main contr.,26/10/2021,Capital Expenditure,Sse Contracting Limited,96751.27
West Sussex County Council,Support Service And Management Costs,Capital Works,Asbestos Analyst,Pymnts-main contr.,15/10/2021,Capital Expenditure,Fibre Management Ltd,1890
West Sussex County Council,Support Service And Management Costs,Capital Works,M&E,Pymnts-main contr.,22/10/2021,Capital Expenditure,Sse Contracting Limited,206228.25
West Sussex County Council,Support Service And Management Costs,Capital Works,M&E,Pymnts-main contr.,22/10/2021,Capital Expenditure,Sse Contracting Limited,215977.77
West Sussex County Council,Support Service And Management Costs,Capital Works,Building,Pymnts-main contr.,13/10/2021,Capital Expenditure,Spindler Builders E&P Ltd,29736.04
West Sussex County Council,Support Service And Management Costs,Capital Works,Building,Pymnts-main contr.,14/10/2021,Capital Expenditure,Spindler Builders E&P Ltd,14945
West Sussex County Council,Support Service And Management Costs,Capital Works,Building,Pymnts-main contr.,19/10/2021,Capital Expenditure,Sse Contracting Limited,53214
West Sussex County Council,Support Service And Management Costs,Capital Works,M&E,Pymnts-main contr.,20/10/2021,Capital Expenditure,Tss Facilities Ltd,62117.49
West Sussex County Council,Support Service And Management Costs,Capital Works,M&E,Pymnts-main contr.,21/10/2021,Capital Expenditure,Tss Facilities Ltd,86950.9
West Sussex County Council,Support Service And Management Costs,Capital Works,Building,Pymnts-main contr.,11/10/2021,Capital Expenditure,C J Thorne & Co Ltd,47403.93
West Sussex County Council,Support Service And Management Costs,Capital Works,M&E,Pymnts-main contr.,22/10/2021,Capital Expenditure,Sse Contracting Limited,102274
West Sussex County Council,Support Service And Management Costs,Capital Works,Mdc,Client PM Fees,26/10/2021,Capital Expenditure,Faithful & Gould,4423.29
West Sussex County Council,Support Service And Management Costs,Capital Works,Mdc,Client PM Fees,19/10/2021,Capital Expenditure,Faithful & Gould,1416.92
West Sussex County Council,Support Service And Management Costs,Capital Works,Building,Pymnts-main contr.,21/10/2021,Capital Expenditure,J Cheesmur & Sons (Lewes) Ltd,64896.34
West Sussex County Council,Support Service And Management Costs,Capital Works,Asbestos Analyst,Pymnts-main contr.,20/10/2021,Capital Expenditure,Fibre Management Ltd,550
West Sussex County Council,Support Service And Management Costs,Capital Works,Mdc,Client PM Fees,26/10/2021,Capital Expenditure,Faithful & Gould,1588.14
West Sussex County Council,Support Service And Management Costs,Capital Works,Mdc,Client PM Fees,11/10/2021,Capital Expenditure,Faithful & Gould,1083.83
West Sussex County Council,Support Service And Management Costs,Capital Works,Building,Pymnts-main contr.,22/10/2021,Capital Expenditure,Fowler Building Contractors Ltd,74257.41
West Sussex County Council,Support Service And Management Costs,Capital Works,M&E,Pymnts-main contr.,12/10/2021,Capital Expenditure,Sse Contracting Limited,33682.87
West Sussex County Council,Support Service And Management Costs,Capital Works,Building,Pymnts-main contr.,15/10/2021,Capital Expenditure,Psm Surfacing & Line Marking Ltd,58435
West Sussex County Council,Support Service And Management Costs,Capital Works,Mdc,Client PM Fees,26/10/2021,Capital Expenditure,Faithful & Gould,1423.32
West Sussex County Council,Support Service And Management Costs,Capital Works,Building,Pymnts-main contr.,22/10/2021,Capital Expenditure,J Cheesmur & Sons (Lewes) Ltd,34902.73
West Sussex County Council,Support Service And Management Costs,Capital Works,Building,Pymnts-main contr.,26/10/2021,Capital Expenditure,J Cheesmur & Sons (Lewes) Ltd,8171.04
West Sussex County Council,Support Service And Management Costs,Capital Works,Mdc,Client PM Fees,26/10/2021,Capital Expenditure,Faithful & Gould,2347.35
West Sussex County Council,Support Service And Management Costs,Capital Works,Building,Pymnts-main contr.,18/10/2021,Capital Expenditure,Trojan Rose Ltd,59627.45
West Sussex County Council,Support Service And Management Costs,Capital Works,Mdc,Client PM Fees,26/10/2021,Capital Expenditure,Faithful & Gould,3784.65
West Sussex County Council,Support Service And Management Costs,Capital Works,Mdc,Client PM Fees,11/10/2021,Capital Expenditure,Faithful & Gould,552.06
West Sussex County Council,Support Service And Management Costs,Capital Works,Mdc,Client PM Fees,11/10/2021,Capital Expenditure,Faithful & Gould,9450.96
West Sussex County Council,Support Service And Management Costs,Capital Works,M&E,Pymnts-main contr.,12/10/2021,Capital Expenditure,Sse Contracting Limited,44840.59
West Sussex County Council,Support Service And Management Costs,Capital Works,Asbestos Analyst,Pymnts-main contr.,29/10/2021,Capital Expenditure,Env Surveys Ltd,425
West Sussex County Council,Support Service And Management Costs,Capital Works,M&E,Pymnts-main contr.,22/10/2021,Capital Expenditure,Sse Contracting Limited,87398
West Sussex County Council,Support Service And Management Costs,Capital Works,M&E,Pymnts-main contr.,29/10/2021,Capital Expenditure,Perry Analytical Ltd,875
West Sussex County Council,Support Service And Management Costs,Capital Works,M&E,Pymnts-main contr.,22/10/2021,Capital Expenditure,Sse Contracting Limited,119075
West Sussex County Council,Support Service And Management Costs,Capital Works,M&E,Pymnts-main contr.,22/10/2021,Capital Expenditure,Sse Contracting Limited,75034
West Sussex County Council,Support Service And Management Costs,Capital Works,Building,Pymnts-main contr.,08/10/2021,Capital Expenditure,G Griffiths Building Contractor,4935
West Sussex County Council,Support Service And Management Costs,Capital Works,Building,Pymnts-main contr.,01/10/2021,Capital Expenditure,Oglieve & Chapman,8650
West Sussex County Council,Support Service And Management Costs,Capital Works,Building,Pymnts-main contr.,12/10/2021,Capital Expenditure,Wessex Window Systems Plc,500
West Sussex County Council,Support Service And Management Costs,Capital Works,Building,Pymnts-main contr.,12/10/2021,Capital Expenditure,Wessex Window Systems Plc,600
West Sussex County Council,Support Service And Management Costs,Capital Works,Building,Pymnts-main contr.,01/10/2021,Capital Expenditure,Blue Building Contractors Ltd,420
West Sussex County Council,Support Service And Management Costs,Capital Works,Building,Pymnts-main contr.,01/10/2021,Capital Expenditure,Blue Building Contractors Ltd,622
West Sussex County Council,Support Service And Management Costs,Capital Works,Mdc,Client PM Fees,11/10/2021,Capital Expenditure,Faithful & Gould,6669.76
West Sussex County Council,Support Service And Management Costs,Capital Works,Building,Pymnts-main contr.,21/10/2021,Capital Expenditure,Clarke Roofing Southern Ltd,70278.31
West Sussex County Council,Support Service And Management Costs,Capital Works,M&E,Pymnts-main contr.,22/10/2021,Capital Expenditure,Sse Contracting Limited,39473
West Sussex County Council,Support Service And Management Costs,Capital Works,Mdc,Client PM Fees,26/10/2021,Capital Expenditure,Faithful & Gould,1472.76
West Sussex County Council,Support Service And Management Costs,Capital Works,Building,Pymnts-main contr.,14/10/2021,Capital Expenditure,Fowler Building Contractors Ltd,39547.83
West Sussex County Council,Support Service And Management Costs,Capital Works,Mdc,Client PM Fees,26/10/2021,Capital Expenditure,Faithful & Gould,967.1
West Sussex County Council,Support Service And Management Costs,Capital Works,Mdc,Client PM Fees,26/10/2021,Capital Expenditure,Faithful & Gould,1272.29
West Sussex County Council,Support Service And Management Costs,Capital Works,Mdc,Client PM Fees,11/10/2021,Capital Expenditure,Faithful & Gould,1422.06
West Sussex County Council,Support Service And Management Costs,Capital Works,Mdc,Client PM Fees,11/10/2021,Capital Expenditure,Faithful & Gould,2130.46
West Sussex County Council,Support Service And Management Costs,Capital Works,Building,Pymnts-main contr.,25/10/2021,Capital Expenditure,R B Construction Group Ltd,871.66
West Sussex County Council,Central Services To The Public,Capital Works,M&E Parkside - Plant Room Redesign,Pymnts-main contr.,14/10/2021,Capital Expenditure,Capita Business Services Ltd,5930.51
West Sussex County Council,Support Service And Management Costs,Capital Works,Building Ch - Peglar & Reception - Roofi,Pymnts-main contr.,13/10/2021,Capital Expenditure,Southern Counties Roofing Contrctrs,12365.41
West Sussex County Council,Education Services,School Capital Works,Building Forest School,Pymnts-main contr.,19/10/2021,Capital Expenditure,Hugh L S Mcconnell Ltd,5703.43
West Sussex County Council,Cultural & Related Services,Library Service,Building Chichester Library - Cladding U,Pymnts-main contr.,04/10/2021,Capital Expenditure,Dbr London Limited,38244.49
West Sussex County Council,Cultural & Related Services,Library Service,Building Chichester Library - Cladding U,Feasibility Studies,29/10/2021,Capital Expenditure,Faithful & Gould,484.76
West Sussex County Council,Support Service And Management Costs,Capital Works,Main Works Tangmere Track Repairs,Pymnts-main contr.,06/10/2021,Capital Expenditure,Securafit,8948.19
West Sussex County Council,Children Social Care,Capital Works,Main East Preston Cfc Internal Remodelli,Pymnts-main contr.,04/10/2021,Capital Expenditure,Spindler Builders E&P Ltd,12000
West Sussex County Council,Education Services,School Capital Works,Billingshurst Pri Sch - Widen Doorways,Client PM Fees,01/10/2021,Capital Expenditure,Faithful & Gould,3333.36
West Sussex County Council,Education Services,School Capital Works,Billingshurst Pri Sch - Widen Doorways,Client PM Fees,26/10/2021,Capital Expenditure,Faithful & Gould,1111.12
West Sussex County Council,Support Service And Management Costs,Capital Works,Main Works,Furniture & Fittings,25/10/2021,Capital Expenditure,Bruynzeel Storage Systems Ltd,208365.99
West Sussex County Council,Support Service And Management Costs,Capital Works,Ancillary,Pymnts-main contr.,18/10/2021,Capital Expenditure,Perry Analytical Ltd,1050
West Sussex County Council,Children Social Care,Capital Works,18 Teasel Close,Client PM Fees,29/10/2021,Capital Expenditure,Faithful & Gould,7936.78
West Sussex County Council,Children Social Care,Capital Works,Renovation Of High Trees,Client PM Fees,29/10/2021,Capital Expenditure,Faithful & Gould,11447.86
West Sussex County Council,Support Service And Management Costs,Capital Works,Supplies / Ict Renovation Of Orchard Hou,Other Consultant,08/10/2021,Capital Expenditure,Matrix Scm Limited,365.96
West Sussex County Council,Support Service And Management Costs,Capital Works,Supplies / Ict Renovation Of Orchard Hou,Other Consultant,08/10/2021,Capital Expenditure,Matrix Scm Limited,365.96
West Sussex County Council,Support Service And Management Costs,Capital Works,Supplies / Ict Renovation Of Orchard Hou,Other Consultant,08/10/2021,Capital Expenditure,Matrix Scm Limited,1097.88
West Sussex County Council,Support Service And Management Costs,Capital Works,Supplies / Ict Renovation Of Orchard Hou,Other Consultant,22/10/2021,Capital Expenditure,Matrix Scm Limited,365.96
West Sussex County Council,Support Service And Management Costs,Capital Works,Supplies / Ict Renovation Of Orchard Hou,Other Consultant,22/10/2021,Capital Expenditure,Matrix Scm Limited,1097.88
West Sussex County Council,Support Service And Management Costs,Capital Works,Supplies / Ict Renovation Of Orchard Hou,Other Consultant,29/10/2021,Capital Expenditure,Matrix Scm Limited,1097.88
West Sussex County Council,Support Service And Management Costs,Capital Works,Ancillary,Pymnts-main contr.,29/10/2021,Capital Expenditure,Perry Analytical Ltd,2490
West Sussex County Council,Children Social Care,Capital Works,Renovation Of Orchard House,Client PM Fees,29/10/2021,Capital Expenditure,Faithful & Gould,5834.68
West Sussex County Council,Children Social Care,Capital Works,Renovation Of Orchard House,Client PM Fees,29/10/2021,Capital Expenditure,Faithful & Gould,17778.94
West Sussex County Council,Education Services,School Capital Works,Oak Grove College - Expansion,Client PM Fees,13/10/2021,Capital Expenditure,Faithful & Gould,19257.96
West Sussex County Council,Support Service And Management Costs,Capital Works,Main Works,Pymnts-main contr.,12/10/2021,Capital Expenditure,Cbg Construction Ltd,263922.71
West Sussex County Council,Education Services,School Capital Works,Fees Forest Sch S106 Funded Improvements,Client PM Fees,26/10/2021,Capital Expenditure,Faithful & Gould,8275.07
West Sussex County Council,Support Service And Management Costs,Capital Works,Fishbourne Pri - S106 Funded Improvement,Client PM Fees,01/10/2021,Capital Expenditure,Faithful & Gould,2961.62
West Sussex County Council,Education Services,School Capital Works,Seaside Primary,Pymnts-main contr.,26/10/2021,Capital Expenditure,Seaside Primary School,35139.2
West Sussex County Council,Support Service And Management Costs,Capital Works,Main Works,Pymnts-main contr.,22/10/2021,Capital Expenditure,Horsham District Council,1425
West Sussex County Council,Support Service And Management Costs,Capital Works,Ancillary,Pymnts-main contr.,18/10/2021,Capital Expenditure,Perry Analytical Ltd,515
West Sussex County Council,Support Service And Management Costs,Capital Works,Main Works,Client PM Fees,26/10/2021,Capital Expenditure,Faithful & Gould,1664.64
West Sussex County Council,Education Services,School Capital Works,Equipment / Ffe Pease Pottage Primary Sc,Pymnts-main contr.,11/10/2021,Capital Expenditure,Morleys Of Bicester Ltd,5256.17
West Sussex County Council,Education Services,School Capital Works,Equipment / Ffe Pease Pottage Primary Sc,Pymnts-main contr.,11/10/2021,Capital Expenditure,Morleys Of Bicester Ltd,2859.95
West Sussex County Council,Education Services,School Capital Works,Equipment / Ffe Pease Pottage Primary Sc,Pymnts-main contr.,12/10/2021,Capital Expenditure,Morleys Of Bicester Ltd,7272.85
West Sussex County Council,Education Services,School Capital Works,Equipment / Ffe Pease Pottage Primary Sc,Pymnts-main contr.,19/10/2021,Capital Expenditure,Morleys Of Bicester Ltd,5798
West Sussex County Council,Support Service And Management Costs,Capital Works,Ancillary,Pymnts-main contr.,13/10/2021,Capital Expenditure,Oglieve & Chapman,4550
West Sussex County Council,Education Services,School Capital Works,Main Works Thorney Island School - Hall,Pymnts-main contr.,19/10/2021,Capital Expenditure,Buxton Building Contractors Ltd,150216.06
West Sussex County Council,Support Service And Management Costs,Capital Works,Victoria Estate,Feasibility Studies,22/10/2021,Capital Expenditure,Wsp Uk Ltd,4923.63
West Sussex County Council,Support Service And Management Costs,Capital Works,Town Centre,Feasibility Studies,22/10/2021,Capital Expenditure,Wsp Uk Ltd,2665.55
West Sussex County Council,Support Service And Management Costs,Capital Works,Town Centre,Feasibility Studies,22/10/2021,Capital Expenditure,Wsp Uk Ltd,3100.76
West Sussex County Council,Support Service And Management Costs,Capital Works,Rail Station Improvements,Pymnts-main contr.,04/10/2021,Capital Expenditure,Balfour Beatty Living Places Ltd,9283.05
West Sussex County Council,Support Service And Management Costs,Capital Works,M&E,Client PM Fees,22/10/2021,Capital Expenditure,Faithful & Gould,3076.07
West Sussex County Council,Support Service And Management Costs,Capital Works,Project Manager,Pymnts-main contr.,01/10/2021,Capital Expenditure,Faithful & Gould,21912.7
West Sussex County Council,Support Service And Management Costs,Capital Works,Project Manager,Pymnts-main contr.,26/10/2021,Capital Expenditure,Faithful & Gould,3756.66
West Sussex County Council,Support Service And Management Costs,Capital Works,Railway Approach,Pymnts-main contr.,22/10/2021,Capital Expenditure,Wsp Uk Ltd,13694.38
West Sussex County Council,Support Service And Management Costs,Capital Works,Main Works - Portland Rd,Pymnts-main contr.,22/10/2021,Capital Expenditure,Wsp Uk Ltd,1620.13
West Sussex County Council,Support Service And Management Costs,Capital Works,Town Centre Walking & Cycling,Pymnts-main contr.,22/10/2021,Capital Expenditure,Wsp Uk Ltd,833.32
West Sussex County Council,Support Service And Management Costs,Capital Works,Main Works,Pymnts-main contr.,22/10/2021,Capital Expenditure,Wsp Uk Ltd,1651.87
West Sussex County Council,Support Service And Management Costs,Capital Works,Eastern Gateway Crawley,Pymnts-main contr.,19/10/2021,Capital Expenditure,Volker-Fitzpatrick Ltd,408831.76
West Sussex County Council,Support Service And Management Costs,Capital Works,Eastern Gateway Crawley,Feasibility Studies,19/10/2021,Capital Expenditure,Faithful & Gould,2353.3
West Sussex County Council,Support Service And Management Costs,Capital Works,Eastern Gateway Crawley,Pymnts-main contr.,22/10/2021,Capital Expenditure,Wsp Uk Ltd,7794.8
West Sussex County Council,Support Service And Management Costs,Capital Works,Main Works,Pymnts-main contr.,12/10/2021,Capital Expenditure,Sunninghill Construction Co Ltd,5576.56
West Sussex County Council,Support Service And Management Costs,Capital Works,Main Works,Pymnts-main contr.,15/10/2021,Capital Expenditure,Grubb And Banks Building Services L,612
West Sussex County Council,Support Service And Management Costs,Capital Works,Work Package 36,Feasibility Studies,27/10/2021,Capital Expenditure,Faithful & Gould,480.18
West Sussex County Council,Support Service And Management Costs,Capital Works,Work Package 36,Feasibility Studies,18/10/2021,Capital Expenditure,Trojan Rose Ltd,875
West Sussex County Council,Support Service And Management Costs,Capital Works,Work Package 1,Feasibility Studies,29/10/2021,Capital Expenditure,Faithful & Gould,946.48
West Sussex County Council,Support Service And Management Costs,Capital Works,Main First Group,Feasibility Studies,26/10/2021,Capital Expenditure,A Class T/A Savent Group,445
West Sussex County Council,Support Service And Management Costs,Capital Works,Main First Group,Acquisition costs,18/10/2021,Capital Expenditure,Dec Metrics Ltd,590
West Sussex County Council,Support Service And Management Costs,Capital Works,Main Works,Feasibility Studies,26/10/2021,Capital Expenditure,Faithful & Gould,1271.57
West Sussex County Council,Highways & Transport Services,Street Lighting,Pfi Unitary Charge,Pyt other contractor,27/10/2021,Revenue Expenditure ,Tay Valley Lighting (West Sussex) L,999771.77
West Sussex County Council,Highways & Transport Services,Street Lighting,Gatwick Tunnel,Electricity,05/10/2021,Revenue Expenditure ,Kent County Council,2637.26
West Sussex County Council,Highways & Transport Services,Street Lighting,Gatwick Tunnel,Electricity,05/10/2021,Revenue Expenditure ,Kent County Council,2125.07
West Sussex County Council,Highways & Transport Services,Highways Maintenance,Balfour Beatty Contract Management Chg,Pyt Main Contractor,14/10/2021,Revenue Expenditure ,Balfour Beatty Living Places Ltd,91752.56
West Sussex County Council,Highways & Transport Services,Sussex Safer Road Partnership,Speed Awareness Course Delivery,Pay - Agency Staff,01/10/2021,Revenue Expenditure ,Matrix Scm Limited,171.48
West Sussex County Council,Highways & Transport Services,Sussex Safer Road Partnership,Speed Awareness Course Delivery,Pay - Agency Staff,01/10/2021,Revenue Expenditure ,Matrix Scm Limited,835.97
West Sussex County Council,Highways & Transport Services,Sussex Safer Road Partnership,Speed Awareness Course Delivery,Pay - Agency Staff,01/10/2021,Revenue Expenditure ,Matrix Scm Limited,264.27
West Sussex County Council,Highways & Transport Services,Sussex Safer Road Partnership,Speed Awareness Course Delivery,Pay - Agency Staff,01/10/2021,Revenue Expenditure ,Matrix Scm Limited,950.29
West Sussex County Council,Highways & Transport Services,Sussex Safer Road Partnership,Speed Awareness Course Delivery,Pay - Agency Staff,01/10/2021,Revenue Expenditure ,Matrix Scm Limited,371.56
West Sussex County Council,Highways & Transport Services,Sussex Safer Road Partnership,Speed Awareness Course Delivery,Pay - Agency Staff,01/10/2021,Revenue Expenditure ,Matrix Scm Limited,428.7
West Sussex County Council,Highways & Transport Services,Sussex Safer Road Partnership,Speed Awareness Course Delivery,Pay - Agency Staff,01/10/2021,Revenue Expenditure ,Matrix Scm Limited,614.47
West Sussex County Council,Highways & Transport Services,Sussex Safer Road Partnership,Speed Awareness Course Delivery,Pay - Agency Staff,01/10/2021,Revenue Expenditure ,Matrix Scm Limited,521.59
West Sussex County Council,Highways & Transport Services,Sussex Safer Road Partnership,Speed Awareness Course Delivery,Pay - Agency Staff,01/10/2021,Revenue Expenditure ,Matrix Scm Limited,382.05
West Sussex County Council,Highways & Transport Services,Sussex Safer Road Partnership,What'S Driving Us Courses,Pay - Agency Staff,01/10/2021,Revenue Expenditure ,Matrix Scm Limited,165.56
West Sussex County Council,Highways & Transport Services,Sussex Safer Road Partnership,Speed Awareness Course Delivery,Pay - Agency Staff,01/10/2021,Revenue Expenditure ,Matrix Scm Limited,1025.18
West Sussex County Council,Highways & Transport Services,Sussex Safer Road Partnership,Speed Awareness Course Delivery,Pay - Agency Staff,01/10/2021,Revenue Expenditure ,Matrix Scm Limited,382.05
West Sussex County Council,Highways & Transport Services,Sussex Safer Road Partnership,Speed Awareness Course Delivery,Pay - Agency Staff,01/10/2021,Revenue Expenditure ,Matrix Scm Limited,550.19
West Sussex County Council,Highways & Transport Services,Sussex Safer Road Partnership,Speed Awareness Course Delivery,Pay - Agency Staff,01/10/2021,Revenue Expenditure ,Matrix Scm Limited,464.83
West Sussex County Council,Highways & Transport Services,Sussex Safer Road Partnership,Speed Awareness Course Delivery,Pay - Agency Staff,01/10/2021,Revenue Expenditure ,Matrix Scm Limited,528.74
West Sussex County Council,Highways & Transport Services,Sussex Safer Road Partnership,Motorway Courses,Pay - Agency Staff,01/10/2021,Revenue Expenditure ,Matrix Scm Limited,257.22
West Sussex County Council,Highways & Transport Services,Sussex Safer Road Partnership,Motorway Courses,Pay - Agency Staff,01/10/2021,Revenue Expenditure ,Matrix Scm Limited,171.48
West Sussex County Council,Highways & Transport Services,Sussex Safer Road Partnership,Speed Awareness Course Delivery,Pay - Agency Staff,01/10/2021,Revenue Expenditure ,Matrix Scm Limited,342.96
West Sussex County Council,Highways & Transport Services,Sussex Safer Road Partnership,What'S Driving Us Courses,Pay - Agency Staff,08/10/2021,Revenue Expenditure ,Matrix Scm Limited,185.78
West Sussex County Council,Highways & Transport Services,Sussex Safer Road Partnership,Motorway Courses,Pay - Agency Staff,08/10/2021,Revenue Expenditure ,Matrix Scm Limited,171.48
West Sussex County Council,Highways & Transport Services,Sussex Safer Road Partnership,Speed Awareness Course Delivery,Pay - Agency Staff,08/10/2021,Revenue Expenditure ,Matrix Scm Limited,514.44
West Sussex County Council,Highways & Transport Services,Sussex Safer Road Partnership,Speed Awareness Course Delivery,Pay - Agency Staff,08/10/2021,Revenue Expenditure ,Matrix Scm Limited,458.46
West Sussex County Council,Highways & Transport Services,Sussex Safer Road Partnership,Speed Awareness Course Delivery,Pay - Agency Staff,08/10/2021,Revenue Expenditure ,Matrix Scm Limited,795.95
West Sussex County Council,Highways & Transport Services,Sussex Safer Road Partnership,Speed Awareness Course Delivery,Pay - Agency Staff,08/10/2021,Revenue Expenditure ,Matrix Scm Limited,458.46
West Sussex County Council,Highways & Transport Services,Sussex Safer Road Partnership,Speed Awareness Course Delivery,Pay - Agency Staff,08/10/2021,Revenue Expenditure ,Matrix Scm Limited,171.42
West Sussex County Council,Highways & Transport Services,Sussex Safer Road Partnership,Speed Awareness Course Delivery,Pay - Agency Staff,08/10/2021,Revenue Expenditure ,Matrix Scm Limited,342.96
West Sussex County Council,Highways & Transport Services,Sussex Safer Road Partnership,Speed Awareness Course Delivery,Pay - Agency Staff,08/10/2021,Revenue Expenditure ,Matrix Scm Limited,350.11
West Sussex County Council,Highways & Transport Services,Sussex Safer Road Partnership,Speed Awareness Course Delivery,Pay - Agency Staff,08/10/2021,Revenue Expenditure ,Matrix Scm Limited,871.69
West Sussex County Council,Highways & Transport Services,Sussex Safer Road Partnership,Speed Awareness Course Delivery,Pay - Agency Staff,08/10/2021,Revenue Expenditure ,Matrix Scm Limited,528.74
West Sussex County Council,Highways & Transport Services,Sussex Safer Road Partnership,Speed Awareness Course Delivery,Pay - Agency Staff,08/10/2021,Revenue Expenditure ,Matrix Scm Limited,771.66
West Sussex County Council,Highways & Transport Services,Sussex Safer Road Partnership,Speed Awareness Course Delivery,Pay - Agency Staff,08/10/2021,Revenue Expenditure ,Matrix Scm Limited,271.52
West Sussex County Council,Highways & Transport Services,Sussex Safer Road Partnership,Speed Awareness Course Delivery,Computer Purch/Rentl,05/10/2021,Revenue Expenditure ,Ukroed Limited,121324
West Sussex County Council,Highways & Transport Services,Sussex Safer Road Partnership,What'S Driving Us Courses,Computer Purch/Rentl,05/10/2021,Revenue Expenditure ,Ukroed Limited,5586
West Sussex County Council,Highways & Transport Services,Sussex Safer Road Partnership,Motorway Courses,Computer Purch/Rentl,05/10/2021,Revenue Expenditure ,Ukroed Limited,12544
West Sussex County Council,Highways & Transport Services,Sussex Safer Road Partnership,What'S Driving Us Courses,Pay - Agency Staff,15/10/2021,Revenue Expenditure ,Matrix Scm Limited,185.77
West Sussex County Council,Highways & Transport Services,Sussex Safer Road Partnership,Speed Awareness Course Delivery,Pay - Agency Staff,15/10/2021,Revenue Expenditure ,Matrix Scm Limited,342.96
West Sussex County Council,Highways & Transport Services,Sussex Safer Road Partnership,Speed Awareness Course Delivery,Pay - Agency Staff,15/10/2021,Revenue Expenditure ,Matrix Scm Limited,458.46
West Sussex County Council,Highways & Transport Services,Sussex Safer Road Partnership,Speed Awareness Course Delivery,Pay - Agency Staff,15/10/2021,Revenue Expenditure ,Matrix Scm Limited,229.23
West Sussex County Council,Highways & Transport Services,Sussex Safer Road Partnership,Speed Awareness Course Delivery,Pay - Agency Staff,15/10/2021,Revenue Expenditure ,Matrix Scm Limited,1107.96
West Sussex County Council,Highways & Transport Services,Sussex Safer Road Partnership,Speed Awareness Course Delivery,Pay - Agency Staff,15/10/2021,Revenue Expenditure ,Matrix Scm Limited,471.2
West Sussex County Council,Highways & Transport Services,Sussex Safer Road Partnership,Speed Awareness Course Delivery,Pay - Agency Staff,15/10/2021,Revenue Expenditure ,Matrix Scm Limited,514.44
West Sussex County Council,Highways & Transport Services,Sussex Safer Road Partnership,Speed Awareness Course Delivery,Pay - Agency Staff,15/10/2021,Revenue Expenditure ,Matrix Scm Limited,614.48
West Sussex County Council,Highways & Transport Services,Sussex Safer Road Partnership,Speed Awareness Course Delivery,Pay - Agency Staff,15/10/2021,Revenue Expenditure ,Matrix Scm Limited,257.22
West Sussex County Council,Highways & Transport Services,Sussex Safer Road Partnership,Speed Awareness Course Delivery,Pay - Agency Staff,15/10/2021,Revenue Expenditure ,Matrix Scm Limited,342.96
West Sussex County Council,Highways & Transport Services,Sussex Safer Road Partnership,Speed Awareness Course Delivery,Pay - Agency Staff,15/10/2021,Revenue Expenditure ,Matrix Scm Limited,614.48
West Sussex County Council,Highways & Transport Services,Sussex Safer Road Partnership,Speed Awareness Course Delivery,Pay - Agency Staff,15/10/2021,Revenue Expenditure ,Matrix Scm Limited,185.78
West Sussex County Council,Highways & Transport Services,Sussex Safer Road Partnership,Speed Awareness Course Delivery,Pay - Agency Staff,15/10/2021,Revenue Expenditure ,Matrix Scm Limited,635.69
West Sussex County Council,Highways & Transport Services,Sussex Safer Road Partnership,What'S Driving Us Courses,Pay - Agency Staff,22/10/2021,Revenue Expenditure ,Matrix Scm Limited,165.56
West Sussex County Council,Highways & Transport Services,Sussex Safer Road Partnership,What'S Driving Us Courses,Pay - Agency Staff,22/10/2021,Revenue Expenditure ,Matrix Scm Limited,185.78
West Sussex County Council,Highways & Transport Services,Sussex Safer Road Partnership,Motorway Courses,Pay - Agency Staff,22/10/2021,Revenue Expenditure ,Matrix Scm Limited,171.48
West Sussex County Council,Highways & Transport Services,Sussex Safer Road Partnership,Motorway Courses,Pay - Agency Staff,22/10/2021,Revenue Expenditure ,Matrix Scm Limited,257.22
West Sussex County Council,Highways & Transport Services,Sussex Safer Road Partnership,Speed Awareness Course Delivery,Pay - Agency Staff,22/10/2021,Revenue Expenditure ,Matrix Scm Limited,450.15
West Sussex County Council,Highways & Transport Services,Sussex Safer Road Partnership,Speed Awareness Course Delivery,Pay - Agency Staff,22/10/2021,Revenue Expenditure ,Matrix Scm Limited,342.96
West Sussex County Council,Highways & Transport Services,Sussex Safer Road Partnership,Speed Awareness Course Delivery,Pay - Agency Staff,22/10/2021,Revenue Expenditure ,Matrix Scm Limited,185.78
West Sussex County Council,Highways & Transport Services,Sussex Safer Road Partnership,Speed Awareness Course Delivery,Pay - Agency Staff,22/10/2021,Revenue Expenditure ,Matrix Scm Limited,624.02
West Sussex County Council,Highways & Transport Services,Sussex Safer Road Partnership,Speed Awareness Course Delivery,Pay - Agency Staff,22/10/2021,Revenue Expenditure ,Matrix Scm Limited,229.23
West Sussex County Council,Highways & Transport Services,Sussex Safer Road Partnership,Speed Awareness Course Delivery,Pay - Agency Staff,22/10/2021,Revenue Expenditure ,Matrix Scm Limited,955.14
West Sussex County Council,Highways & Transport Services,Sussex Safer Road Partnership,Speed Awareness Course Delivery,Pay - Agency Staff,22/10/2021,Revenue Expenditure ,Matrix Scm Limited,458.46
West Sussex County Council,Highways & Transport Services,Sussex Safer Road Partnership,Speed Awareness Course Delivery,Pay - Agency Staff,22/10/2021,Revenue Expenditure ,Matrix Scm Limited,171.42
West Sussex County Council,Highways & Transport Services,Sussex Safer Road Partnership,Speed Awareness Course Delivery,Pay - Agency Staff,22/10/2021,Revenue Expenditure ,Matrix Scm Limited,171.48
West Sussex County Council,Highways & Transport Services,Sussex Safer Road Partnership,Speed Awareness Course Delivery,Pay - Agency Staff,22/10/2021,Revenue Expenditure ,Matrix Scm Limited,514.44
West Sussex County Council,Highways & Transport Services,Sussex Safer Road Partnership,Speed Awareness Course Delivery,Pay - Agency Staff,22/10/2021,Revenue Expenditure ,Matrix Scm Limited,707.36
West Sussex County Council,Highways & Transport Services,Sussex Safer Road Partnership,Speed Awareness Course Delivery,Pay - Agency Staff,22/10/2021,Revenue Expenditure ,Matrix Scm Limited,342.96
West Sussex County Council,Highways & Transport Services,Sussex Safer Road Partnership,Speed Awareness Course Delivery,Pay - Agency Staff,22/10/2021,Revenue Expenditure ,Matrix Scm Limited,685.92
West Sussex County Council,Highways & Transport Services,Sussex Safer Road Partnership,Speed Awareness Course Delivery,Pay - Agency Staff,22/10/2021,Revenue Expenditure ,Matrix Scm Limited,685.92
West Sussex County Council,Highways & Transport Services,Sussex Safer Road Partnership,Speed Awareness Course Delivery,Pay - Agency Staff,22/10/2021,Revenue Expenditure ,Matrix Scm Limited,342.96
West Sussex County Council,Highways & Transport Services,Sussex Safer Road Partnership,Speed Awareness Course Delivery,Pay - Agency Staff,22/10/2021,Revenue Expenditure ,Matrix Scm Limited,185.78
West Sussex County Council,Highways & Transport Services,Sussex Safer Road Partnership,Speed Awareness Course Delivery,Pay - Agency Staff,22/10/2021,Revenue Expenditure ,Matrix Scm Limited,899.96
West Sussex County Council,Highways & Transport Services,Sussex Safer Road Partnership,Speed Awareness Course Delivery,Computer Purch/Rentl,21/10/2021,Revenue Expenditure ,Clarity Information Solutions,5103.87
West Sussex County Council,Highways & Transport Services,Sussex Safer Road Partnership,Speed Awareness Course Delivery,Computer Purch/Rentl,21/10/2021,Revenue Expenditure ,Clarity Information Solutions,1605.44
West Sussex County Council,Highways & Transport Services,Sussex Safer Road Partnership,What'S Driving Us Courses,Pay - Agency Staff,29/10/2021,Revenue Expenditure ,Matrix Scm Limited,185.78
West Sussex County Council,Highways & Transport Services,Sussex Safer Road Partnership,What'S Driving Us Courses,Pay - Agency Staff,29/10/2021,Revenue Expenditure ,Matrix Scm Limited,100.03
West Sussex County Council,Highways & Transport Services,Sussex Safer Road Partnership,Motorway Courses,Pay - Agency Staff,29/10/2021,Revenue Expenditure ,Matrix Scm Limited,171.48
West Sussex County Council,Highways & Transport Services,Sussex Safer Road Partnership,Speed Awareness Course Delivery,Pay - Agency Staff,29/10/2021,Revenue Expenditure ,Matrix Scm Limited,450.15
West Sussex County Council,Highways & Transport Services,Sussex Safer Road Partnership,Speed Awareness Course Delivery,Pay - Agency Staff,29/10/2021,Revenue Expenditure ,Matrix Scm Limited,714.5
West Sussex County Council,Highways & Transport Services,Sussex Safer Road Partnership,Speed Awareness Course Delivery,Pay - Agency Staff,29/10/2021,Revenue Expenditure ,Matrix Scm Limited,357.26
West Sussex County Council,Highways & Transport Services,Sussex Safer Road Partnership,Speed Awareness Course Delivery,Pay - Agency Staff,29/10/2021,Revenue Expenditure ,Matrix Scm Limited,458.46
West Sussex County Council,Highways & Transport Services,Sussex Safer Road Partnership,Speed Awareness Course Delivery,Pay - Agency Staff,29/10/2021,Revenue Expenditure ,Matrix Scm Limited,305.64
West Sussex County Council,Highways & Transport Services,Sussex Safer Road Partnership,Speed Awareness Course Delivery,Pay - Agency Staff,29/10/2021,Revenue Expenditure ,Matrix Scm Limited,1114.33
West Sussex County Council,Highways & Transport Services,Sussex Safer Road Partnership,Speed Awareness Course Delivery,Pay - Agency Staff,29/10/2021,Revenue Expenditure ,Matrix Scm Limited,458.46
West Sussex County Council,Highways & Transport Services,Sussex Safer Road Partnership,Speed Awareness Course Delivery,Pay - Agency Staff,29/10/2021,Revenue Expenditure ,Matrix Scm Limited,171.42
West Sussex County Council,Highways & Transport Services,Sussex Safer Road Partnership,Speed Awareness Course Delivery,Pay - Agency Staff,29/10/2021,Revenue Expenditure ,Matrix Scm Limited,342.96
West Sussex County Council,Highways & Transport Services,Sussex Safer Road Partnership,Speed Awareness Course Delivery,Pay - Agency Staff,29/10/2021,Revenue Expenditure ,Matrix Scm Limited,528.74
West Sussex County Council,Highways & Transport Services,Sussex Safer Road Partnership,Speed Awareness Course Delivery,Pay - Agency Staff,29/10/2021,Revenue Expenditure ,Matrix Scm Limited,693.07
West Sussex County Council,Highways & Transport Services,Sussex Safer Road Partnership,Speed Awareness Course Delivery,Pay - Agency Staff,29/10/2021,Revenue Expenditure ,Matrix Scm Limited,700.21
West Sussex County Council,Highways & Transport Services,Sussex Safer Road Partnership,Speed Awareness Course Delivery,Pay - Agency Staff,29/10/2021,Revenue Expenditure ,Matrix Scm Limited,714.5
West Sussex County Council,Highways & Transport Services,Sussex Safer Road Partnership,Speed Awareness Course Delivery,Pay - Agency Staff,29/10/2021,Revenue Expenditure ,Matrix Scm Limited,514.44
West Sussex County Council,Highways & Transport Services,Sussex Safer Road Partnership,Speed Awareness Course Delivery,Pay - Agency Staff,29/10/2021,Revenue Expenditure ,Matrix Scm Limited,785.95
West Sussex County Council,Highways & Transport Services,Sussex Safer Road Partnership,Speed Awareness Course Delivery,Pay - Agency Staff,29/10/2021,Revenue Expenditure ,Matrix Scm Limited,185.78
West Sussex County Council,Highways & Transport Services,Sussex Safer Road Partnership,Speed Awareness Course Delivery,Pay - Agency Staff,29/10/2021,Revenue Expenditure ,Matrix Scm Limited,371.41
West Sussex County Council,Highways & Transport Services,Sussex Safer Road Partnership,Speed Awareness Course Delivery,Computer Purch/Rentl,25/10/2021,Revenue Expenditure ,Clarity Information Solutions,2500
West Sussex County Council,Highways & Transport Services,Sussex Safer Road Partnership,"Staff, Accomodation & Gen Costs (Rev)",Pay - Agency Staff,01/10/2021,Revenue Expenditure ,Matrix Scm Limited,300.39
West Sussex County Council,Highways & Transport Services,Sussex Safer Road Partnership,"Staff, Accomodation & Gen Costs (Rev)",Pay - Agency Staff,08/10/2021,Revenue Expenditure ,Matrix Scm Limited,300.39
West Sussex County Council,Highways & Transport Services,Sussex Safer Road Partnership,"Staff, Accomodation & Gen Costs (Rev)",Pay - Agency Staff,15/10/2021,Revenue Expenditure ,Matrix Scm Limited,300.39
West Sussex County Council,Highways & Transport Services,Sussex Safer Road Partnership,"Staff, Accomodation & Gen Costs (Rev)",Pay - Agency Staff,22/10/2021,Revenue Expenditure ,Matrix Scm Limited,340.44
West Sussex County Council,Highways & Transport Services,Driver Training,Safe & Con Driver (Frmly Drv Imp),Pay - Agency Staff,08/10/2021,Revenue Expenditure ,Matrix Scm Limited,215.75
West Sussex County Council,Highways & Transport Services,Driver Training,Safe & Con Driver (Frmly Drv Imp),Computer Purch/Rentl,05/10/2021,Revenue Expenditure ,Ukroed Limited,1421
West Sussex County Council,Highways & Transport Services,Driver Training,Safe & Con Driver (Frmly Drv Imp),Pay - Agency Staff,15/10/2021,Revenue Expenditure ,Matrix Scm Limited,215.75
West Sussex County Council,Highways & Transport Services,Driver Training,Safe & Con Driver (Frmly Drv Imp),Pay - Agency Staff,22/10/2021,Revenue Expenditure ,Matrix Scm Limited,185.78
West Sussex County Council,Highways & Transport Services,Driver Training,Safe & Con Driver (Frmly Drv Imp),Pay - Agency Staff,29/10/2021,Revenue Expenditure ,Matrix Scm Limited,215.75
West Sussex County Council,Highways & Transport Services,Highways Maintenance,Technical Surveys,Pyt Main Contractor,05/10/2021,Revenue Expenditure ,Pavement Testing Services Limited,4201.64
West Sussex County Council,Highways & Transport Services,Highways Maintenance,Technical Surveys,Pyt Main Contractor,05/10/2021,Revenue Expenditure ,Pavement Testing Services Limited,6326.93
West Sussex County Council,Highways & Transport Services,Highways Maintenance,Verges - Grass Cutting,Pyt Main Contractor,28/10/2021,Revenue Expenditure ,Grasstex Ltd,83634.29
West Sussex County Council,Highways & Transport Services,Highways Maintenance,Verges - Grass Cutting,Pyt Main Contractor,28/10/2021,Revenue Expenditure ,Grasstex Ltd,21324.24
West Sussex County Council,Highways & Transport Services,Highways Maintenance,Verges - Grass Cutting,Pyt Main Contractor,28/10/2021,Revenue Expenditure ,Grasstex Ltd,49065.45
West Sussex County Council,Highways & Transport Services,Highways Maintenance,Drainage-Jetting,Pyt Main Contractor,04/10/2021,Revenue Expenditure ,Grasstex Ltd,15000
West Sussex County Council,Highways & Transport Services,Highways Maintenance,Carriageways Reactive Response,Pyt Main Contractor,14/10/2021,Revenue Expenditure ,Balfour Beatty Living Places Ltd,53644.41
West Sussex County Council,Highways & Transport Services,Highways Maintenance,Road Safety - Drainage Reactive,Pyt Main Contractor,19/10/2021,Revenue Expenditure ,Balfour Beatty Living Places Ltd,6489.6
West Sussex County Council,Highways & Transport Services,Highways Maintenance,Road Safety-Lump Sum,Pyt Main Contractor,19/10/2021,Revenue Expenditure ,Balfour Beatty Living Places Ltd,152538.11
West Sussex County Council,Highways & Transport Services,Highways Maintenance,Treeworks,Pyt Main Contractor,12/10/2021,Revenue Expenditure ,Balfour Beatty Living Places Ltd,110708.6
West Sussex County Council,Highways & Transport Services,Highways Maintenance,Treeworks,Pyt Main Contractor,19/10/2021,Revenue Expenditure ,Balfour Beatty Living Places Ltd,20008.13
West Sussex County Council,Highways & Transport Services,Highways Maintenance,Grass Cutting-Verges - Weed Control,Pyt Main Contractor,14/10/2021,Revenue Expenditure ,Balfour Beatty Living Places Ltd,10530
West Sussex County Council,Highways & Transport Services,Highways Maintenance,Signs And Lines-Road Markings,Pyt Main Contractor,12/10/2021,Revenue Expenditure ,Balfour Beatty Living Places Ltd,20053.33
West Sussex County Council,Highways & Transport Services,Highways Maintenance,Signs Gangs,Pyt Main Contractor,19/10/2021,Revenue Expenditure ,Balfour Beatty Living Places Ltd,7437.23
West Sussex County Council,Highways & Transport Services,Highways Maintenance,Signs And Lines-Road Signs,Pyt Main Contractor,12/10/2021,Revenue Expenditure ,Balfour Beatty Living Places Ltd,29453.31
West Sussex County Council,Highways & Transport Services,Highways Maintenance,Secondment,Consultants Fees,22/10/2021,Revenue Expenditure ,Wsp Uk Ltd,1579.86
West Sussex County Council,Highways & Transport Services,Highways Maintenance,Energy,Electricity,21/10/2021,Revenue Expenditure ,Kent County Council,549.38
West Sussex County Council,Highways & Transport Services,Highways Maintenance,Subways,Pyt Main Contractor,26/10/2021,Revenue Expenditure ,Xylem Water Solutions Uk Ltd,471.45
West Sussex County Council,Highways & Transport Services,Highways Maintenance,Subways,Pyt Main Contractor,26/10/2021,Revenue Expenditure ,Xylem Water Solutions Uk Ltd,471.45
West Sussex County Council,Highways & Transport Services,Highways Maintenance,Subways,Pyt Main Contractor,26/10/2021,Revenue Expenditure ,Xylem Water Solutions Uk Ltd,707.17
West Sussex County Council,Highways & Transport Services,Highways Maintenance,General Maintenance,Consultants Fees,06/10/2021,Revenue Expenditure ,Balfour Beatty Living Places Ltd,25491.29
West Sussex County Council,Highways & Transport Services,Highways Maintenance,General Maintenance,Consultants Fees,20/10/2021,Revenue Expenditure ,Balfour Beatty Living Places Ltd,13160.89
West Sussex County Council,Highways & Transport Services,Highways Maintenance,Structures Routine Maint.,Consultants Fees,20/10/2021,Revenue Expenditure ,Balfour Beatty Living Places Ltd,6339.64
West Sussex County Council,Highways & Transport Services,Highways Maintenance,Structures Routine Maint.,Consultants Fees,19/10/2021,Revenue Expenditure ,Balfour Beatty Living Places Ltd,6424.5
West Sussex County Council,Highways & Transport Services,Highways Maintenance,Rechargeables,Pyt Main Contractor,19/10/2021,Revenue Expenditure ,Balfour Beatty Living Places Ltd,3135.69
West Sussex County Council,Highways & Transport Services,Highways Maintenance,Energy Signals,Electricity,07/10/2021,Revenue Expenditure ,Kent County Council,2863.32
West Sussex County Council,Highways & Transport Services,Highways Maintenance,Energy Signals,Electricity,07/10/2021,Revenue Expenditure ,Kent County Council,20214.79
West Sussex County Council,Highways & Transport Services,Highways Maintenance,Energy Signals,Electricity,15/10/2021,Revenue Expenditure ,Kent County Council,667.97
West Sussex County Council,Highways & Transport Services,Highways Maintenance,Common Database,Office Equipment,19/10/2021,Revenue Expenditure ,Mott Macdonald Ltd,2202.31
West Sussex County Council,Highways & Transport Services,Highways Maintenance,Real Time Passenger Information,Office Equipment,05/10/2021,Revenue Expenditure ,Vix Technology Uk Ltd,5876.69
West Sussex County Council,Highways & Transport Services,Highways Maintenance,Real Time Passenger Information,Office Equipment,22/10/2021,Revenue Expenditure ,Mobius Networks Ltd,1264
West Sussex County Council,Highways & Transport Services,Highways Maintenance,Corrective Maintenance,Pyt other contractor,22/10/2021,Revenue Expenditure ,Telent Technology Services Ltd,14308.75
West Sussex County Council,Highways & Transport Services,Highways Maintenance,Corrective Maintenance,Pyt other contractor,27/10/2021,Revenue Expenditure ,Telent Technology Services Ltd,10580.07
West Sussex County Council,Highways & Transport Services,Highways Maintenance,Farrpoint,Professional Service,25/10/2021,Revenue Expenditure ,Farrpoint Limited,2745
West Sussex County Council,Highways & Transport Services,Highways Maintenance,Other Consultants,Pay - Agency Staff,01/10/2021,Revenue Expenditure ,Matrix Scm Limited,215.28
West Sussex County Council,Highways & Transport Services,Highways Maintenance,Other Consultants,Pay - Agency Staff,08/10/2021,Revenue Expenditure ,Matrix Scm Limited,481.54
West Sussex County Council,Highways & Transport Services,Highways Maintenance,Other Consultants,Pay - Agency Staff,22/10/2021,Revenue Expenditure ,Matrix Scm Limited,169.95
West Sussex County Council,Highways & Transport Services,Highways Maintenance,Other Consultants,Pay - Agency Staff,29/10/2021,Revenue Expenditure ,Matrix Scm Limited,526.85
West Sussex County Council,Highways & Transport Services,Public Transport Support,Contract Consultancy,Advertis'g/Publicity,22/10/2021,Revenue Expenditure ,Wsp Uk Ltd,4477.87
West Sussex County Council,Highways & Transport Services,Public Transport Support,Contract Consultancy,Advertis'g/Publicity,22/10/2021,Revenue Expenditure ,Wsp Uk Ltd,4412.05
West Sussex County Council,Highways & Transport Services,Public Transport Support,Contract Equipment,Office Equipment,01/10/2021,Revenue Expenditure ,P Card Royal Bank Of Scotland Plc,416.67
West Sussex County Council,Highways & Transport Services,Public Transport Support,Contract Driver Training,Train'g & Conference,28/10/2021,Revenue Expenditure ,Surefire Training,600
West Sussex County Council,Highways & Transport Services,Public Transport Support,Contract Fuel,Vehicle Fuel,18/10/2021,Revenue Expenditure ,Allstar Business Solutions Ltd,29788.15
West Sussex County Council,Highways & Transport Services,Public Transport Support,Contract Vehicle Maintenance,Vehicle Acquisition,04/10/2021,Revenue Expenditure ,Volkswagen Group Uk Ltd,925
West Sussex County Council,Highways & Transport Services,Public Transport Support,Contract Vehicle Maintenance,Vehicle Acquisition,04/10/2021,Revenue Expenditure ,Volkswagen Group Uk Ltd,925
West Sussex County Council,Highways & Transport Services,Public Transport Support,Contract Vehicle Maintenance,Vehicle Acquisition,04/10/2021,Revenue Expenditure ,Volkswagen Group Uk Ltd,925
West Sussex County Council,Highways & Transport Services,Public Transport Support,Contract Vehicle Maintenance,Vehicle Acquisition,06/10/2021,Revenue Expenditure ,Sg Equipment Finance Ltd,48625.51
West Sussex County Council,Highways & Transport Services,Public Transport Support,Contract Vehicle Maintenance,Vehicle Acquisition,13/10/2021,Revenue Expenditure ,Sg Equipment Finance Ltd,51795.72
West Sussex County Council,Highways & Transport Services,Public Transport Support,Contract Funding For Supported Bus Services 20-21,Pub Transport Subsid,04/10/2021,Revenue Expenditure ,Stagecoach Services Ltd,1125.42
West Sussex County Council,Highways & Transport Services,Public Transport Support,Contract Cbssg - Expenditure Restart Phase 8,Pub Transport Subsid,20/10/2021,Revenue Expenditure ,Community Transport Sussex,14091.32
West Sussex County Council,Highways & Transport Services,Public Transport Support,Contract 5003/5087(63 Part),Pub Transport Subsid,04/10/2021,Revenue Expenditure ,Arriva Kent & Surrey Limited,1737.39
West Sussex County Council,Highways & Transport Services,Public Transport Support,Contract 5007/5086 (17/23),Pub Transport Subsid,28/10/2021,Revenue Expenditure ,Compass Travel,4465.33
West Sussex County Council,Highways & Transport Services,Public Transport Support,Contract 5007/5086 (17/23),Pub Transport Subsid,28/10/2021,Revenue Expenditure ,Compass Travel,4304.69
West Sussex County Council,Highways & Transport Services,Public Transport Support,Contract 5006/5083 (17),Pub Transport Subsid,28/10/2021,Revenue Expenditure ,Compass Travel,1880.33
West Sussex County Council,Highways & Transport Services,Public Transport Support,Contract 5006/5083 (17),Pub Transport Subsid,28/10/2021,Revenue Expenditure ,Compass Travel,2098.94
West Sussex County Council,Highways & Transport Services,Public Transport Support,Contract 5077 (651),Pub Transport Subsid,28/10/2021,Revenue Expenditure ,Compass Travel,19083.33
West Sussex County Council,Highways & Transport Services,Public Transport Support,Contract 5000/5001 (100/101),Pub Transport Subsid,28/10/2021,Revenue Expenditure ,Compass Travel,34937.5
West Sussex County Council,Highways & Transport Services,Public Transport Support,Contract 9004 (104),Pub Transport Subsid,04/10/2021,Revenue Expenditure ,Metrobus Ltd,3927.67
West Sussex County Council,Highways & Transport Services,Public Transport Support,Contract 9004 (104),Pub Transport Subsid,04/10/2021,Revenue Expenditure ,Metrobus Ltd,5412.15
West Sussex County Council,Highways & Transport Services,Public Transport Support,Contract 9004 (104),Pub Transport Subsid,04/10/2021,Revenue Expenditure ,Metrobus Ltd,1581.2
West Sussex County Council,Highways & Transport Services,Public Transport Support,Contract 9004 (104),Pub Transport Subsid,04/10/2021,Revenue Expenditure ,Metrobus Ltd,9231.28
West Sussex County Council,Highways & Transport Services,Public Transport Support,"Contract 5008/9, 5096/7 (98)",Pub Transport Subsid,04/10/2021,Revenue Expenditure ,Metrobus Ltd,1949.06
West Sussex County Council,Highways & Transport Services,Public Transport Support,Contract 5011/5090 (61),Pub Transport Subsid,04/10/2021,Revenue Expenditure ,Metrobus Ltd,1974.22
West Sussex County Council,Highways & Transport Services,Public Transport Support,Contract 5068 (67/8),Pub Transport Subsid,28/10/2021,Revenue Expenditure ,Compass Travel,6142.98
West Sussex County Council,Highways & Transport Services,Public Transport Support,Contract 2600/1 (Doris),Pub Transport Subsid,28/10/2021,Revenue Expenditure ,Compass Travel,7201.83
West Sussex County Council,Highways & Transport Services,Public Transport Support,Contract 2070 (70),Pub Transport Subsid,04/10/2021,Revenue Expenditure ,Stagecoach Services Ltd,1933.65
West Sussex County Council,Highways & Transport Services,Public Transport Support,Contract 2065 (11),Pub Transport Subsid,04/10/2021,Revenue Expenditure ,Stagecoach Services Ltd,833.33
West Sussex County Council,Highways & Transport Services,Public Transport Support,Contract 2063/6/7,Pub Transport Subsid,28/10/2021,Revenue Expenditure ,Compass Travel,6209.37
West Sussex County Council,Highways & Transport Services,Public Transport Support,"Contract 2055-62 (47,51-3,55/6,60)",Pub Transport Subsid,04/10/2021,Revenue Expenditure ,Stagecoach Services Ltd,6694.58
West Sussex County Council,Highways & Transport Services,Public Transport Support,"Contract 2055-62 (47,51-3,55/6,60)",Pub Transport Subsid,04/10/2021,Revenue Expenditure ,Stagecoach Services Ltd,4809.58
West Sussex County Council,Highways & Transport Services,Public Transport Support,"Contract 2054/71 (54, 91-3)",Pub Transport Subsid,07/10/2021,Revenue Expenditure ,Stagecoach Services Ltd,15544.03
West Sussex County Council,Highways & Transport Services,Public Transport Support,"Contract 2054/71 (54, 91-3)",Pub Transport Subsid,11/10/2021,Revenue Expenditure ,Stagecoach Services Ltd,16025.98
West Sussex County Council,Highways & Transport Services,Public Transport Support,Contract Chichester University,Pub Transport Subsid,07/10/2021,Revenue Expenditure ,Stagecoach Services Ltd,18606.7
West Sussex County Council,Highways & Transport Services,Public Transport Support,Contract Chichester University,Pub Transport Subsid,11/10/2021,Revenue Expenditure ,Stagecoach Services Ltd,17523.05
West Sussex County Council,Highways & Transport Services,Public Transport Support,Contract Billilinks (Vtl),Taxis: Contract Hire,22/10/2021,Revenue Expenditure ,Jakes Cars,1090.5
West Sussex County Council,Highways & Transport Services,Public Transport Support,Contract 2699 (99),Pub Transport Subsid,28/10/2021,Revenue Expenditure ,Compass Travel,9215.65
West Sussex County Council,Highways & Transport Services,Public Transport Support,Contract 2052 (55 Pt),Pub Transport Subsid,28/10/2021,Revenue Expenditure ,Compass Travel,5863.5
West Sussex County Council,Highways & Transport Services,Public Transport Support,Contract Mb Route 692,Pub Transport Subsid,04/10/2021,Revenue Expenditure ,Metrobus Ltd,5035
West Sussex County Council,Highways & Transport Services,Public Transport Support,Contract Mb Route 610,Pub Transport Subsid,04/10/2021,Revenue Expenditure ,Metrobus Ltd,5241.42
West Sussex County Council,Highways & Transport Services,Public Transport Support,Contract Mb Route 2,Pub Transport Subsid,04/10/2021,Revenue Expenditure ,Metrobus Ltd,2470
West Sussex County Council,Highways & Transport Services,Public Transport Support,Contract Cl Route 33,Pub Transport Subsid,28/10/2021,Revenue Expenditure ,Compass Travel,2025.38
West Sussex County Council,Highways & Transport Services,Public Transport Support,Contract Cl Route 33,Pub Transport Subsid,28/10/2021,Revenue Expenditure ,Compass Travel,2756.93
West Sussex County Council,Highways & Transport Services,Public Transport Support,Contract Cl Route 33,Pub Transport Subsid,28/10/2021,Revenue Expenditure ,Compass Travel,4310.31
West Sussex County Council,Highways & Transport Services,Public Transport Support,Contract Cl Route 33,Pub Transport Subsid,28/10/2021,Revenue Expenditure ,Compass Travel,2004.25
West Sussex County Council,Highways & Transport Services,Public Transport Support,Contract Sc Route 674,Pub Transport Subsid,04/10/2021,Revenue Expenditure ,Metrobus Ltd,4442.74
West Sussex County Council,Highways & Transport Services,Public Transport Support,Contract Bh Route 20,Pub Transport Subsid,21/10/2021,Revenue Expenditure ,Brighton & Hove Bus & Coach Co,1449.99
West Sussex County Council,Highways & Transport Services,Highways Capital Works,1252 Old Swan Refurbishment,Pymnts-main contr.,15/10/2021,Capital Expenditure,Landbuild Ltd,9955
West Sussex County Council,Highways & Transport Services,Highways Capital Works,1252 Old Swan Refurbishment,Pymnts-main contr.,15/10/2021,Capital Expenditure,Landbuild Ltd,3074.54
West Sussex County Council,Highways & Transport Services,Highways Capital Works,1052 Ambersham Common,Pymnts-main contr.,15/10/2021,Capital Expenditure,Landbuild Ltd,32314.32
West Sussex County Council,Highways & Transport Services,Highways Capital Works,1030 New Woolmers,Pymnts-main contr.,28/10/2021,Capital Expenditure,Landbuild Ltd,57080.75
West Sussex County Council,Highways & Transport Services,Highways Capital Works,1491 Clympwick,Pymnts-main contr.,22/10/2021,Capital Expenditure,Wsp Uk Ltd,7654.8
West Sussex County Council,Highways & Transport Services,Highways Capital Works,1086 Boxall,Pymnts-main contr.,22/10/2021,Capital Expenditure,Wsp Uk Ltd,1295.55
West Sussex County Council,Highways & Transport Services,Highways Capital Works,1485 South Lancing Overbridge,Pymnts-main contr.,22/10/2021,Capital Expenditure,Wsp Uk Ltd,3570.89
West Sussex County Council,Highways & Transport Services,Highways Capital Works,1069 Stopham,Pymnts-main contr.,29/10/2021,Capital Expenditure,Landbuild Ltd,15668.05
West Sussex County Council,Highways & Transport Services,Highways Capital Works,Assessments,Pymnts-main contr.,22/10/2021,Capital Expenditure,Wsp Uk Ltd,3734.03
West Sussex County Council,Highways & Transport Services,Highways Capital Works,Pis,Other Consultant,06/10/2021,Capital Expenditure,Balfour Beatty Living Places Ltd,18878.6
West Sussex County Council,Highways & Transport Services,Highways Capital Works,3523 Centurion Way,Pymnts-main contr.,22/10/2021,Capital Expenditure,Wsp Uk Ltd,1022.45
West Sussex County Council,Highways & Transport Services,Highways Capital Works,1568 Ladybrook,Pymnts-main contr.,22/10/2021,Capital Expenditure,Wsp Uk Ltd,1937.52
West Sussex County Council,Highways & Transport Services,Highways Capital Works,"Basing Hill Northbound, Dial Post",Other Consultant,22/10/2021,Capital Expenditure,Wsp Uk Ltd,3177.1
West Sussex County Council,Highways & Transport Services,Highways Capital Works,"Ditching Road, Clayton",Other Consultant,06/10/2021,Capital Expenditure,Balfour Beatty Living Places Ltd,6648.16
West Sussex County Council,Highways & Transport Services,Highways Capital Works,"Ditching Road, Clayton",Other Consultant,22/10/2021,Capital Expenditure,Wsp Uk Ltd,3270.44
West Sussex County Council,Highways & Transport Services,Highways Capital Works,"Queens Crescent, Burgess Hill",Other Consultant,22/10/2021,Capital Expenditure,Wsp Uk Ltd,480.12
West Sussex County Council,Highways & Transport Services,Highways Capital Works,"High Street, Balcombe",Other Consultant,22/10/2021,Capital Expenditure,Wsp Uk Ltd,6492.11
West Sussex County Council,Highways & Transport Services,Highways Capital Works,"Stoaches Farm, Freshfield Lane",Other Consultant,22/10/2021,Capital Expenditure,Wsp Uk Ltd,11058.57
West Sussex County Council,Highways & Transport Services,Highways Capital Works,"Jane Murray Way, Burgess Hill",Other Consultant,22/10/2021,Capital Expenditure,Wsp Uk Ltd,1400.68
West Sussex County Council,Highways & Transport Services,Highways Capital Works,000 - A29 Bury Hill,Pymnts-main contr.,27/10/2021,Capital Expenditure,Landbuild Ltd,5658.94
West Sussex County Council,Highways & Transport Services,Highways Capital Works,High Collision Programme,Other Consultant,22/10/2021,Capital Expenditure,Wsp Uk Ltd,10431.14
West Sussex County Council,Highways & Transport Services,Highways Capital Works,High Collision Programme,Other Consultant,22/10/2021,Capital Expenditure,Wsp Uk Ltd,8860.05
West Sussex County Council,Highways & Transport Services,Highways Capital Works,Monitoring And Evaluation,Feasibility Studies,26/10/2021,Capital Expenditure,Sse Contracting Limited,912.5
West Sussex County Council,Highways & Transport Services,Highways Capital Works,Monitoring And Evaluation,Feasibility Studies,26/10/2021,Capital Expenditure,Sse Contracting Limited,2278.12
West Sussex County Council,Highways & Transport Services,Highways Capital Works,Monitoring And Evaluation,Feasibility Studies,28/10/2021,Capital Expenditure,Vivacity Labs Limited,41454
West Sussex County Council,Highways & Transport Services,Highways Capital Works,Cross Street Worthing,Other Consultant,22/10/2021,Capital Expenditure,Wsp Uk Ltd,3031.31
West Sussex County Council,Highways & Transport Services,Highways Capital Works,A259 Bersted,Other Consultant,22/10/2021,Capital Expenditure,Wsp Uk Ltd,10388.12
West Sussex County Council,Highways & Transport Services,Highways Capital Works,River Road Littlehampton,Other Consultant,22/10/2021,Capital Expenditure,Wsp Uk Ltd,2568.67
West Sussex County Council,Highways & Transport Services,Highways Capital Works,The Gatwick School Crawley,Other Consultant,22/10/2021,Capital Expenditure,Wsp Uk Ltd,7169.52
West Sussex County Council,Highways & Transport Services,Highways Capital Works,A283 Steyning Road Shoreham,Other Consultant,22/10/2021,Capital Expenditure,Wsp Uk Ltd,4930.01
West Sussex County Council,Highways & Transport Services,Highways Capital Works,A24 Findon,Other Consultant,22/10/2021,Capital Expenditure,Wsp Uk Ltd,14353.05
West Sussex County Council,Highways & Transport Services,Highways Capital Works,Pipeline Scheme Development,Equipment Other,22/10/2021,Capital Expenditure,Wsp Uk Ltd,4289.3
West Sussex County Council,Highways & Transport Services,Highways Capital Works,Pipeline Scheme Development,Equipment Other,22/10/2021,Capital Expenditure,Wsp Uk Ltd,6087.07
West Sussex County Council,Highways & Transport Services,Highways Capital Works,Storrington Road Bw E3 Crossing Imp,Pymnts-main contr.,22/10/2021,Capital Expenditure,Wsp Uk Ltd,1156.09
West Sussex County Council,Highways & Transport Services,Highways Capital Works,Comptons Lane Horsham Cycling Imp,Equipment Other,22/10/2021,Capital Expenditure,Wsp Uk Ltd,3247.88
West Sussex County Council,Highways & Transport Services,Highways Capital Works,Southgate Avenue Crawley Cycling Imp,Other Consultant,22/10/2021,Capital Expenditure,Wsp Uk Ltd,32525.29
West Sussex County Council,Highways & Transport Services,Highways Capital Works,Dale Avenue Hassocks Cycling Imp,Other Consultant,22/10/2021,Capital Expenditure,Wsp Uk Ltd,9336.46
West Sussex County Council,Highways & Transport Services,Highways Capital Works,South Mundham Bw Upgrade,Pymnts-main contr.,22/10/2021,Capital Expenditure,Wsp Uk Ltd,801.31
West Sussex County Council,Highways & Transport Services,Highways Capital Works,Fp5Wh - West Hoathly,Pymnts-main contr.,14/10/2021,Capital Expenditure,Barcombe Landscapes Ltd,10374
West Sussex County Council,Highways & Transport Services,Highways Capital Works,70500527 Commercial Square Stip,Other Consultant,22/10/2021,Capital Expenditure,Wsp Uk Ltd,1408.95
West Sussex County Council,Highways & Transport Services,Highways Capital Works,70500527 Commercial Square Stip,Other Consultant,22/10/2021,Capital Expenditure,Wsp Uk Ltd,1308.84
West Sussex County Council,Highways & Transport Services,Highways Capital Works,70500527 Commercial Square Stip,Other Consultant,22/10/2021,Capital Expenditure,Wsp Uk Ltd,1481.48
West Sussex County Council,Highways & Transport Services,Highways Capital Works,Chs - Midhurst A272 Footpath Widening,Dsgn Consultant,22/10/2021,Capital Expenditure,Wsp Uk Ltd,4936.03
West Sussex County Council,Highways & Transport Services,Highways Capital Works,6011194 Copthorne Road Controlled Cross,Pymnts-main contr.,22/10/2021,Capital Expenditure,Wsp Uk Ltd,973.57
West Sussex County Council,Highways & Transport Services,Highways Capital Works,435167 Tarring Area Traffic Calming,Feasibility Studies,27/10/2021,Capital Expenditure,Landbuild Ltd,4002.27
West Sussex County Council,Highways & Transport Services,Highways Capital Works,3008269 Blackboy Lane Footway Proposals,Pymnts-main contr.,27/10/2021,Capital Expenditure,Landbuild Ltd,32379.43
West Sussex County Council,Highways & Transport Services,Highways Capital Works,Fp1096 - Fernhurst,Pymnts-main contr.,22/10/2021,Capital Expenditure,Wsp Uk Ltd,770.98
West Sussex County Council,Highways & Transport Services,Highways Capital Works,Bw1796 - Nuthurst,Pymnts-main contr.,21/10/2021,Capital Expenditure,Barcombe Landscapes Ltd,13471.27
West Sussex County Council,Highways & Transport Services,Highways Capital Works,Fp780/1 - Billingshurst,Pymnts-main contr.,22/10/2021,Capital Expenditure,Wsp Uk Ltd,2092.66
West Sussex County Council,Highways & Transport Services,Highways Capital Works,21-22 Road Surfacing Design,Other Consultant,01/10/2021,Capital Expenditure,Matrix Scm Limited,646.32
West Sussex County Council,Highways & Transport Services,Highways Capital Works,21-22 Road Surfacing Design,Other Consultant,01/10/2021,Capital Expenditure,Matrix Scm Limited,1038.6
West Sussex County Council,Highways & Transport Services,Highways Capital Works,21-22 Road Surfacing Design,Other Consultant,08/10/2021,Capital Expenditure,Matrix Scm Limited,646.32
West Sussex County Council,Highways & Transport Services,Highways Capital Works,21-22 Road Surfacing Design,Other Consultant,08/10/2021,Capital Expenditure,Matrix Scm Limited,1298.25
West Sussex County Council,Highways & Transport Services,Highways Capital Works,21-22 Road Surfacing Design,Other Consultant,15/10/2021,Capital Expenditure,Matrix Scm Limited,646.32
West Sussex County Council,Highways & Transport Services,Highways Capital Works,21-22 Road Surfacing Design,Other Consultant,15/10/2021,Capital Expenditure,Matrix Scm Limited,1298.25
West Sussex County Council,Highways & Transport Services,Highways Capital Works,21-22 Road Surfacing Design,Other Consultant,22/10/2021,Capital Expenditure,Matrix Scm Limited,646.32
West Sussex County Council,Highways & Transport Services,Highways Capital Works,21-22 Road Surfacing Design,Other Consultant,22/10/2021,Capital Expenditure,Matrix Scm Limited,1298.25
West Sussex County Council,Highways & Transport Services,Highways Capital Works,21-22 Road Surfacing Design,Other Consultant,29/10/2021,Capital Expenditure,Matrix Scm Limited,1298.25
West Sussex County Council,Highways & Transport Services,Highways Capital Works,69601 A24 Pollards Way Nb,Pymnts-main contr.,04/10/2021,Capital Expenditure,Tarmac Trading Limited,632112.54
West Sussex County Council,Highways & Transport Services,Highways Capital Works,6009027 A24 Washington Bypass Northbound,Pymnts-main contr.,04/10/2021,Capital Expenditure,F M Conway Ltd,730073.22
West Sussex County Council,Highways & Transport Services,Highways Capital Works,6009027 A24 Washington Bypass Northbound,Pymnts-main contr.,18/10/2021,Capital Expenditure,F M Conway Ltd,28383.19
West Sussex County Council,Highways & Transport Services,Highways Capital Works,6000580-1630 A24 Great Daux Rbt Warnham,Pymnts-main contr.,26/10/2021,Capital Expenditure,F M Conway Ltd,201625.91
West Sussex County Council,Highways & Transport Services,Highways Capital Works,6009029-1619 A24 Washington Bypass South,Pymnts-main contr.,18/10/2021,Capital Expenditure,Traffic Gb Limited,1800
West Sussex County Council,Highways & Transport Services,Highways Capital Works,6009029-1619 A24 Washington Bypass South,Pymnts-main contr.,15/10/2021,Capital Expenditure,F M Conway Ltd,708715.89
West Sussex County Council,Highways & Transport Services,Highways Capital Works,6009029-1619 A24 Washington Bypass South,Pymnts-main contr.,26/10/2021,Capital Expenditure,F M Conway Ltd,153894.68
West Sussex County Council,Highways & Transport Services,Highways Capital Works,6000390-1607 A29 Church Hill Pulborough,Pymnts-main contr.,26/10/2021,Capital Expenditure,F M Conway Ltd,113335.47
West Sussex County Council,Highways & Transport Services,Highways Capital Works,6009769-1606 A259 High St Worthing Centr,Pymnts-main contr.,04/10/2021,Capital Expenditure,F M Conway Ltd,2868.16
West Sussex County Council,Highways & Transport Services,Highways Capital Works,6009575-16014 A24 Worthing Rd Southbound,Pymnts-main contr.,26/10/2021,Capital Expenditure,F M Conway Ltd,330401.43
West Sussex County Council,Highways & Transport Services,Highways Capital Works,930772-1593 A259 Brighton Rd Shoreham,Pymnts-main contr.,15/10/2021,Capital Expenditure,F M Conway Ltd,119341.66
West Sussex County Council,Highways & Transport Services,Highways Capital Works,6009822-1592 A259 High Street Shoreham,Pymnts-main contr.,18/10/2021,Capital Expenditure,F M Conway Ltd,13195.18
West Sussex County Council,Highways & Transport Services,Highways Capital Works,6009822-1592 A259 High Street Shoreham,Pymnts-main contr.,15/10/2021,Capital Expenditure,F M Conway Ltd,119895.93
West Sussex County Council,Highways & Transport Services,Highways Capital Works,6011382-950 Westbourne D55 Marlpit Lane,Pymnts-main contr.,26/10/2021,Capital Expenditure,Eurovia Infrastructure Limited,509.51
West Sussex County Council,Highways & Transport Services,Highways Capital Works,6011382-950 Westbourne D55 Marlpit Lane,Pymnts-main contr.,18/10/2021,Capital Expenditure,Eurovia Infrastructure Limited,8375.9
West Sussex County Council,Highways & Transport Services,Highways Capital Works,6011381-954 Westbourne D55 Woodmancote L,Pymnts-main contr.,18/10/2021,Capital Expenditure,Eurovia Infrastructure Limited,12975.89
West Sussex County Council,Highways & Transport Services,Highways Capital Works,6011381-954 Westbourne D55 Woodmancote L,Pymnts-main contr.,26/10/2021,Capital Expenditure,Eurovia Infrastructure Limited,701.83
West Sussex County Council,Highways & Transport Services,Highways Capital Works,6004637-949 Thakeham D114 Peacocks Lane,Pymnts-main contr.,18/10/2021,Capital Expenditure,Eurovia Infrastructure Limited,6614.2
West Sussex County Council,Highways & Transport Services,Highways Capital Works,6011112-951 Sutton D75 Blue Doors Road,Pymnts-main contr.,18/10/2021,Capital Expenditure,Eurovia Infrastructure Limited,21221.35
West Sussex County Council,Highways & Transport Services,Highways Capital Works,6000657-894 Siddlesham Chichester Road,Pymnts-main contr.,26/10/2021,Capital Expenditure,Eurovia Infrastructure Limited,6344.21
West Sussex County Council,Highways & Transport Services,Highways Capital Works,6000657-894 Siddlesham Chichester Road,Pymnts-main contr.,18/10/2021,Capital Expenditure,Eurovia Infrastructure Limited,18967.21
West Sussex County Council,Highways & Transport Services,Highways Capital Works,6011342-952 Lavant D57 West Broyle Road,Pymnts-main contr.,18/10/2021,Capital Expenditure,Eurovia Infrastructure Limited,7364.2
West Sussex County Council,Highways & Transport Services,Highways Capital Works,6009025-953 Lavant D57 West Stoke Road,Pymnts-main contr.,18/10/2021,Capital Expenditure,Eurovia Infrastructure Limited,14560.91
West Sussex County Council,Highways & Transport Services,Highways Capital Works,613828-948 Fisbourne D54 Blackboy Lane,Pymnts-main contr.,18/10/2021,Capital Expenditure,Eurovia Infrastructure Limited,13376.54
West Sussex County Council,Highways & Transport Services,Highways Capital Works,613828-948 Fisbourne D54 Blackboy Lane,Pymnts-main contr.,26/10/2021,Capital Expenditure,Eurovia Infrastructure Limited,828.7
West Sussex County Council,Highways & Transport Services,Highways Capital Works,6007782-928 Worthing Durrington C37 Titn,Pymnts-main contr.,27/10/2021,Capital Expenditure,Eurovia Infrastructure Limited,15007.9
West Sussex County Council,Highways & Transport Services,Highways Capital Works,6007782-928 Worthing Durrington C37 Titn,Pymnts-main contr.,18/10/2021,Capital Expenditure,Eurovia Infrastructure Limited,63326.55
West Sussex County Council,Highways & Transport Services,Highways Capital Works,6009098-935 Woodmancote C6 Horn Lane,Pymnts-main contr.,18/10/2021,Capital Expenditure,Eurovia Infrastructure Limited,33812.68
West Sussex County Council,Highways & Transport Services,Highways Capital Works,6009098-935 Woodmancote C6 Horn Lane,Pymnts-main contr.,27/10/2021,Capital Expenditure,Eurovia Infrastructure Limited,22946.12
West Sussex County Council,Highways & Transport Services,Highways Capital Works,6009098-935 Woodmancote C6 Horn Lane,Pymnts-main contr.,18/10/2021,Capital Expenditure,Eurovia Infrastructure Limited,6437.23
West Sussex County Council,Highways & Transport Services,Highways Capital Works,6009098-935 Woodmancote C6 Horn Lane,Pymnts-main contr.,18/10/2021,Capital Expenditure,Eurovia Infrastructure Limited,6437.23
West Sussex County Council,Highways & Transport Services,Highways Capital Works,6009098-935 Woodmancote C6 Horn Lane,Pymnts-main contr.,21/10/2021,Capital Expenditure,Eurovia Infrastructure Limited,33812.68
West Sussex County Council,Highways & Transport Services,Highways Capital Works,6001093-914 Wisborough Green C122 Fittle,Pymnts-main contr.,18/10/2021,Capital Expenditure,Eurovia Infrastructure Limited,46783.4
West Sussex County Council,Highways & Transport Services,Highways Capital Works,6009091-927 West Hoathly C319 Selsfield,Pymnts-main contr.,18/10/2021,Capital Expenditure,Eurovia Infrastructure Limited,40412.59
West Sussex County Council,Highways & Transport Services,Highways Capital Works,6010561-939 West Grinstead C68 Park Lane,Pymnts-main contr.,18/10/2021,Capital Expenditure,Eurovia Infrastructure Limited,18980.79
West Sussex County Council,Highways & Transport Services,Highways Capital Works,6006493-912 Sutton C113 Coates Lane,Pymnts-main contr.,27/10/2021,Capital Expenditure,Eurovia Infrastructure Limited,439.11
West Sussex County Council,Highways & Transport Services,Highways Capital Works,6006493-912 Sutton C113 Coates Lane,Pymnts-main contr.,18/10/2021,Capital Expenditure,Eurovia Infrastructure Limited,20445.62
West Sussex County Council,Highways & Transport Services,Highways Capital Works,6009100-942 Pulborough C99 Nutbourne Ln,Pymnts-main contr.,18/10/2021,Capital Expenditure,Eurovia Infrastructure Limited,22051.21
West Sussex County Council,Highways & Transport Services,Highways Capital Works,6004605-946 Pulborough C99 D113 Gay St,Pymnts-main contr.,27/10/2021,Capital Expenditure,Eurovia Infrastructure Limited,550.26
West Sussex County Council,Highways & Transport Services,Highways Capital Works,6004605-946 Pulborough C99 D113 Gay St,Pymnts-main contr.,18/10/2021,Capital Expenditure,Eurovia Infrastructure Limited,23003.91
West Sussex County Council,Highways & Transport Services,Highways Capital Works,6006369-930 Petworth C4 Haslingbourne Ln,Pymnts-main contr.,18/10/2021,Capital Expenditure,Eurovia Infrastructure Limited,6537.56
West Sussex County Council,Highways & Transport Services,Highways Capital Works,6006369-930 Petworth C4 Haslingbourne Ln,Pymnts-main contr.,27/10/2021,Capital Expenditure,Eurovia Infrastructure Limited,32937.55
West Sussex County Council,Highways & Transport Services,Highways Capital Works,6006369-930 Petworth C4 Haslingbourne Ln,Pymnts-main contr.,18/10/2021,Capital Expenditure,Eurovia Infrastructure Limited,6537.56
West Sussex County Council,Highways & Transport Services,Highways Capital Works,6006369-930 Petworth C4 Haslingbourne Ln,Pymnts-main contr.,21/10/2021,Capital Expenditure,Eurovia Infrastructure Limited,6537.56
West Sussex County Council,Highways & Transport Services,Highways Capital Works,6006369-930 Petworth C4 Haslingbourne Ln,Pymnts-main contr.,18/10/2021,Capital Expenditure,Eurovia Infrastructure Limited,47332.44
West Sussex County Council,Highways & Transport Services,Highways Capital Works,6010507-923 Lavant C3 Hunters Race,Pymnts-main contr.,27/10/2021,Capital Expenditure,Eurovia Infrastructure Limited,2821.62
West Sussex County Council,Highways & Transport Services,Highways Capital Works,6010507-923 Lavant C3 Hunters Race,Pymnts-main contr.,18/10/2021,Capital Expenditure,Eurovia Infrastructure Limited,26576.06
West Sussex County Council,Highways & Transport Services,Highways Capital Works,6011237-937 Goodwood C67 Kennel Hill Rd,Pymnts-main contr.,26/10/2021,Capital Expenditure,Eurovia Infrastructure Limited,15128.67
West Sussex County Council,Highways & Transport Services,Highways Capital Works,6011237-937 Goodwood C67 Kennel Hill Rd,Pymnts-main contr.,18/10/2021,Capital Expenditure,Eurovia Infrastructure Limited,30561.99
West Sussex County Council,Highways & Transport Services,Highways Capital Works,6011002-922 Funtington C123 Clay Lane,Pymnts-main contr.,26/10/2021,Capital Expenditure,Eurovia Infrastructure Limited,4717.03
West Sussex County Council,Highways & Transport Services,Highways Capital Works,6011622-917 Fishbourne C123 Clay Lane,Pymnts-main contr.,26/10/2021,Capital Expenditure,Eurovia Infrastructure Limited,9710.99
West Sussex County Council,Highways & Transport Services,Highways Capital Works,6011622-917 Fishbourne C123 Clay Lane,Pymnts-main contr.,18/10/2021,Capital Expenditure,Eurovia Infrastructure Limited,27173.66
West Sussex County Council,Highways & Transport Services,Highways Capital Works,6010804-931 Chichester C451 Brandy Hole,Pymnts-main contr.,18/10/2021,Capital Expenditure,Eurovia Infrastructure Limited,26406.02
West Sussex County Council,Highways & Transport Services,Highways Capital Works,6010804-931 Chichester C451 Brandy Hole,Pymnts-main contr.,26/10/2021,Capital Expenditure,Eurovia Infrastructure Limited,8487.25
West Sussex County Council,Highways & Transport Services,Highways Capital Works,6011269-933 Bolney C53 Wineham Lane,Pymnts-main contr.,18/10/2021,Capital Expenditure,Eurovia Infrastructure Limited,25070.99
West Sussex County Council,Highways & Transport Services,Highways Capital Works,6010647-925 Bolney C302 Chapel Road,Pymnts-main contr.,18/10/2021,Capital Expenditure,Eurovia Infrastructure Limited,29798.81
West Sussex County Council,Highways & Transport Services,Highways Capital Works,6011305-918 Barlavington C113 Burton Pk,Pymnts-main contr.,18/10/2021,Capital Expenditure,Eurovia Infrastructure Limited,24627.33
West Sussex County Council,Highways & Transport Services,Highways Capital Works,930407-924 Stoughton C30 Diddybones Nap,Pymnts-main contr.,18/10/2021,Capital Expenditure,Eurovia Infrastructure Limited,18967.21
West Sussex County Council,Highways & Transport Services,Highways Capital Works,6009323-907 B2166 Lower Bognor Rd Pagham,Pymnts-main contr.,26/10/2021,Capital Expenditure,Eurovia Infrastructure Limited,18169.98
West Sussex County Council,Highways & Transport Services,Highways Capital Works,6009323-907 B2166 Lower Bognor Rd Pagham,Pymnts-main contr.,18/10/2021,Capital Expenditure,Eurovia Infrastructure Limited,38172.82
West Sussex County Council,Highways & Transport Services,Highways Capital Works,6011378-891 B2146 Funtington Southbrook,Pymnts-main contr.,18/10/2021,Capital Expenditure,Eurovia Infrastructure Limited,48600.58
West Sussex County Council,Highways & Transport Services,Highways Capital Works,6011378-891 B2146 Funtington Southbrook,Pymnts-main contr.,27/10/2021,Capital Expenditure,Eurovia Infrastructure Limited,6358.59
West Sussex County Council,Highways & Transport Services,Highways Capital Works,6004721-879 B2145 Selsey Road Siddlesham,Pymnts-main contr.,18/10/2021,Capital Expenditure,Eurovia Infrastructure Limited,33602.69
West Sussex County Council,Highways & Transport Services,Highways Capital Works,6004721-879 B2145 Selsey Road Siddlesham,Pymnts-main contr.,26/10/2021,Capital Expenditure,Eurovia Infrastructure Limited,25830.64
West Sussex County Council,Highways & Transport Services,Highways Capital Works,6000941-909 B2145 Hillfield Road Selsey,Pymnts-main contr.,27/10/2021,Capital Expenditure,Eurovia Infrastructure Limited,6765.66
West Sussex County Council,Highways & Transport Services,Highways Capital Works,6000941-909 B2145 Hillfield Road Selsey,Pymnts-main contr.,18/10/2021,Capital Expenditure,Eurovia Infrastructure Limited,12283.66
West Sussex County Council,Highways & Transport Services,Highways Capital Works,6010685-877 B2145 Hunston Road Hunston,Pymnts-main contr.,18/10/2021,Capital Expenditure,Eurovia Infrastructure Limited,14876.65
West Sussex County Council,Highways & Transport Services,Highways Capital Works,6010685-877 B2145 Hunston Road Hunston,Pymnts-main contr.,26/10/2021,Capital Expenditure,Eurovia Infrastructure Limited,20087.29
West Sussex County Council,Highways & Transport Services,Highways Capital Works,6001094-906 B2141 Elsted Marden Hill To,Pymnts-main contr.,18/10/2021,Capital Expenditure,Eurovia Infrastructure Limited,14818.68
West Sussex County Council,Highways & Transport Services,Highways Capital Works,6001094-906 B2141 Elsted Marden Hill To,Pymnts-main contr.,26/10/2021,Capital Expenditure,Eurovia Infrastructure Limited,8967.57
West Sussex County Council,Highways & Transport Services,Highways Capital Works,6003546-910 B2141 Chilgrove Pk To Old W,Pymnts-main contr.,26/10/2021,Capital Expenditure,Eurovia Infrastructure Limited,2222.17
West Sussex County Council,Highways & Transport Services,Highways Capital Works,6003546-910 B2141 Chilgrove Pk To Old W,Pymnts-main contr.,18/10/2021,Capital Expenditure,Eurovia Infrastructure Limited,3537.08
West Sussex County Council,Highways & Transport Services,Highways Capital Works,6011242-903 B2138 Trip Hill Fittleworth,Pymnts-main contr.,27/10/2021,Capital Expenditure,Eurovia Infrastructure Limited,13862.42
West Sussex County Council,Highways & Transport Services,Highways Capital Works,6011242-903 B2138 Trip Hill Fittleworth,Pymnts-main contr.,18/10/2021,Capital Expenditure,Eurovia Infrastructure Limited,21174.95
West Sussex County Council,Highways & Transport Services,Highways Capital Works,6010847-872 B2135 Church Rd West Grinste,Pymnts-main contr.,18/10/2021,Capital Expenditure,Eurovia Infrastructure Limited,9152.85
West Sussex County Council,Highways & Transport Services,Highways Capital Works,6010845-887 B2135 Bines Green Ashurst,Pymnts-main contr.,27/10/2021,Capital Expenditure,Eurovia Infrastructure Limited,20535.58
West Sussex County Council,Highways & Transport Services,Highways Capital Works,6010845-887 B2135 Bines Green Ashurst,Pymnts-main contr.,18/10/2021,Capital Expenditure,Eurovia Infrastructure Limited,44812.39
West Sussex County Council,Highways & Transport Services,Highways Capital Works,6009562-886 B2135 Horsham Road Steyning,Pymnts-main contr.,18/10/2021,Capital Expenditure,Eurovia Infrastructure Limited,74657.79
West Sussex County Council,Highways & Transport Services,Highways Capital Works,6010880-888 B2131 Liphook Rd Linchmere,Pymnts-main contr.,26/10/2021,Capital Expenditure,Eurovia Infrastructure Limited,17201.93
West Sussex County Council,Highways & Transport Services,Highways Capital Works,6010880-888 B2131 Liphook Rd Linchmere,Pymnts-main contr.,18/10/2021,Capital Expenditure,Eurovia Infrastructure Limited,34240.42
West Sussex County Council,Highways & Transport Services,Highways Capital Works,6010882-890 B2131 Linchmere Road Hammer,Pymnts-main contr.,18/10/2021,Capital Expenditure,Eurovia Infrastructure Limited,21575.33
West Sussex County Council,Highways & Transport Services,Highways Capital Works,6010882-890 B2131 Linchmere Road Hammer,Pymnts-main contr.,26/10/2021,Capital Expenditure,Eurovia Infrastructure Limited,5437.42
West Sussex County Council,Highways & Transport Services,Highways Capital Works,930892-896 B2118 London Rd Albourne,Pymnts-main contr.,18/10/2021,Capital Expenditure,Eurovia Infrastructure Limited,54206
West Sussex County Council,Highways & Transport Services,Highways Capital Works,6011073-897 B2110 East Street Turners Hi,Pymnts-main contr.,18/10/2021,Capital Expenditure,Eurovia Infrastructure Limited,63411.75
West Sussex County Council,Highways & Transport Services,Highways Capital Works,6006935-901 B2036 Balcombe Rd Turners Hi,Pymnts-main contr.,18/10/2021,Capital Expenditure,Eurovia Infrastructure Limited,54702.46
West Sussex County Council,Highways & Transport Services,Highways Capital Works,6011467-908 B2028 Turners Hill Rd Worth,Pymnts-main contr.,18/10/2021,Capital Expenditure,Eurovia Infrastructure Limited,3771.23
West Sussex County Council,Highways & Transport Services,Highways Capital Works,930896-899 B2028 Turners Hill Rd Worth,Pymnts-main contr.,18/10/2021,Capital Expenditure,Eurovia Infrastructure Limited,96420.75
West Sussex County Council,Highways & Transport Services,Highways Capital Works,6000655-898 B2028 Selsfield Rd Turners H,Pymnts-main contr.,18/10/2021,Capital Expenditure,Eurovia Infrastructure Limited,23357.63
West Sussex County Council,Highways & Transport Services,Highways Capital Works,6010983-866 A2037 Henfield Rd Upper Beed,Pymnts-main contr.,27/10/2021,Capital Expenditure,Eurovia Infrastructure Limited,30673.21
West Sussex County Council,Highways & Transport Services,Highways Capital Works,6010983-866 A2037 Henfield Rd Upper Beed,Pymnts-main contr.,18/10/2021,Capital Expenditure,Eurovia Infrastructure Limited,132000.55
West Sussex County Council,Highways & Transport Services,Highways Capital Works,6010492-869 A281 Brighton Road Horsham,Pymnts-main contr.,27/10/2021,Capital Expenditure,Eurovia Infrastructure Limited,33080.87
West Sussex County Council,Highways & Transport Services,Highways Capital Works,6010492-869 A281 Brighton Road Horsham,Pymnts-main contr.,18/10/2021,Capital Expenditure,Eurovia Infrastructure Limited,70136.48
West Sussex County Council,Highways & Transport Services,Highways Capital Works,6010474-863 A281 London Road Henfield,Pymnts-main contr.,18/10/2021,Capital Expenditure,Eurovia Infrastructure Limited,6067.85
West Sussex County Council,Highways & Transport Services,Highways Capital Works,6010474-863 A281 London Road Henfield,Pymnts-main contr.,18/10/2021,Capital Expenditure,Eurovia Infrastructure Limited,6067.84
West Sussex County Council,Highways & Transport Services,Highways Capital Works,6010474-863 A281 London Road Henfield,Pymnts-main contr.,27/10/2021,Capital Expenditure,Eurovia Infrastructure Limited,37470.07
West Sussex County Council,Highways & Transport Services,Highways Capital Works,6010474-863 A281 London Road Henfield,Pymnts-main contr.,18/10/2021,Capital Expenditure,Eurovia Infrastructure Limited,47371.97
West Sussex County Council,Highways & Transport Services,Highways Capital Works,6010438-860 A272 Coolham Rd West Grinste,Pymnts-main contr.,27/10/2021,Capital Expenditure,Eurovia Infrastructure Limited,40273.05
West Sussex County Council,Highways & Transport Services,Highways Capital Works,6010438-860 A272 Coolham Rd West Grinste,Pymnts-main contr.,18/10/2021,Capital Expenditure,Eurovia Infrastructure Limited,100381.3
West Sussex County Council,Highways & Transport Services,Highways Capital Works,6010326-875 A272 Bolney Cowfold Road,Pymnts-main contr.,18/10/2021,Capital Expenditure,Eurovia Infrastructure Limited,9900.16
West Sussex County Council,Highways & Transport Services,Highways Capital Works,6010326-875 A272 Bolney Cowfold Road,Pymnts-main contr.,27/10/2021,Capital Expenditure,Eurovia Infrastructure Limited,53308.04
West Sussex County Council,Highways & Transport Services,Highways Capital Works,6010326-875 A272 Bolney Cowfold Road,Pymnts-main contr.,18/10/2021,Capital Expenditure,Eurovia Infrastructure Limited,89340.5
West Sussex County Council,Highways & Transport Services,Highways Capital Works,6010326-875 A272 Bolney Cowfold Road,Pymnts-main contr.,21/10/2021,Capital Expenditure,Eurovia Infrastructure Limited,9900.16
West Sussex County Council,Highways & Transport Services,Highways Capital Works,6008495-1659 A259 Littlehmp Rust By East,Pymnts-main contr.,18/10/2021,Capital Expenditure,Eurovia Infrastructure Limited,98119.66
West Sussex County Council,Highways & Transport Services,Highways Capital Works,6007787-4434 A259 Littlehmp Rustingto By,Pymnts-main contr.,18/10/2021,Capital Expenditure,Eurovia Infrastructure Limited,95294.05
West Sussex County Council,Highways & Transport Services,Highways Capital Works,6000618-1753 A259 New Rd Angmering Eastb,Pymnts-main contr.,18/10/2021,Capital Expenditure,Eurovia Infrastructure Limited,30360.92
West Sussex County Council,Highways & Transport Services,Highways Capital Works,932230-4435 A259 New Rd Angmering Westb,Pymnts-main contr.,18/10/2021,Capital Expenditure,Eurovia Infrastructure Limited,29550.84
West Sussex County Council,Highways & Transport Services,Highways Capital Works,932230-4435 A259 New Rd Angmering Westb,Pymnts-main contr.,27/10/2021,Capital Expenditure,Eurovia Infrastructure Limited,7605.12
West Sussex County Council,Highways & Transport Services,Highways Capital Works,932230-4435 A259 New Rd Angmering Westb,Pymnts-main contr.,18/10/2021,Capital Expenditure,Eurovia Infrastructure Limited,6111.4
West Sussex County Council,Highways & Transport Services,Highways Capital Works,6011638-876 A259 Oving Eastbound,Pymnts-main contr.,18/10/2021,Capital Expenditure,Eurovia Infrastructure Limited,83204.15
West Sussex County Council,Highways & Transport Services,Highways Capital Works,6011638-876 A259 Oving Eastbound,Pymnts-main contr.,27/10/2021,Capital Expenditure,Eurovia Infrastructure Limited,25849.21
West Sussex County Council,Highways & Transport Services,Highways Capital Works,6011009-868 A29 Billingshurst Bypass Bil,Pymnts-main contr.,18/10/2021,Capital Expenditure,Eurovia Infrastructure Limited,73269.17
West Sussex County Council,Highways & Transport Services,Highways Capital Works,6011009-868 A29 Billingshurst Bypass Bil,Pymnts-main contr.,18/10/2021,Capital Expenditure,Eurovia Infrastructure Limited,14161.53
West Sussex County Council,Highways & Transport Services,Highways Capital Works,6011009-868 A29 Billingshurst Bypass Bil,Pymnts-main contr.,27/10/2021,Capital Expenditure,Eurovia Infrastructure Limited,50451.61
West Sussex County Council,Highways & Transport Services,Highways Capital Works,6011009-868 A29 Billingshurst Bypass Bil,Pymnts-main contr.,18/10/2021,Capital Expenditure,Eurovia Infrastructure Limited,14161.53
West Sussex County Council,Highways & Transport Services,Highways Capital Works,6011009-868 A29 Billingshurst Bypass Bil,Pymnts-main contr.,21/10/2021,Capital Expenditure,Eurovia Infrastructure Limited,73269.17
West Sussex County Council,Highways & Transport Services,Highways Capital Works,970738-2040 Grover Av Roundabout Lancing,Pymnts-main contr.,26/10/2021,Capital Expenditure,F M Conway Ltd,18359.98
West Sussex County Council,Highways & Transport Services,Highways Capital Works,6011115-1986 Victoria Gardens Burgess Hi,Pymnts-main contr.,26/10/2021,Capital Expenditure,F M Conway Ltd,33546.47
West Sussex County Council,Highways & Transport Services,Highways Capital Works,6011114-1987 Victoria Way Burgess Hill,Pymnts-main contr.,26/10/2021,Capital Expenditure,F M Conway Ltd,55438.08
West Sussex County Council,Highways & Transport Services,Highways Capital Works,934133-1984 Victoria Road Burgess Hill,Pymnts-main contr.,26/10/2021,Capital Expenditure,F M Conway Ltd,78654.55
West Sussex County Council,Highways & Transport Services,Highways Capital Works,6009281-1863 B2115 Slough Green Lane,Pymnts-main contr.,26/10/2021,Capital Expenditure,F M Conway Ltd,75072.22
West Sussex County Council,Highways & Transport Services,Highways Capital Works,968425-1945 Rathlin Rd Rundabout Broadf,Pymnts-main contr.,26/10/2021,Capital Expenditure,F M Conway Ltd,65524.46
West Sussex County Council,Highways & Transport Services,Highways Capital Works,6008472-1847 B2259 Chichester Rd Bersted,Pymnts-main contr.,18/10/2021,Capital Expenditure,F M Conway Ltd,6850.38
West Sussex County Council,Highways & Transport Services,Highways Capital Works,6008472-1847 B2259 Chichester Rd Bersted,Pymnts-main contr.,06/10/2021,Capital Expenditure,F M Conway Ltd,87147.81
West Sussex County Council,Highways & Transport Services,Highways Capital Works,6009393-1870 Ash Grove Bognor Regis,Pymnts-main contr.,26/10/2021,Capital Expenditure,F M Conway Ltd,31578.6
West Sussex County Council,Highways & Transport Services,Highways Capital Works,6009239-1861 B2187 East St Littlehampton,Pymnts-main contr.,15/10/2021,Capital Expenditure,F M Conway Ltd,60321.89
West Sussex County Council,Highways & Transport Services,Highways Capital Works,6010636-760 Pagham Rd Pagham,Pymnts-main contr.,04/10/2021,Capital Expenditure,F M Conway Ltd,11171.16
West Sussex County Council,Highways & Transport Services,Highways Capital Works,Area Office Structural Patching 2021/22,Pymnts-main contr.,19/10/2021,Capital Expenditure,Balfour Beatty Living Places Ltd,677.23
West Sussex County Council,Cultural & Related Services,Highways Capital Works,Countrywide Carriageway Patching,Pymnts-main contr.,12/10/2021,Capital Expenditure,Balfour Beatty Living Places Ltd,49578.45
West Sussex County Council,Highways & Transport Services,Highways Capital Works,Footway Pm Costs,Other Consultant,08/10/2021,Capital Expenditure,Matrix Scm Limited,2535.72
West Sussex County Council,Highways & Transport Services,Highways Capital Works,Footway Pm Costs,Other Consultant,15/10/2021,Capital Expenditure,Matrix Scm Limited,2834.04
West Sussex County Council,Highways & Transport Services,Highways Capital Works,Footway Pm Costs,Other Consultant,22/10/2021,Capital Expenditure,Matrix Scm Limited,2759.46
West Sussex County Council,Highways & Transport Services,Highways Capital Works,Footway Pm Costs,Other Consultant,29/10/2021,Capital Expenditure,Matrix Scm Limited,2908.62
West Sussex County Council,Highways & Transport Services,Highways Capital Works,60403302-4251 Sherborne Road Chichester,Pymnts-main contr.,07/10/2021,Capital Expenditure,Jpcs Ltd,23999.99
West Sussex County Council,Highways & Transport Services,Highways Capital Works,60403300-4249 Parchment St To Orchard St,Pymnts-main contr.,07/10/2021,Capital Expenditure,Jpcs Ltd,1500
West Sussex County Council,Highways & Transport Services,Highways Capital Works,60403299-4247 Summersdale Rd Chichester,Pymnts-main contr.,07/10/2021,Capital Expenditure,Jpcs Ltd,9000
West Sussex County Council,Highways & Transport Services,Highways Capital Works,60403296-4244 Kingsham Road Chichester,Pymnts-main contr.,22/10/2021,Capital Expenditure,Jpcs Ltd,8702.04
West Sussex County Council,Highways & Transport Services,Highways Capital Works,6007497-4366 Hawarden Close Crawley Down,Pymnts-main contr.,07/10/2021,Capital Expenditure,Jpcs Ltd,15000
West Sussex County Council,Highways & Transport Services,Highways Capital Works,6011567-4241 Hophurst Lane Crawley Down,Pymnts-main contr.,22/10/2021,Capital Expenditure,Jpcs Ltd,-547
West Sussex County Council,Highways & Transport Services,Highways Capital Works,6007732-4363 Greenfield Road Slinfold,Pymnts-main contr.,07/10/2021,Capital Expenditure,Jpcs Ltd,21884.53
West Sussex County Council,Highways & Transport Services,Highways Capital Works,6007731-4362 The Grattons Slinfold,Pymnts-main contr.,07/10/2021,Capital Expenditure,Jpcs Ltd,4545.37
West Sussex County Council,Highways & Transport Services,Highways Capital Works,6007672-4240 Streetfield Road Slinfold,Pymnts-main contr.,07/10/2021,Capital Expenditure,Jpcs Ltd,37999.99
West Sussex County Council,Highways & Transport Services,Highways Capital Works,6009554-4361 Mosdell Road Southbourne,Pymnts-main contr.,07/10/2021,Capital Expenditure,Jpcs Ltd,1500
West Sussex County Council,Highways & Transport Services,Highways Capital Works,6009555-4360 Goodwood Court Southbourne,Pymnts-main contr.,07/10/2021,Capital Expenditure,Jpcs Ltd,1200
West Sussex County Council,Highways & Transport Services,Highways Capital Works,6009553-4239 New Road Southbourne,Pymnts-main contr.,07/10/2021,Capital Expenditure,Jpcs Ltd,4000
West Sussex County Council,Highways & Transport Services,Highways Capital Works,964061-4235 Kelvin Ln Crawley Northgate,Pymnts-main contr.,07/10/2021,Capital Expenditure,Jpcs Ltd,16797.15
West Sussex County Council,Highways & Transport Services,Highways Capital Works,6010503-4232 Searles View Horsham,Pymnts-main contr.,07/10/2021,Capital Expenditure,Jpcs Ltd,31200.75
West Sussex County Council,Highways & Transport Services,Highways Capital Works,613128-4317 Woodbury Avenue East Grinste,Pymnts-main contr.,28/10/2021,Capital Expenditure,Landbuild Ltd,5571.02
West Sussex County Council,Highways & Transport Services,Highways Capital Works,613127-4316 School Lane Ashurst Wood,Pymnts-main contr.,28/10/2021,Capital Expenditure,Landbuild Ltd,3224.89
West Sussex County Council,Highways & Transport Services,Highways Capital Works,613853-4258 Lark Rise Crawley,Pymnts-main contr.,27/10/2021,Capital Expenditure,Landbuild Ltd,5029.3
West Sussex County Council,Highways & Transport Services,Highways Capital Works,613855-4260 King Street East Grinstead,Pymnts-main contr.,29/10/2021,Capital Expenditure,Landbuild Ltd,3906.22
West Sussex County Council,Highways & Transport Services,Highways Capital Works,50041660-4264 Alders Avenue East Grinst,Pymnts-main contr.,29/10/2021,Capital Expenditure,Landbuild Ltd,6261.38
West Sussex County Council,Highways & Transport Services,Highways Capital Works,6009125-992 Hollands Road Henfield,Pymnts-main contr.,04/10/2021,Capital Expenditure,F M Conway Ltd,72000
West Sussex County Council,Highways & Transport Services,Highways Capital Works,6009125-992 Hollands Road Henfield,Pymnts-main contr.,19/10/2021,Capital Expenditure,F M Conway Ltd,2113.07
West Sussex County Council,Highways & Transport Services,Highways Capital Works,964075-991 Lewes Road Ashurst Wood,Pymnts-main contr.,04/10/2021,Capital Expenditure,F M Conway Ltd,7176.6
West Sussex County Council,Highways & Transport Services,Highways Capital Works,964075-991 Lewes Road Ashurst Wood,Pymnts-main contr.,04/10/2021,Capital Expenditure,F M Conway Ltd,38999.99
West Sussex County Council,Highways & Transport Services,Highways Capital Works,973617-987 Coachmans Drive To Crawley Av,Pymnts-main contr.,04/10/2021,Capital Expenditure,F M Conway Ltd,16000
West Sussex County Council,Highways & Transport Services,Highways Capital Works,973617-987 Coachmans Drive To Crawley Av,Pymnts-main contr.,19/10/2021,Capital Expenditure,F M Conway Ltd,2911.77
West Sussex County Council,Highways & Transport Services,Highways Capital Works,6008702-4226 Wembley Gardens Lancing,Pymnts-main contr.,12/10/2021,Capital Expenditure,F M Conway Ltd,32475.87
West Sussex County Council,Highways & Transport Services,Highways Capital Works,943460-4221 Crawley Avenue Crawley West,Pymnts-main contr.,04/10/2021,Capital Expenditure,F M Conway Ltd,5710.88
West Sussex County Council,Highways & Transport Services,Highways Capital Works,943460-4221 Crawley Avenue Crawley West,Pymnts-main contr.,04/10/2021,Capital Expenditure,F M Conway Ltd,21999.99
West Sussex County Council,Highways & Transport Services,Highways Capital Works,Carriageways - Local Roads Design,Vehicles,18/10/2021,Capital Expenditure,Enterprise Flex E Rent,606.6
West Sussex County Council,Highways & Transport Services,Highways Capital Works,Carriageways - Local Roads Design,Vehicles,13/10/2021,Capital Expenditure,Enterprise Flex E Rent,461.1
West Sussex County Council,Highways & Transport Services,Highways Capital Works,Carriageways - Local Roads Design,Vehicles,13/10/2021,Capital Expenditure,Enterprise Flex E Rent,531.42
West Sussex County Council,Highways & Transport Services,Highways Capital Works,Carriageways - Local Roads Design,Vehicles,25/10/2021,Capital Expenditure,Enterprise Flex E Rent,626.82
West Sussex County Council,Highways & Transport Services,Highways Capital Works,Carriageways - Local Roads Design,Vehicles,20/10/2021,Capital Expenditure,Enterprise Flex E Rent,606.6
West Sussex County Council,Highways & Transport Services,Highways Capital Works,6010996 Chichester Road,Pymnts-main contr.,29/10/2021,Capital Expenditure,Wsp Uk Ltd,2723.22
West Sussex County Council,Highways & Transport Services,Highways Capital Works,Wsp Project Support,Feasibility Studies,22/10/2021,Capital Expenditure,Wsp Uk Ltd,2092.66
West Sussex County Council,Highways & Transport Services,Highways Capital Works,6010313 Chs Ansty A272 Footway,Pymnts-main contr.,06/10/2021,Capital Expenditure,Balfour Beatty Living Places Ltd,4363.37
West Sussex County Council,Highways & Transport Services,Highways Capital Works,East Grinstead Rtpi Ph2,Pymnts-main contr.,12/10/2021,Capital Expenditure,Vix Technology Uk Ltd,22383.52
West Sussex County Council,Highways & Transport Services,Highways Capital Works,24 Cuckfield Rtpi,Pymnts-main contr.,04/10/2021,Capital Expenditure,Sse Contracting Limited,681.42
West Sussex County Council,Highways & Transport Services,Highways Capital Works,24 Cuckfield Rtpi,Pymnts-main contr.,04/10/2021,Capital Expenditure,Sse Contracting Limited,491.61
West Sussex County Council,Highways & Transport Services,Highways Capital Works,24 Cuckfield Rtpi,Pymnts-main contr.,04/10/2021,Capital Expenditure,Sse Contracting Limited,781.7
West Sussex County Council,Highways & Transport Services,Highways Capital Works,24 Cuckfield Rtpi,Pymnts-main contr.,04/10/2021,Capital Expenditure,Sse Contracting Limited,491.61
West Sussex County Council,Highways & Transport Services,Highways Capital Works,24 Cuckfield Rtpi,Pymnts-main contr.,26/10/2021,Capital Expenditure,Sse Contracting Limited,928.97
West Sussex County Council,Highways & Transport Services,Highways Capital Works,20 Haywards Heath Rtpi,Pymnts-main contr.,04/10/2021,Capital Expenditure,Sse Contracting Limited,928.91
West Sussex County Council,Highways & Transport Services,Highways Capital Works,20 Haywards Heath Rtpi,Pymnts-main contr.,04/10/2021,Capital Expenditure,Sse Contracting Limited,2465.75
West Sussex County Council,Highways & Transport Services,Highways Capital Works,20 Haywards Heath Rtpi,Pymnts-main contr.,04/10/2021,Capital Expenditure,Sse Contracting Limited,947.27
West Sussex County Council,Highways & Transport Services,Highways Capital Works,20 Haywards Heath Rtpi,Pymnts-main contr.,04/10/2021,Capital Expenditure,Sse Contracting Limited,491.61
West Sussex County Council,Highways & Transport Services,Highways Capital Works,20 Haywards Heath Rtpi,Pymnts-main contr.,04/10/2021,Capital Expenditure,Sse Contracting Limited,1753.1
West Sussex County Council,Highways & Transport Services,Highways Capital Works,20 Haywards Heath Rtpi,Pymnts-main contr.,04/10/2021,Capital Expenditure,Sse Contracting Limited,491.61
West Sussex County Council,Highways & Transport Services,Highways Capital Works,20 Haywards Heath Rtpi,Pymnts-main contr.,04/10/2021,Capital Expenditure,Sse Contracting Limited,970.9
West Sussex County Council,Highways & Transport Services,Highways Capital Works,Converged Fibre,Pymnts-main contr.,08/10/2021,Capital Expenditure,Balfour Beatty Construction Limited,127521.7
West Sussex County Council,Highways & Transport Services,Highways Capital Works,A24 Robin Hood Roundabout,Other Consultant,08/10/2021,Capital Expenditure,Matrix Scm Limited,423.93
West Sussex County Council,Highways & Transport Services,Highways Capital Works,A24 Robin Hood Roundabout,Other Consultant,04/10/2021,Capital Expenditure,Provelio Ltd,4220.28
West Sussex County Council,Highways & Transport Services,Highways Capital Works,A24 Robin Hood Roundabout,Other Consultant,15/10/2021,Capital Expenditure,Matrix Scm Limited,217.4
West Sussex County Council,Highways & Transport Services,Highways Capital Works,A24 Robin Hood Roundabout,Feasibility Studies,22/10/2021,Capital Expenditure,Wsp Uk Ltd,10556.45
West Sussex County Council,Highways & Transport Services,Highways Capital Works,A24 Robin Hood Roundabout,Other Consultant,22/10/2021,Capital Expenditure,Wsp Uk Ltd,3740.39
West Sussex County Council,Highways & Transport Services,Highways Capital Works,A24 Robin Hood Roundabout,Pymnts-main contr.,15/10/2021,Capital Expenditure,Landbuild Ltd,518731.03
West Sussex County Council,Highways & Transport Services,Highways Capital Works,A24 Robin Hood Roundabout,Pymnts-main contr.,27/10/2021,Capital Expenditure,Landbuild Ltd,83274.85
West Sussex County Council,Highways & Transport Services,Highways Capital Works,A24 Robin Hood Roundabout,Other Consultant,29/10/2021,Capital Expenditure,Matrix Scm Limited,173.92
West Sussex County Council,Highways & Transport Services,Highways Capital Works,A24 Robin Hood Roundabout,Pymnts-main contr.,26/10/2021,Capital Expenditure,Sse Contracting Limited,64865.83
West Sussex County Council,Highways & Transport Services,Highways Capital Works,A24 Robin Hood Roundabout,Other Consultant,26/10/2021,Capital Expenditure,Provelio Ltd,3125.28
West Sussex County Council,Highways & Transport Services,Highways Capital Works,A24 Robin Hood Roundabout,Traffic signals,27/10/2021,Capital Expenditure,Telent Technology Services Ltd,91627.01
West Sussex County Council,Highways & Transport Services,Highways Capital Works,A259 Corridor Improvements,Pymnts-main contr.,15/10/2021,Capital Expenditure,Volker-Fitzpatrick Ltd,303055.57
West Sussex County Council,Highways & Transport Services,Highways Capital Works,A259 Corridor Improvements,Acquisition costs,26/10/2021,Capital Expenditure,Green Wright Chalton Annis Solicito,775
West Sussex County Council,Highways & Transport Services,Highways Capital Works,A259 Corridor Improvements,Feasibility Studies,04/10/2021,Capital Expenditure,Provelio Ltd,5523.32
West Sussex County Council,Highways & Transport Services,Highways Capital Works,A259 Corridor Improvements,Pymnts-main contr.,11/10/2021,Capital Expenditure,Volker-Fitzpatrick Ltd,487593.03
West Sussex County Council,Highways & Transport Services,Highways Capital Works,A259 Corridor Improvements,Client PM Fees,22/10/2021,Capital Expenditure,Wsp Uk Ltd,548.39
West Sussex County Council,Highways & Transport Services,Highways Capital Works,A259 Corridor Improvements,Pymnts-main contr.,27/10/2021,Capital Expenditure,Volker-Fitzpatrick Ltd,478801.17
West Sussex County Council,Highways & Transport Services,Highways Capital Works,Lyminster Bypass,Legal Fees,25/10/2021,Capital Expenditure,Havas People Ltd,2098.09
West Sussex County Council,Highways & Transport Services,Highways Capital Works,Lyminster Bypass,Feasibility Studies,22/10/2021,Capital Expenditure,Wsp Uk Ltd,3241.4
West Sussex County Council,Highways & Transport Services,Highways Capital Works,Lyminster Bypass,Client PM Fees,22/10/2021,Capital Expenditure,Wsp Uk Ltd,8468.94
West Sussex County Council,Highways & Transport Services,Highways Capital Works,A259 Bognor To Littlehampton Design,Other Consultant,12/10/2021,Capital Expenditure,Wsp Uk Ltd,5566.07
West Sussex County Council,Highways & Transport Services,Highways Capital Works,A259 Bognor To Littlehampton Design,Other Consultant,22/10/2021,Capital Expenditure,Wsp Uk Ltd,4225.83
West Sussex County Council,Highways & Transport Services,Highways Capital Works,A259 Bognor To Littlehampton Design,Other Consultant,22/10/2021,Capital Expenditure,Wsp Uk Ltd,4992.14
West Sussex County Council,Highways & Transport Services,Highways Capital Works,Main Works A29,Other Consultant,22/10/2021,Capital Expenditure,Wsp Uk Ltd,8640.64
West Sussex County Council,Highways & Transport Services,Highways Capital Works,Main Works A29,Feasibility Studies,22/10/2021,Capital Expenditure,Wsp Uk Ltd,2445.1
West Sussex County Council,Highways & Transport Services,Highways Capital Works,Main Works A29,Pymnts-main contr.,28/10/2021,Capital Expenditure,Jackson Civil Engineering Group Ltd,40594.02
West Sussex County Council,Highways & Transport Services,Highways Capital Works,Street Lighting Led - Consultancy,Other Consultant,08/10/2021,Capital Expenditure,Matrix Scm Limited,1173.9
West Sussex County Council,Highways & Transport Services,Highways Capital Works,Street Lighting Led - Consultancy,Other Consultant,08/10/2021,Capital Expenditure,Matrix Scm Limited,1819.55
West Sussex County Council,Highways & Transport Services,Highways Capital Works,Street Lighting Led - Consultancy,Other Consultant,08/10/2021,Capital Expenditure,Matrix Scm Limited,1213.04
West Sussex County Council,Highways & Transport Services,Highways Capital Works,Street Lighting Led - Consultancy,Other Consultant,08/10/2021,Capital Expenditure,Matrix Scm Limited,1330.42
West Sussex County Council,Highways & Transport Services,Highways Capital Works,Street Lighting Led - Consultancy,Other Consultant,08/10/2021,Capital Expenditure,Matrix Scm Limited,1173.9
West Sussex County Council,Highways & Transport Services,Highways Capital Works,Street Lighting Led - Consultancy,Other Consultant,08/10/2021,Capital Expenditure,Matrix Scm Limited,1330.42
West Sussex County Council,Highways & Transport Services,Highways Capital Works,Street Lighting Led - Consultancy,Other Consultant,08/10/2021,Capital Expenditure,Matrix Scm Limited,1173.9
West Sussex County Council,Highways & Transport Services,Highways Capital Works,Street Lighting Led - Consultancy,Other Consultant,08/10/2021,Capital Expenditure,Matrix Scm Limited,1799.98
West Sussex County Council,Highways & Transport Services,Highways Capital Works,Street Lighting Led - Consultancy,Other Consultant,15/10/2021,Capital Expenditure,Matrix Scm Limited,1252.17
West Sussex County Council,Highways & Transport Services,Highways Capital Works,Street Lighting Led - Consultancy,Other Consultant,22/10/2021,Capital Expenditure,Matrix Scm Limited,1173.9
West Sussex County Council,Highways & Transport Services,Highways Capital Works,Street Lighting Led - Consultancy,Feasibility Studies,22/10/2021,Capital Expenditure,Wsp Uk Ltd,6890.17
West Sussex County Council,Highways & Transport Services,Highways Capital Works,Street Lighting Led - Consultancy,Other Consultant,29/10/2021,Capital Expenditure,Matrix Scm Limited,1506.51
West Sussex County Council,Highways & Transport Services,Highways Capital Works,Main Works,Feasibility Studies,04/10/2021,Capital Expenditure,Provelio Ltd,6005.67
West Sussex County Council,Highways & Transport Services,Highways Capital Works,Main Works,Other Consultant,15/10/2021,Capital Expenditure,Thinkproject Uk Limited,650
West Sussex County Council,Highways & Transport Services,Highways Capital Works,Main Works,Other Consultant,01/10/2021,Capital Expenditure,Matrix Scm Limited,1673.91
West Sussex County Council,Highways & Transport Services,Highways Capital Works,Main Works,Other Consultant,01/10/2021,Capital Expenditure,Matrix Scm Limited,3630
West Sussex County Council,Highways & Transport Services,Highways Capital Works,Main Works,Other Consultant,08/10/2021,Capital Expenditure,Matrix Scm Limited,1886.47
West Sussex County Council,Highways & Transport Services,Highways Capital Works,Main Works,Feasibility Studies,26/10/2021,Capital Expenditure,Provelio Ltd,5480.67
West Sussex County Council,Highways & Transport Services,Highways Capital Works,Main Works,Other Consultant,15/10/2021,Capital Expenditure,Matrix Scm Limited,1567.63
West Sussex County Council,Highways & Transport Services,Highways Capital Works,Main Works,Pymnts-main contr.,13/10/2021,Capital Expenditure,Jackson Civil Engineering Group Ltd,957026.33
West Sussex County Council,Highways & Transport Services,Highways Capital Works,Main Works,Other Consultant,22/10/2021,Capital Expenditure,Matrix Scm Limited,2444.44
West Sussex County Council,Highways & Transport Services,Highways Capital Works,Main Works,Other Consultant,29/10/2021,Capital Expenditure,Matrix Scm Limited,2152.17
West Sussex County Council,Support Service And Management Costs,Capital Works,Vehicle Procurement,Vehicles,04/10/2021,Capital Expenditure,Volkswagen Group Uk Ltd,27138.92
West Sussex County Council,Support Service And Management Costs,Capital Works,Vehicle Procurement,Vehicles,04/10/2021,Capital Expenditure,Volkswagen Group Uk Ltd,26012.12
West Sussex County Council,Support Service And Management Costs,Capital Works,Vehicle Procurement,Vehicles,04/10/2021,Capital Expenditure,Volkswagen Group Uk Ltd,26012.12
West Sussex County Council,Support Service And Management Costs,Capital Works,Replacement Vehicle Communications,Pymnts-main contr.,12/10/2021,Capital Expenditure,Safe And Sound,712.25
West Sussex County Council,Support Service And Management Costs,Capital Works,Operational Equip,Vehicles,08/10/2021,Capital Expenditure,Northern Diver Int Ltd,2467
West Sussex County Council,Support Service And Management Costs,Capital Works,Fire Equipment,Vehicles,19/10/2021,Capital Expenditure,Delta Fire Ltd,2840
West Sussex County Council,Support Service And Management Costs,Capital Works,Fire Equipment,Vehicles,19/10/2021,Capital Expenditure,Delta Fire Ltd,2920
West Sussex County Council,Support Service And Management Costs,Capital Works,Fire Equipment,Vehicles,25/10/2021,Capital Expenditure,Terberg Dts Uk Ltd,540
West Sussex County Council,Support Service And Management Costs,Capital Works,Emergency Rescue Equipment,Vehicles,27/10/2021,Capital Expenditure,Weber Rescue Uk Ltd,8760.5
West Sussex County Council,Cultural & Related Services,Open Spaces,County Tree Surgeons,Minor Works,29/10/2021,Revenue Expenditure ,County Tree Surgeons Ltd,8951.26
West Sussex County Council,Support Service And Management Costs,Transformation Projects,Consultancy Implentation Support,Professional Service,21/10/2021,Revenue Expenditure ,Bloom Procurement Services Ltd,70342
West Sussex County Council,Support Service And Management Costs,Transformation Projects,Consultancy Implentation Support,Professional Service,21/10/2021,Revenue Expenditure ,Bloom Procurement Services Ltd,70342
West Sussex County Council,Support Service And Management Costs,Transformation Projects,Consultancy Implentation Support,Professional Service,21/10/2021,Revenue Expenditure ,Bloom Procurement Services Ltd,70342
West Sussex County Council,Support Service And Management Costs,Transformation Projects,Capita Transition Costs,Professional Service,14/10/2021,Revenue Expenditure ,Capita Business Services Ltd,8454
West Sussex County Council,Support Service And Management Costs,Transformation Projects,Capita Transition Costs,Professional Service,19/10/2021,Revenue Expenditure ,Capita Business Services Ltd,14794.5
West Sussex County Council,Support Service And Management Costs,Transformation Projects,Internal Team,Pay - Agency Staff,01/10/2021,Revenue Expenditure ,Matrix Scm Limited,459.36
West Sussex County Council,Support Service And Management Costs,Transformation Projects,Internal Team,Pay - Agency Staff,08/10/2021,Revenue Expenditure ,Matrix Scm Limited,459.36
West Sussex County Council,Support Service And Management Costs,Transformation Projects,Internal Team,Pay - Agency Staff,15/10/2021,Revenue Expenditure ,Matrix Scm Limited,469.28
West Sussex County Council,Support Service And Management Costs,Transformation Projects,Internal Team,Pay - Agency Staff,22/10/2021,Revenue Expenditure ,Matrix Scm Limited,469.28
West Sussex County Council,Support Service And Management Costs,Transformation Projects,Internal Team,Pay - Agency Staff,29/10/2021,Revenue Expenditure ,Matrix Scm Limited,469.28
West Sussex County Council,Support Service And Management Costs,Transformation Projects,Community Hubs - Worthing Lib Relocation,Office Equipment,22/10/2021,Revenue Expenditure ,Churchill Contract Services Ltd,3007.13
West Sussex County Council,Support Service And Management Costs,Transformation Projects,Enabling,Computer Maintenance,19/10/2021,Revenue Expenditure ,Entserv Uk Limited,148828
West Sussex County Council,Support Service And Management Costs,Transformation Projects,Enabling,Professional Service,29/10/2021,Revenue Expenditure ,Matrix Scm Limited,870
West Sussex County Council,Support Service And Management Costs,Transformation Projects,Enabling,Professional Service,29/10/2021,Revenue Expenditure ,Matrix Scm Limited,870
West Sussex County Council,Support Service And Management Costs,Transformation Projects,Enabling,Professional Service,29/10/2021,Revenue Expenditure ,Matrix Scm Limited,870
West Sussex County Council,Support Service And Management Costs,Transformation Projects,Smartcore,Pay - Agency Staff,22/10/2021,Revenue Expenditure ,Capita Business Services Ltd,5135.04
West Sussex County Council,Support Service And Management Costs,Transformation Projects,Smartcore,Pay - Agency Staff,22/10/2021,Revenue Expenditure ,Capita Business Services Ltd,5455.98
West Sussex County Council,Support Service And Management Costs,Transformation Projects,Smartcore,Pay - Agency Staff,01/10/2021,Revenue Expenditure ,Matrix Scm Limited,3305.2
West Sussex County Council,Support Service And Management Costs,Transformation Projects,Smartcore,Pay - Agency Staff,22/10/2021,Revenue Expenditure ,Capita Business Services Ltd,6097.86
West Sussex County Council,Support Service And Management Costs,Transformation Projects,Smartcore,Pay - Agency Staff,08/10/2021,Revenue Expenditure ,Matrix Scm Limited,4130.2
West Sussex County Council,Support Service And Management Costs,Transformation Projects,Smartcore,Pay - Agency Staff,08/10/2021,Revenue Expenditure ,Matrix Scm Limited,3305.2
West Sussex County Council,Support Service And Management Costs,Transformation Projects,Smartcore,Pay - Agency Staff,15/10/2021,Revenue Expenditure ,Matrix Scm Limited,4130.2
West Sussex County Council,Support Service And Management Costs,Transformation Projects,Smartcore,Pay - Agency Staff,15/10/2021,Revenue Expenditure ,Matrix Scm Limited,3305.2
West Sussex County Council,Support Service And Management Costs,Transformation Projects,Smartcore,Pay - Agency Staff,22/10/2021,Revenue Expenditure ,Matrix Scm Limited,3376.04
West Sussex County Council,Support Service And Management Costs,Transformation Projects,Smartcore,Pay - Agency Staff,29/10/2021,Revenue Expenditure ,Matrix Scm Limited,4183.5
West Sussex County Council,Support Service And Management Costs,Transformation Projects,Smartcore,Pay - Agency Staff,29/10/2021,Revenue Expenditure ,Matrix Scm Limited,4263.45
West Sussex County Council,Support Service And Management Costs,Transformation Projects,Smartcore,Pay - Agency Staff,29/10/2021,Revenue Expenditure ,Matrix Scm Limited,3482.3
West Sussex County Council,Support Service And Management Costs,Transformation Projects,Smartcore,Professional Service,25/10/2021,Revenue Expenditure ,Bloom Procurement Services Ltd,67325
West Sussex County Council,Support Service And Management Costs,Transformation Projects,Smartcore,Professional Service,25/10/2021,Revenue Expenditure ,Bloom Procurement Services Ltd,19199.99
West Sussex County Council,Support Service And Management Costs,Transformation Projects,Agent Solicitor Fees,LegalFees: Oth Party,12/10/2021,Revenue Expenditure ,Venters Solicitors,6001.15
West Sussex County Council,Support Service And Management Costs,Transformation Projects,Agent Solicitor Fees,LegalFees: Oth Party,04/10/2021,Revenue Expenditure ,Creighton & Partners Solicitors Ltd,1119.5
West Sussex County Council,Support Service And Management Costs,Transformation Projects,Agent Solicitor Fees,LegalFees: Oth Party,04/10/2021,Revenue Expenditure ,Creighton & Partners Solicitors Ltd,855.5
West Sussex County Council,Support Service And Management Costs,Transformation Projects,Agent Solicitor Fees,LegalFees: Oth Party,04/10/2021,Revenue Expenditure ,Creighton & Partners Solicitors Ltd,1290
West Sussex County Council,Support Service And Management Costs,Transformation Projects,Agent Solicitor Fees,LegalFees: Oth Party,04/10/2021,Revenue Expenditure ,Creighton & Partners Solicitors Ltd,879.5
West Sussex County Council,Support Service And Management Costs,Transformation Projects,Agent Solicitor Fees,LegalFees: Oth Party,04/10/2021,Revenue Expenditure ,Creighton & Partners Solicitors Ltd,1275
West Sussex County Council,Support Service And Management Costs,Transformation Projects,Agent Solicitor Fees,LegalFees: Oth Party,04/10/2021,Revenue Expenditure ,Creighton & Partners Solicitors Ltd,1448
West Sussex County Council,Support Service And Management Costs,Transformation Projects,Agent Solicitor Fees,LegalFees: Oth Party,04/10/2021,Revenue Expenditure ,Creighton & Partners Solicitors Ltd,3068
West Sussex County Council,Support Service And Management Costs,Transformation Projects,Agent Solicitor Fees,LegalFees: Oth Party,19/10/2021,Revenue Expenditure ,Venters Solicitors,3886.62
West Sussex County Council,Support Service And Management Costs,Transformation Projects,Agent Solicitor Fees,LegalFees: Oth Party,22/10/2021,Revenue Expenditure ,Venters Solicitors,2948.99
West Sussex County Council,Support Service And Management Costs,Transformation Projects,Agent Solicitor Fees,LegalFees: Oth Party,22/10/2021,Revenue Expenditure ,Venters Solicitors,513.63
West Sussex County Council,Support Service And Management Costs,Transformation Projects,Agent Solicitor Fees,LegalFees: Oth Party,26/10/2021,Revenue Expenditure ,Venters Solicitors,1719.56
West Sussex County Council,Support Service And Management Costs,Transformation Projects,Agent Solicitor Fees,LegalFees: Oth Party,14/10/2021,Revenue Expenditure ,Creighton & Partners Solicitors Ltd,512.5
West Sussex County Council,Support Service And Management Costs,Transformation Projects,Agent Solicitor Fees,LegalFees: Oth Party,20/10/2021,Revenue Expenditure ,Creighton & Partners Solicitors Ltd,731
West Sussex County Council,Support Service And Management Costs,Transformation Projects,Counsel Fees,LegalFees: Oth Party,04/10/2021,Revenue Expenditure ,Caroline Landes,500
West Sussex County Council,Support Service And Management Costs,Transformation Projects,Counsel Fees,LegalFees: Oth Party,04/10/2021,Revenue Expenditure ,Creighton & Partners Solicitors Ltd,1025.5
West Sussex County Council,Support Service And Management Costs,Transformation Projects,Counsel Fees,LegalFees: Oth Party,12/10/2021,Revenue Expenditure ,Venters Solicitors,603.63
West Sussex County Council,Support Service And Management Costs,Transformation Projects,Counsel Fees,LegalFees: Oth Party,04/10/2021,Revenue Expenditure ,Miss Ruth Webber,600
West Sussex County Council,Support Service And Management Costs,Transformation Projects,Counsel Fees,LegalFees: Oth Party,04/10/2021,Revenue Expenditure ,Mr Richard Little,900
West Sussex County Council,Support Service And Management Costs,Transformation Projects,Counsel Fees,LegalFees: Oth Party,04/10/2021,Revenue Expenditure ,Sian Smith,600
West Sussex County Council,Support Service And Management Costs,Transformation Projects,Counsel Fees,LegalFees: Oth Party,04/10/2021,Revenue Expenditure ,Amanda Jepson,600
West Sussex County Council,Support Service And Management Costs,Transformation Projects,Counsel Fees,LegalFees: Oth Party,04/10/2021,Revenue Expenditure ,Elena Macleod,915
West Sussex County Council,Support Service And Management Costs,Transformation Projects,Counsel Fees,LegalFees: Oth Party,08/10/2021,Revenue Expenditure ,Matthew Stott,650
West Sussex County Council,Support Service And Management Costs,Transformation Projects,Counsel Fees,LegalFees: Oth Party,13/10/2021,Revenue Expenditure ,Alison Pryor,500
West Sussex County Council,Support Service And Management Costs,Transformation Projects,Counsel Fees,LegalFees: Oth Party,13/10/2021,Revenue Expenditure ,Caroline Landes,650
West Sussex County Council,Support Service And Management Costs,Transformation Projects,Counsel Fees,LegalFees: Oth Party,13/10/2021,Revenue Expenditure ,Mr Garfield Braithwaite,600
West Sussex County Council,Support Service And Management Costs,Transformation Projects,Counsel Fees,LegalFees: Oth Party,13/10/2021,Revenue Expenditure ,Mr Robert Cameron,500
West Sussex County Council,Support Service And Management Costs,Transformation Projects,Counsel Fees,LegalFees: Oth Party,13/10/2021,Revenue Expenditure ,Miss Ruth Webber,600
West Sussex County Council,Support Service And Management Costs,Transformation Projects,Counsel Fees,LegalFees: Oth Party,13/10/2021,Revenue Expenditure ,Mr Richard Little,600
West Sussex County Council,Support Service And Management Costs,Transformation Projects,Counsel Fees,LegalFees: Oth Party,13/10/2021,Revenue Expenditure ,Mr Adam Smith,435
West Sussex County Council,Support Service And Management Costs,Transformation Projects,Counsel Fees,LegalFees: Oth Party,13/10/2021,Revenue Expenditure ,Caroline Landes,650
West Sussex County Council,Support Service And Management Costs,Transformation Projects,Counsel Fees,LegalFees: Oth Party,25/10/2021,Revenue Expenditure ,George Butler,500
West Sussex County Council,Support Service And Management Costs,Transformation Projects,Counsel Fees,LegalFees: Oth Party,25/10/2021,Revenue Expenditure ,James Sharpe,1025
West Sussex County Council,Support Service And Management Costs,Transformation Projects,Counsel Fees,LegalFees: Oth Party,25/10/2021,Revenue Expenditure ,Mr Jonathan Pearce,500
West Sussex County Council,Support Service And Management Costs,Transformation Projects,Counsel Fees,LegalFees: Oth Party,25/10/2021,Revenue Expenditure ,Miss Ann Courtney,650
West Sussex County Council,Support Service And Management Costs,Transformation Projects,Counsel Fees,LegalFees: Oth Party,25/10/2021,Revenue Expenditure ,Mr Richard Egleton,650
West Sussex County Council,Support Service And Management Costs,Transformation Projects,Counsel Fees,LegalFees: Oth Party,25/10/2021,Revenue Expenditure ,Kate Claxton,750
West Sussex County Council,Support Service And Management Costs,Transformation Projects,Farynor - System Build,Pay - Agency Staff,01/10/2021,Revenue Expenditure ,Matrix Scm Limited,586.08
West Sussex County Council,Support Service And Management Costs,Transformation Projects,Farynor - System Build,Pay - Agency Staff,01/10/2021,Revenue Expenditure ,Matrix Scm Limited,264
West Sussex County Council,Support Service And Management Costs,Transformation Projects,Farynor - System Build,Pay - Agency Staff,01/10/2021,Revenue Expenditure ,Matrix Scm Limited,213.6
West Sussex County Council,Support Service And Management Costs,Transformation Projects,Farynor - System Build,Pay - Agency Staff,01/10/2021,Revenue Expenditure ,Matrix Scm Limited,133.5
West Sussex County Council,Support Service And Management Costs,Transformation Projects,Farynor - System Build,Pay - Agency Staff,08/10/2021,Revenue Expenditure ,Matrix Scm Limited,133.5
West Sussex County Council,Support Service And Management Costs,Transformation Projects,Farynor - System Build,Pay - Agency Staff,08/10/2021,Revenue Expenditure ,Matrix Scm Limited,133.5
West Sussex County Council,Support Service And Management Costs,Transformation Projects,Farynor - System Build,Pay - Agency Staff,08/10/2021,Revenue Expenditure ,Matrix Scm Limited,400.52
West Sussex County Council,Support Service And Management Costs,Transformation Projects,Farynor - System Build,Pay - Agency Staff,08/10/2021,Revenue Expenditure ,Matrix Scm Limited,264
West Sussex County Council,Support Service And Management Costs,Transformation Projects,Farynor - System Build,Pay - Agency Staff,15/10/2021,Revenue Expenditure ,Matrix Scm Limited,133.5
West Sussex County Council,Support Service And Management Costs,Transformation Projects,Farynor - System Build,Pay - Agency Staff,15/10/2021,Revenue Expenditure ,Matrix Scm Limited,264
West Sussex County Council,Support Service And Management Costs,Transformation Projects,Farynor - System Build,Pay - Agency Staff,22/10/2021,Revenue Expenditure ,Matrix Scm Limited,106.8
West Sussex County Council,Support Service And Management Costs,Transformation Projects,Farynor - System Build,Pay - Agency Staff,22/10/2021,Revenue Expenditure ,Matrix Scm Limited,264
West Sussex County Council,Support Service And Management Costs,Transformation Projects,Farynor - System Build,Pay - Agency Staff,29/10/2021,Revenue Expenditure ,Matrix Scm Limited,100.13
West Sussex County Council,Support Service And Management Costs,Transformation Projects,Farynor - System Build,Pay - Agency Staff,29/10/2021,Revenue Expenditure ,Matrix Scm Limited,264
West Sussex County Council,Support Service And Management Costs,Transformation Projects,Frs Branding & Values Embedding Budget,Office Equipment,14/10/2021,Revenue Expenditure ,Pavilion Publishing & Media Ltd,1300
West Sussex County Council,Support Service And Management Costs,Transformation Projects,Resource Administrators,Pay - Agency Staff,01/10/2021,Revenue Expenditure ,Matrix Scm Limited,505.53
West Sussex County Council,Support Service And Management Costs,Transformation Projects,Resource Administrators,Pay - Agency Staff,01/10/2021,Revenue Expenditure ,Matrix Scm Limited,484.75
West Sussex County Council,Support Service And Management Costs,Transformation Projects,Resource Administrators,Pay - Agency Staff,01/10/2021,Revenue Expenditure ,Matrix Scm Limited,484.75
West Sussex County Council,Support Service And Management Costs,Transformation Projects,Resource Administrators,Pay - Agency Staff,08/10/2021,Revenue Expenditure ,Matrix Scm Limited,488.21
West Sussex County Council,Support Service And Management Costs,Transformation Projects,Resource Administrators,Pay - Agency Staff,08/10/2021,Revenue Expenditure ,Matrix Scm Limited,484.75
West Sussex County Council,Support Service And Management Costs,Transformation Projects,Resource Administrators,Pay - Agency Staff,08/10/2021,Revenue Expenditure ,Matrix Scm Limited,547.08
West Sussex County Council,Support Service And Management Costs,Transformation Projects,Resource Administrators,Pay - Agency Staff,15/10/2021,Revenue Expenditure ,Matrix Scm Limited,484.75
West Sussex County Council,Support Service And Management Costs,Transformation Projects,Resource Administrators,Pay - Agency Staff,15/10/2021,Revenue Expenditure ,Matrix Scm Limited,484.75
West Sussex County Council,Support Service And Management Costs,Transformation Projects,Resource Administrators,Pay - Agency Staff,15/10/2021,Revenue Expenditure ,Matrix Scm Limited,519.38
West Sussex County Council,Support Service And Management Costs,Transformation Projects,Resource Administrators,Pay - Agency Staff,22/10/2021,Revenue Expenditure ,Matrix Scm Limited,484.75
West Sussex County Council,Support Service And Management Costs,Transformation Projects,Resource Administrators,Pay - Agency Staff,22/10/2021,Revenue Expenditure ,Matrix Scm Limited,290.85
West Sussex County Council,Support Service And Management Costs,Transformation Projects,Resource Administrators,Pay - Agency Staff,22/10/2021,Revenue Expenditure ,Matrix Scm Limited,602.48
West Sussex County Council,Support Service And Management Costs,Transformation Projects,Resource Administrators,Pay - Agency Staff,29/10/2021,Revenue Expenditure ,Matrix Scm Limited,484.75
West Sussex County Council,Support Service And Management Costs,Transformation Projects,Resource Administrators,Pay - Agency Staff,29/10/2021,Revenue Expenditure ,Matrix Scm Limited,387.8
West Sussex County Council,Support Service And Management Costs,Transformation Projects,Resource Administrators,Pay - Agency Staff,29/10/2021,Revenue Expenditure ,Matrix Scm Limited,554
West Sussex County Council,Adult Social Care,Capital Works,Choices For The Future Part B,Client PM Fees,01/10/2021,Capital Expenditure,Faithful & Gould,11193.5
West Sussex County Council,Adult Social Care,Capital Works,Choices For The Future Part B,Pymnts-main contr.,26/10/2021,Capital Expenditure,Faithful & Gould,23161.05
West Sussex County Council,Adult Social Care,Capital Works,Choices For The Future Part B,Pymnts-main contr.,29/10/2021,Capital Expenditure,J Cheesmur & Sons (Lewes) Ltd,491160.1
West Sussex County Council,Adult Social Care,Capital Works,Choices For The Future Part A,Furniture & Fittings,25/10/2021,Capital Expenditure,Asap Removals,2544
West Sussex County Council,Adult Social Care,Capital Works,Choices For The Future Part A,Furniture & Fittings,25/10/2021,Capital Expenditure,Asap Removals,2808
West Sussex County Council,Education Services,Services To Young People,Setting Up Home Allowance,Furniture & Fittings,01/10/2021,Revenue Expenditure ,P Card Royal Bank Of Scotland Plc,556.95
West Sussex County Council,Planning & Development Services,Community Development,Town & Parish Council Volunteer Exps,Delegated Maintenanc,01/10/2021,Revenue Expenditure ,P Card Royal Bank Of Scotland Plc,447.74
West Sussex County Council,Fire & Rescue Services,Management & Support Services,Fleet Maintenece & Repair,Gen Client Expenses,01/10/2021,Revenue Expenditure ,P Card Royal Bank Of Scotland Plc,752.34
West Sussex County Council,Fire & Rescue Services,Operational Responses,Protection Fire Safety,Fire Fighting Eqpt,01/10/2021,Revenue Expenditure ,P Card Royal Bank Of Scotland Plc,648.49
West Sussex County Council,Fire & Rescue Services,Management & Support Services,Fleet Maintenece & Repair,Vehicle Maintenance,01/10/2021,Revenue Expenditure ,P Card Royal Bank Of Scotland Plc,479
West Sussex County Council,Education Services,Early Years,Discretionary Awards,Train'g & Conference,01/10/2021,Revenue Expenditure ,P Card Royal Bank Of Scotland Plc,900
West Sussex County Council,Education Services,Early Years,Discretionary Awards,Train'g & Conference,01/10/2021,Revenue Expenditure ,P Card Royal Bank Of Scotland Plc,595
West Sussex County Council,Corporate & Democratic Core,Other Balances Recharged To Cdc,Head Of Legal Services,Professional Service,01/10/2021,Revenue Expenditure ,P Card Royal Bank Of Scotland Plc,2055
West Sussex County Council,Corporate & Democratic Core,Other Balances Recharged To Cdc,Head Of Legal Services,Professional Service,01/10/2021,Revenue Expenditure ,P Card Royal Bank Of Scotland Plc,2055
West Sussex County Council,Corporate & Democratic Core,Other Balances Recharged To Cdc,Head Of Legal Services,Professional Service,01/10/2021,Revenue Expenditure ,P Card Royal Bank Of Scotland Plc,2055
West Sussex County Council,Corporate & Democratic Core,Other Balances Recharged To Cdc,Head Of Legal Services,Professional Service,01/10/2021,Revenue Expenditure ,P Card Royal Bank Of Scotland Plc,2055
West Sussex County Council,Corporate & Democratic Core,Other Balances Recharged To Cdc,Head Of Legal Services,Professional Service,01/10/2021,Revenue Expenditure ,P Card Royal Bank Of Scotland Plc,1990
West Sussex County Council,Planning & Development Services,Community Development,Homelessness,Gen Client Expenses,01/10/2021,Revenue Expenditure ,P Card Royal Bank Of Scotland Plc,607.4
West Sussex County Council,Fire & Rescue Services,Training & Development,Operational Training,Train'g & Conference,01/10/2021,Revenue Expenditure ,P Card Royal Bank Of Scotland Plc,720
West Sussex County Council,Planning & Development Services,Community Development,Homelessness,General Provisions,01/10/2021,Revenue Expenditure ,P Card Royal Bank Of Scotland Plc,526.75
West Sussex County Council,Planning & Development Services,Community Development,Homelessness,General Provisions,01/10/2021,Revenue Expenditure ,P Card Royal Bank Of Scotland Plc,507.8
West Sussex County Council,Planning & Development Services,Community Development,Homelessness,General Provisions,01/10/2021,Revenue Expenditure ,P Card Royal Bank Of Scotland Plc,504.85
West Sussex County Council,Planning & Development Services,Community Development,Homelessness,General Provisions,01/10/2021,Revenue Expenditure ,P Card Royal Bank Of Scotland Plc,704.5
West Sussex County Council,Other Children & Family Services,,Ifs North Team 4,Gen Client Expenses,01/10/2021,Revenue Expenditure ,P Card Royal Bank Of Scotland Plc,500
West Sussex County Council,Other Children & Family Services,,Ifs North Team 4,Gen Client Expenses,01/10/2021,Revenue Expenditure ,P Card Royal Bank Of Scotland Plc,500
West Sussex County Council,Highways & Transport Services,"Transportation Planning, Policy & Strategy",Local Highway Ops,Building Maintenance,01/10/2021,Revenue Expenditure ,P Card Royal Bank Of Scotland Plc,435
West Sussex County Council,Adult Social Care,Commissioning & Service Delivery,Afghan Les Relocation Scheme,Furniture & Fittings,01/10/2021,Revenue Expenditure ,P Card Royal Bank Of Scotland Plc,1150
